Workbook

Sheet DifferDemonsConfig
B1: Id | C1: OpenRules | D1: Name | E1: Quality | F1: Icon | G1: LiveIcon | H1: Scale | I1: Position | J1: Effect | K1: AvatarResourceID | L1: LockAvatarResourceID | M1: ComonpentList | N1: Aptitude
B2: int | C2: mut,int#int,2 | D2: string | E2: int | F2: int | G2: int | H2: float | I2: mut,float#float,1 | J2: string | K2: int | L2: int | M2: mut,int#int,1 | N2: int
B3: 2 | C3: 4 | D3: 2 | E3: 2 | F3: 3 | G3: 3 | H3: 3 | I3: 3 | J3: 3 | K3: 3 | L3: 3 | M3: 2 | N3: 3
B4: ID | C4: 异妖开放条件 | D4: 异妖名字 | E4: 异妖资质 | F4: Icon头像资源ID | G4: 静态立绘资源id | H4: 异妖缩放值 | I4: 位置 | J4: 每个异妖都有不同的特效 这里填特效名字 字符串 | K4: 立绘资源ID | L4: 未激活的时候的立绘Id | M4: 异妖配件列表 | N4: 异妖资质
A5: 默认值 | B5: 0 | C5: null | D5: ="" ->  | F5: 0 | J5: ="" ->  | K5: 0 | L5: 0 | M5: null | N5: null
A6: 正确性校对
A7: 校对值
B8: 1 | D8: 刀劳鬼 | E8: 6 | G8: 206 | H8: 0.55 | I8: 0#50 | M8: 6001#6002#6003 | N8: 16
B9: 2 | D9: 蒸笼仔 | E9: 6 | G9: 201 | H9: 0.6 | I9: 0#0 | M9: 6004#6005#6006 | N9: 16
B10: 3 | D10: 横公 | E10: 6 | G10: 203 | H10: 0.55 | I10: 0#0 | M10: 6007#6008#6009 | N10: 16
B11: 4 | D11: 拘魂姬 | E11: 6 | G11: 202 | H11: 0.7 | I11: 0#-30 | M11: 6010#6011#6012 | N11: 16
B12: 5 | D12: 火鼠 | E12: 7 | G12: 207 | H12: 0.48 | I12: 100#100 | M12: 6013#6014#6015#6016 | N12: 17
B13: 6 | D13: 拦面叟 | E13: 7 | G13: 210 | H13: 0.6 | I13: 0#80 | M13: 6017#6018#6019#6020 | N13: 17
B14: 7 | D14: 孙龙 | E14: 7 | G14: 204 | H14: 0.9 | I14: 0#80 | M14: 6021#6022#6023#6024 | N14: 17
B15: 8 | D15: 陌刀 | E15: 7 | G15: 208 | H15: 0.76 | I15: 20#120 | M15: 6025#6026#6027#6028 | N15: 17
B16: 9 | D16: 风狸 | E16: 7 | G16: 205 | H16: 0.8 | I16: 80#100 | M16: 6029#6030#6031#6032 | N16: 17
B17: 10 | D17: 天麟 | E17: 7 | G17: 209 | H17: 0.5 | I17: 0#120 | M17: 6033#6034#6035#6036 | N17: 18

Sheet 辅助表
A1: 异妖加成倍数 | C1: 40 | F1: 异妖速度倍数 | G1: 4.52
A3: 生命 | B3: 2400 | F3: 速度 | G3: 176
A4: 攻击 | B4: 200
A5: 护甲 | B5: 200
A6: 魔抗 | B6: 200
A10: 生命、攻击属性的分配设计
A11: 攻击 | F11: 生命
B12: 权重 | C12: 占比 | G12: 权重 | H12: 占比
A13: 紫色 | B13: 1 | C13: =B13/SUM($B$13:$B$14)*$C$1 -> 8 | F13: 紫色 | G13: 1 | H13: =G13/SUM($B$13:$B$14)*$C$1*10 -> 80
A14: 橙色 | B14: 4 | C14: =B14/SUM($B$13:$B$14)*$C$1 -> 32 | F14: 橙色 | G14: 4 | H14: =G14/SUM($B$13:$B$14)*$C$1*10 -> 320
A17: 紫色生命加成的配件个数 | D17: =4*2 -> 8
A18: 紫色攻击加成的配件个数 | D18: =4*2 -> 8
A20: 生命属性 | G20: 攻击属性 | N20: 效果命中
A21: 等级 | B21: 权重 | C21: 属性占比 | D21: 每级数值 | E21: 当前阶级 | G21: 等级 | H21: 权重 | I21: 属性占比 | J21: 每级数值 | K21: 当前阶级 | N21: 等级 | O21: 权重 | P21: 属性占比 | Q21: 每级数值 | R21: 当前阶级
A22: 1 | B22: 0.1 | C22: =B22/SUM($B$22:$B$31) -> 4% | D22: =C22*$B$3*10 -> 842.1052632 | E22: =INT(SUM($D$22:D22)) -> 842 | G22: 1 | H22: 0.1 | I22: =H22/SUM($B$22:$B$31) -> 4% | J22: =I22*$B$4*1 -> 7.01754386 | K22: =INT(SUM($J$22:J22)) -> 7 | N22: 1 | O22: 0.1 | P22: =O22/SUM($B$22:$B$31) -> 4% | Q22: =P22*0.6 -> 0.02105263158 | R22: =ROUNDDOWN(SUM($Q$22:Q22),2)/2*100 -> 1
A23: 2 | B23: 0.15 | C23: =B23/SUM($B$22:$B$31) -> 5% | D23: =C23*$B$3*10 -> 1263.157895 | E23: =INT(SUM($D$22:D23)) -> 2105 | G23: 2 | H23: 0.15 | I23: =H23/SUM($B$22:$B$31) -> 5% | J23: =I23*$B$4*1 -> 10.52631579 | K23: =INT(SUM($J$22:J23)) -> 17 | N23: 2 | O23: 0.15 | P23: =O23/SUM($B$22:$B$31) -> 5% | Q23: =P23*0.6 -> 0.03157894737 | R23: =ROUNDDOWN(SUM($Q$22:Q23),2)/2*100 -> 2.5
A24: 3 | B24: 0.15 | C24: 5% | D24: 1263.157895 | E24: =INT(SUM($D$22:D24)) -> 3368 | G24: 3 | H24: 0.15 | I24: 5% | J24: 10.52631579 | K24: =INT(SUM($J$22:J24)) -> 28 | N24: 3 | O24: 0.15 | P24: 5% | Q24: 0.03157894737 | R24: =ROUNDDOWN(SUM($Q$22:Q24),2)/2*100 -> 4
A25: 4 | B25: 0.2 | C25: 7% | D25: 1684.210526 | E25: =INT(SUM($D$22:D25)) -> 5052 | G25: 4 | H25: 0.2 | I25: 7% | J25: 14.03508772 | K25: =INT(SUM($J$22:J25)) -> 42 | N25: 4 | O25: 0.2 | P25: 7% | Q25: 0.04210526316 | R25: =ROUNDDOWN(SUM($Q$22:Q25),2)/2*100 -> 6
A26: 5 | B26: 0.25 | C26: 9% | D26: 2105.263158 | E26: =INT(SUM($D$22:D26)) -> 7157 | G26: 5 | H26: 0.25 | I26: 9% | J26: 17.54385965 | K26: =INT(SUM($J$22:J26)) -> 59 | N26: 5 | O26: 0.25 | P26: 9% | Q26: 0.05263157895 | R26: =ROUNDDOWN(SUM($Q$22:Q26),2)/2*100 -> 8.5
A27: 6 | B27: 0.3 | C27: 11% | D27: 2526.315789 | E27: =INT(SUM($D$22:D27)) -> 9684 | G27: 6 | H27: 0.3 | I27: 11% | J27: 21.05263158 | K27: =INT(SUM($J$22:J27)) -> 80 | N27: 6 | O27: 0.3 | P27: 11% | Q27: 0.06315789474 | R27: =ROUNDDOWN(SUM($Q$22:Q27),2)/2*100 -> 12
A28: 7 | B28: 0.35 | C28: 12% | D28: 2947.368421 | E28: =INT(SUM($D$22:D28)) -> 12631 | G28: 7 | H28: 0.35 | I28: 12% | J28: 24.56140351 | K28: =INT(SUM($J$22:J28)) -> 105 | N28: 7 | O28: 0.35 | P28: 12% | Q28: 0.07368421053 | R28: =ROUNDDOWN(SUM($Q$22:Q28),2)/2*100 -> 15.5
A29: 8 | B29: 0.4 | C29: 14% | D29: 3368.421053 | E29: =INT(SUM($D$22:D29)) -> 16000 | G29: 8 | H29: 0.4 | I29: 14% | J29: 28.07017544 | K29: =INT(SUM($J$22:J29)) -> 133 | N29: 8 | O29: 0.4 | P29: 14% | Q29: 0.08421052632 | R29: =ROUNDDOWN(SUM($Q$22:Q29),2)/2*100 -> 20
A30: 9 | B30: 0.45 | C30: 16% | D30: 3789.473684 | E30: =INT(SUM($D$22:D30)) -> 19789 | G30: 9 | H30: 0.45 | I30: 16% | J30: 31.57894737 | K30: =INT(SUM($J$22:J30)) -> 164 | N30: 9 | O30: 0.45 | P30: 16% | Q30: 0.09473684211 | R30: =ROUNDDOWN(SUM($Q$22:Q30),2)/2*100 -> 24.5
A31: 10 | B31: 0.5 | C31: 18% | D31: 4210.526316 | E31: =INT(SUM($D$22:D31)) -> 24000 | G31: 10 | H31: 0.5 | I31: 18% | J31: 35.0877193 | K31: =INT(SUM($J$22:J31)) -> 200 | N31: 10 | O31: 0.5 | P31: 18% | Q31: 0.1052631579 | R31: =ROUNDDOWN(SUM($Q$22:Q31),2)/2*100 -> 30
A35: 橙色生命加成配件 | C35: 20
A36: 橙色攻击加成配件 | C36: 20
A38: 生命属性 | G38: 生命属性 | N38: 效果命中
A39: 等级 | B39: 权重 | C39: 属性占比 | D39: 每级数值 | E39: 当前阶级 | G39: 等级 | H39: 权重 | I39: 属性占比 | J39: 每级数值 | K39: 当前阶级 | N39: 等级 | O39: 权重 | P39: 属性占比 | Q39: 每级数值 | R39: 当前阶级
A40: 1 | B40: 0.1 | C40: =B40/SUM($B$22:$B$31) -> 4% | D40: =C40*$B$3*32/20*10 -> 1347.368421 | E40: =INT(SUM($D$40:D40)) -> 1347 | G40: 1 | H40: 0.1 | I40: =H40/SUM($B$22:$B$31) -> 4% | J40: =I40*$B$4*32/20 -> 11.22807018 | K40: =INT(SUM($J$40:J40)) -> 11 | N40: 1 | O40: 0.1 | P40: =O40/SUM($B$22:$B$31) -> 4% | Q40: =P40*0.3 -> 0.01052631579 | R40: =ROUNDDOWN(SUM($Q$40:Q40),2)*100 -> 1
A41: 2 | B41: 0.15 | C41: =B41/SUM($B$22:$B$31) -> 5% | D41: =C41*$B$3*32/20*10 -> 2021.052632 | E41: =INT(SUM($D$40:D41)) -> 3368 | G41: 2 | H41: 0.15 | I41: =H41/SUM($B$22:$B$31) -> 5% | J41: =I41*$B$4*32/20 -> 16.84210526 | K41: =INT(SUM($J$40:J41)) -> 28 | N41: 2 | O41: 0.15 | P41: =O41/SUM($B$22:$B$31) -> 5% | Q41: =P41*0.3 -> 0.01578947368 | R41: =ROUNDDOWN(SUM($Q$40:Q41),2)*100 -> 2
A42: 3 | B42: 0.15 | C42: 5% | D42: 2021.052632 | E42: =INT(SUM($D$40:D42)) -> 5389 | G42: 3 | H42: 0.15 | I42: 5% | J42: 16.84210526 | K42: =INT(SUM($J$40:J42)) -> 44 | N42: 3 | O42: 0.15 | P42: 5% | Q42: 0.01578947368 | R42: =ROUNDDOWN(SUM($Q$40:Q42),2)*100 -> 4
A43: 4 | B43: 0.2 | C43: 7% | D43: 2694.736842 | E43: =INT(SUM($D$40:D43)) -> 8084 | G43: 4 | H43: 0.2 | I43: 7% | J43: 22.45614035 | K43: =INT(SUM($J$40:J43)) -> 67 | N43: 4 | O43: 0.2 | P43: 7% | Q43: 0.02105263158 | R43: =ROUNDDOWN(SUM($Q$40:Q43),2)*100 -> 6
A44: 5 | B44: 0.25 | C44: 9% | D44: 3368.421053 | E44: =INT(SUM($D$40:D44)) -> 11452 | G44: 5 | H44: 0.25 | I44: 9% | J44: 28.07017544 | K44: =INT(SUM($J$40:J44)) -> 95 | N44: 5 | O44: 0.25 | P44: 9% | Q44: 0.02631578947 | R44: =ROUNDDOWN(SUM($Q$40:Q44),2)*100 -> 8
A45: 6 | B45: 0.3 | C45: 11% | D45: 4042.105263 | E45: =INT(SUM($D$40:D45)) -> 15494 | G45: 6 | H45: 0.3 | I45: 11% | J45: 33.68421053 | K45: =INT(SUM($J$40:J45)) -> 129 | N45: 6 | O45: 0.3 | P45: 11% | Q45: 0.03157894737 | R45: =ROUNDDOWN(SUM($Q$40:Q45),2)*100 -> 12
A46: 7 | B46: 0.35 | C46: 12% | D46: 4715.789474 | E46: =INT(SUM($D$40:D46)) -> 20210 | G46: 7 | H46: 0.35 | I46: 12% | J46: 39.29824561 | K46: =INT(SUM($J$40:J46)) -> 168 | N46: 7 | O46: 0.35 | P46: 12% | Q46: 0.03684210526 | R46: =ROUNDDOWN(SUM($Q$40:Q46),2)*100 -> 15
A47: 8 | B47: 0.4 | C47: 14% | D47: 5389.473684 | E47: =INT(SUM($D$40:D47)) -> 25600 | G47: 8 | H47: 0.4 | I47: 14% | J47: 44.9122807 | K47: =INT(SUM($J$40:J47)) -> 213 | N47: 8 | O47: 0.4 | P47: 14% | Q47: 0.04210526316 | R47: =ROUNDDOWN(SUM($Q$40:Q47),2)*100 -> 20
A48: 9 | B48: 0.45 | C48: 16% | D48: 6063.157895 | E48: =INT(SUM($D$40:D48)) -> 31663 | G48: 9 | H48: 0.45 | I48: 16% | J48: 50.52631579 | K48: =INT(SUM($J$40:J48)) -> 263 | N48: 9 | O48: 0.45 | P48: 16% | Q48: 0.04736842105 | R48: =ROUNDDOWN(SUM($Q$40:Q48),2)*100 -> 24
A49: 10 | B49: 0.5 | C49: 18% | D49: 6736.842105 | E49: =INT(SUM($D$40:D49)) -> 38400 | G49: 10 | H49: 0.5 | I49: 18% | J49: 56.14035088 | K49: =INT(SUM($J$40:J49)) -> 320 | N49: 10 | O49: 0.5 | P49: 18% | Q49: 0.05263157895 | R49: =ROUNDDOWN(SUM($Q$40:Q49),2)*100 -> 30
A54: 速度属性
A55: 等级 | B55: 权重 | C55: 属性占比 | D55: 每级数值 | E55: 当前阶级
A56: 1 | B56: 0.1 | C56: =B56/SUM($B$22:$B$31) -> 4% | D56: =C56*$G$3*$G$1/2 -> 13.95649123 | E56: =INT(SUM($D$56:D56)) -> 13
A57: 2 | B57: 0.15 | C57: =B57/SUM($B$22:$B$31) -> 5% | D57: =C57*$G$3*$G$1/2 -> 20.93473684 | E57: =INT(SUM($D$56:D57)) -> 34
A58: 3 | B58: 0.15 | C58: 5% | D58: 20.93473684 | E58: =INT(SUM($D$56:D58)) -> 55
A59: 4 | B59: 0.2 | C59: 7% | D59: 27.91298246 | E59: =INT(SUM($D$56:D59)) -> 83
A60: 5 | B60: 0.25 | C60: 9% | D60: 34.89122807 | E60: =INT(SUM($D$56:D60)) -> 118
A61: 6 | B61: 0.3 | C61: 11% | D61: 41.86947368 | E61: =INT(SUM($D$56:D61)) -> 160
A62: 7 | B62: 0.35 | C62: 12% | D62: 48.8477193 | E62: =INT(SUM($D$56:D62)) -> 209
A63: 8 | B63: 0.4 | C63: 14% | D63: 55.82596491 | E63: =INT(SUM($D$56:D63)) -> 265
A64: 9 | B64: 0.45 | C64: 16% | D64: 62.80421053 | E64: =INT(SUM($D$56:D64)) -> 327
A65: 10 | B65: 0.5 | C65: 18% | D65: 69.78245614 | E65: =INT(SUM($D$56:D65)) -> 397

Sheet 配件表
A1: 配件名称 | B1: 配件id | C1: 阶级 | D1: 消耗物品1 | E1: 数量 | F1: 消耗物品2 | G1: 数量 | H1: 输出1 | I1: 输出2 | J1: 消耗 | K1: 属性1 | L1: 数值 | M1: 属性2 | N1: 数值 | O1: 属性3 | P1: 数值 | Q1: 输出 | R1: 异妖 | S1: 品质
A2: ="配件"&B2 -> 配件1 | B2: 1 | C2: 1 | D2: 6001 | E2: 1 | F2: 5 | G2: 0 | H2: =[1]!SUMSTRING(D2:E2,"#") ->  | I2: =[1]!SUMSTRING(F2:G2,"#") ->  | J2: =[1]!SUMSTRING(H2:I2,"|") ->  | K2: 生命 | L2: 842 | M2: 攻击 | N2: 7 | Q2: =IF(O2="",VLOOKUP(K2,属性表!$H:$I,2,0)&"#"&配件表!L2&"|"&VLOOKUP(M2,属性表!$H:$I,2,0)&"#"&配件表!N2,VLOOKUP(K2,属性表!$H:$I,2,0)&"#"&配件表!L2&"|"&VLOOKUP(M2,属性表!$H:$I,2,0)&"#"&配件表!N2&"|"&VLOOKUP(O2,属性表!$H:$I,2,0)&"#"&配件表!P2) -> 1#842|2#7 | R2: =VLOOKUP(B2,$Y:$Z,2,0) -> 异妖1 | S2: =VLOOKUP(R2,$Z:$AA,2,0) -> 紫色 | Y2: 1 | Z2: 异妖1 | AA2: 紫色
A3: ="配件"&B3 -> 配件1 | B3: 1 | C3: 2 | D3: 6001 | E3: 1 | F3: 5 | G3: 40 | H3: =[1]!SUMSTRING(D3:E3,"#") ->  | I3: =[1]!SUMSTRING(F3:G3,"#") ->  | J3: =[1]!SUMSTRING(H3:I3,"|") ->  | K3: 生命 | L3: 2105 | M3: 攻击 | N3: 17 | Q3: =IF(O3="",VLOOKUP(K3,属性表!$H:$I,2,0)&"#"&配件表!L3&"|"&VLOOKUP(M3,属性表!$H:$I,2,0)&"#"&配件表!N3,VLOOKUP(K3,属性表!$H:$I,2,0)&"#"&配件表!L3&"|"&VLOOKUP(M3,属性表!$H:$I,2,0)&"#"&配件表!N3&"|"&VLOOKUP(O3,属性表!$H:$I,2,0)&"#"&配件表!P3) -> 1#2105|2#17 | R3: 异妖1 | S3: 紫色 | Y3: 2 | Z3: 异妖1 | AA3: 紫色
A4: 配件1 | B4: 1 | C4: 3 | D4: 6001 | E4: 2 | F4: 5 | G4: 65 | H4: =[1]!SUMSTRING(D4:E4,"#") ->  | I4: =[1]!SUMSTRING(F4:G4,"#") ->  | J4: =[1]!SUMSTRING(H4:I4,"|") ->  | K4: 生命 | L4: 3368 | M4: 攻击 | N4: 28 | Q4: =IF(O4="",VLOOKUP(K4,属性表!$H:$I,2,0)&"#"&配件表!L4&"|"&VLOOKUP(M4,属性表!$H:$I,2,0)&"#"&配件表!N4,VLOOKUP(K4,属性表!$H:$I,2,0)&"#"&配件表!L4&"|"&VLOOKUP(M4,属性表!$H:$I,2,0)&"#"&配件表!N4&"|"&VLOOKUP(O4,属性表!$H:$I,2,0)&"#"&配件表!P4) -> 1#3368|2#28 | R4: 异妖1 | S4: 紫色 | Y4: 3 | Z4: 异妖1 | AA4: 紫色 | AB4: =[1]!SUMSTRING(Y2:Y4,"#") -> 
A5: 配件1 | B5: 1 | C5: 4 | D5: 6001 | E5: 2 | F5: 5 | G5: 100 | H5: =[1]!SUMSTRING(D5:E5,"#") ->  | I5: =[1]!SUMSTRING(F5:G5,"#") ->  | J5: =[1]!SUMSTRING(H5:I5,"|") ->  | K5: 生命 | L5: 5052 | M5: 攻击 | N5: 42 | Q5: =IF(O5="",VLOOKUP(K5,属性表!$H:$I,2,0)&"#"&配件表!L5&"|"&VLOOKUP(M5,属性表!$H:$I,2,0)&"#"&配件表!N5,VLOOKUP(K5,属性表!$H:$I,2,0)&"#"&配件表!L5&"|"&VLOOKUP(M5,属性表!$H:$I,2,0)&"#"&配件表!N5&"|"&VLOOKUP(O5,属性表!$H:$I,2,0)&"#"&配件表!P5) -> 1#5052|2#42 | R5: 异妖1 | S5: 紫色 | Y5: 4 | Z5: ="异妖"&CEILING(Y5/3,1) -> 异妖2 | AA5: 紫色
A6: 配件1 | B6: 1 | C6: 5 | D6: 6001 | E6: 3 | F6: 5 | G6: 135 | H6: =[1]!SUMSTRING(D6:E6,"#") ->  | I6: =[1]!SUMSTRING(F6:G6,"#") ->  | J6: =[1]!SUMSTRING(H6:I6,"|") ->  | K6: 生命 | L6: 7157 | M6: 攻击 | N6: 59 | Q6: =IF(O6="",VLOOKUP(K6,属性表!$H:$I,2,0)&"#"&配件表!L6&"|"&VLOOKUP(M6,属性表!$H:$I,2,0)&"#"&配件表!N6,VLOOKUP(K6,属性表!$H:$I,2,0)&"#"&配件表!L6&"|"&VLOOKUP(M6,属性表!$H:$I,2,0)&"#"&配件表!N6&"|"&VLOOKUP(O6,属性表!$H:$I,2,0)&"#"&配件表!P6) -> 1#7157|2#59 | R6: 异妖1 | S6: 紫色 | Y6: 5 | Z6: ="异妖"&CEILING(Y6/3,1) -> 异妖2 | AA6: 紫色
A7: 配件1 | B7: 1 | C7: 6 | D7: 6001 | E7: 3 | F7: 5 | G7: 180 | H7: =[1]!SUMSTRING(D7:E7,"#") ->  | I7: =[1]!SUMSTRING(F7:G7,"#") ->  | J7: =[1]!SUMSTRING(H7:I7,"|") ->  | K7: 生命 | L7: 9684 | M7: 攻击 | N7: 80 | Q7: =IF(O7="",VLOOKUP(K7,属性表!$H:$I,2,0)&"#"&配件表!L7&"|"&VLOOKUP(M7,属性表!$H:$I,2,0)&"#"&配件表!N7,VLOOKUP(K7,属性表!$H:$I,2,0)&"#"&配件表!L7&"|"&VLOOKUP(M7,属性表!$H:$I,2,0)&"#"&配件表!N7&"|"&VLOOKUP(O7,属性表!$H:$I,2,0)&"#"&配件表!P7) -> 1#9684|2#80 | R7: 异妖1 | S7: 紫色 | Y7: 6 | Z7: 异妖2 | AA7: 紫色 | AB7: =[1]!SUMSTRING(Y5:Y7,"#") -> 
A8: 配件1 | B8: 1 | C8: 7 | D8: 6001 | E8: 4 | F8: 5 | G8: 235 | H8: =[1]!SUMSTRING(D8:E8,"#") ->  | I8: =[1]!SUMSTRING(F8:G8,"#") ->  | J8: =[1]!SUMSTRING(H8:I8,"|") ->  | K8: 生命 | L8: 12631 | M8: 攻击 | N8: 105 | Q8: =IF(O8="",VLOOKUP(K8,属性表!$H:$I,2,0)&"#"&配件表!L8&"|"&VLOOKUP(M8,属性表!$H:$I,2,0)&"#"&配件表!N8,VLOOKUP(K8,属性表!$H:$I,2,0)&"#"&配件表!L8&"|"&VLOOKUP(M8,属性表!$H:$I,2,0)&"#"&配件表!N8&"|"&VLOOKUP(O8,属性表!$H:$I,2,0)&"#"&配件表!P8) -> 1#12631|2#105 | R8: 异妖1 | S8: 紫色 | Y8: 7 | Z8: 异妖3 | AA8: 紫色
A9: 配件1 | B9: 1 | C9: 8 | D9: 6001 | E9: 5 | F9: 5 | G9: 290 | H9: =[1]!SUMSTRING(D9:E9,"#") ->  | I9: =[1]!SUMSTRING(F9:G9,"#") ->  | J9: =[1]!SUMSTRING(H9:I9,"|") ->  | K9: 生命 | L9: 16000 | M9: 攻击 | N9: 133 | Q9: =IF(O9="",VLOOKUP(K9,属性表!$H:$I,2,0)&"#"&配件表!L9&"|"&VLOOKUP(M9,属性表!$H:$I,2,0)&"#"&配件表!N9,VLOOKUP(K9,属性表!$H:$I,2,0)&"#"&配件表!L9&"|"&VLOOKUP(M9,属性表!$H:$I,2,0)&"#"&配件表!N9&"|"&VLOOKUP(O9,属性表!$H:$I,2,0)&"#"&配件表!P9) -> 1#16000|2#133 | R9: 异妖1 | S9: 紫色 | Y9: 8 | Z9: 异妖3 | AA9: 紫色
A10: 配件1 | B10: 1 | C10: 9 | D10: 6001 | E10: 6 | F10: 5 | G10: 355 | H10: =[1]!SUMSTRING(D10:E10,"#") ->  | I10: =[1]!SUMSTRING(F10:G10,"#") ->  | J10: =[1]!SUMSTRING(H10:I10,"|") ->  | K10: 生命 | L10: 19789 | M10: 攻击 | N10: 164 | Q10: =IF(O10="",VLOOKUP(K10,属性表!$H:$I,2,0)&"#"&配件表!L10&"|"&VLOOKUP(M10,属性表!$H:$I,2,0)&"#"&配件表!N10,VLOOKUP(K10,属性表!$H:$I,2,0)&"#"&配件表!L10&"|"&VLOOKUP(M10,属性表!$H:$I,2,0)&"#"&配件表!N10&"|"&VLOOKUP(O10,属性表!$H:$I,2,0)&"#"&配件表!P10) -> 1#19789|2#164 | R10: 异妖1 | S10: 紫色 | Y10: 9 | Z10: 异妖3 | AA10: 紫色 | AB10: =[1]!SUMSTRING(Y8:Y10,"#") -> 
A11: 配件1 | B11: 1 | C11: 10 | D11: 6001 | E11: 8 | F11: 5 | G11: 420 | H11: =[1]!SUMSTRING(D11:E11,"#") ->  | I11: =[1]!SUMSTRING(F11:G11,"#") ->  | J11: =[1]!SUMSTRING(H11:I11,"|") ->  | K11: 生命 | L11: 24000 | M11: 攻击 | N11: 200 | Q11: =IF(O11="",VLOOKUP(K11,属性表!$H:$I,2,0)&"#"&配件表!L11&"|"&VLOOKUP(M11,属性表!$H:$I,2,0)&"#"&配件表!N11,VLOOKUP(K11,属性表!$H:$I,2,0)&"#"&配件表!L11&"|"&VLOOKUP(M11,属性表!$H:$I,2,0)&"#"&配件表!N11&"|"&VLOOKUP(O11,属性表!$H:$I,2,0)&"#"&配件表!P11) -> 1#24000|2#200 | R11: 异妖1 | S11: 紫色 | Y11: 10 | Z11: 异妖4 | AA11: 紫色
A12: 配件2 | B12: =B2+1 -> 2 | C12: =C2 -> 1 | D12: =D2+1 -> 6002 | E12: =E2 -> 1 | F12: =F2 -> 5 | G12: =G2 -> 0 | H12: =[1]!SUMSTRING(D12:E12,"#") ->  | I12: =[1]!SUMSTRING(F12:G12,"#") ->  | J12: =[1]!SUMSTRING(H12:I12,"|") ->  | K12: 生命 | L12: 842 | M12: 护甲 | N12: =N2*5 -> 35 | Q12: =IF(O12="",VLOOKUP(K12,属性表!$H:$I,2,0)&"#"&配件表!L12&"|"&VLOOKUP(M12,属性表!$H:$I,2,0)&"#"&配件表!N12,VLOOKUP(K12,属性表!$H:$I,2,0)&"#"&配件表!L12&"|"&VLOOKUP(M12,属性表!$H:$I,2,0)&"#"&配件表!N12&"|"&VLOOKUP(O12,属性表!$H:$I,2,0)&"#"&配件表!P12) -> 1#842|3#35 | R12: 异妖1 | S12: 紫色 | Y12: 11 | Z12: 异妖4 | AA12: 紫色
A13: 配件2 | B13: =B3+1 -> 2 | C13: =C3 -> 2 | D13: =D3+1 -> 6002 | E13: =E3 -> 1 | F13: 5 | G13: 40 | H13: =[1]!SUMSTRING(D13:E13,"#") ->  | I13: =[1]!SUMSTRING(F13:G13,"#") ->  | J13: =[1]!SUMSTRING(H13:I13,"|") ->  | K13: 生命 | L13: 2105 | M13: 护甲 | N13: =N3*5 -> 85 | Q13: =IF(O13="",VLOOKUP(K13,属性表!$H:$I,2,0)&"#"&配件表!L13&"|"&VLOOKUP(M13,属性表!$H:$I,2,0)&"#"&配件表!N13,VLOOKUP(K13,属性表!$H:$I,2,0)&"#"&配件表!L13&"|"&VLOOKUP(M13,属性表!$H:$I,2,0)&"#"&配件表!N13&"|"&VLOOKUP(O13,属性表!$H:$I,2,0)&"#"&配件表!P13) -> 1#2105|3#85 | R13: 异妖1 | S13: 紫色 | Y13: 12 | Z13: 异妖4 | AA13: 紫色 | AB13: =[1]!SUMSTRING(Y11:Y13,"#") -> 
A14: 配件2 | B14: 2 | C14: 3 | D14: 6002 | E14: =E4 -> 2 | F14: 5 | G14: 65 | H14: =[1]!SUMSTRING(D14:E14,"#") ->  | I14: =[1]!SUMSTRING(F14:G14,"#") ->  | J14: =[1]!SUMSTRING(H14:I14,"|") ->  | K14: 生命 | L14: 3368 | M14: 护甲 | N14: 140 | Q14: =IF(O14="",VLOOKUP(K14,属性表!$H:$I,2,0)&"#"&配件表!L14&"|"&VLOOKUP(M14,属性表!$H:$I,2,0)&"#"&配件表!N14,VLOOKUP(K14,属性表!$H:$I,2,0)&"#"&配件表!L14&"|"&VLOOKUP(M14,属性表!$H:$I,2,0)&"#"&配件表!N14&"|"&VLOOKUP(O14,属性表!$H:$I,2,0)&"#"&配件表!P14) -> 1#3368|3#140 | R14: 异妖1 | S14: 紫色 | Y14: 13 | Z14: ="异妖"&CEILING(Y14/4,1)+1 -> 异妖5 | AA14: 橙色
A15: 配件2 | B15: 2 | C15: 4 | D15: 6002 | E15: =E5 -> 2 | F15: 5 | G15: 100 | H15: =[1]!SUMSTRING(D15:E15,"#") ->  | I15: =[1]!SUMSTRING(F15:G15,"#") ->  | J15: =[1]!SUMSTRING(H15:I15,"|") ->  | K15: 生命 | L15: 5052 | M15: 护甲 | N15: 210 | Q15: =IF(O15="",VLOOKUP(K15,属性表!$H:$I,2,0)&"#"&配件表!L15&"|"&VLOOKUP(M15,属性表!$H:$I,2,0)&"#"&配件表!N15,VLOOKUP(K15,属性表!$H:$I,2,0)&"#"&配件表!L15&"|"&VLOOKUP(M15,属性表!$H:$I,2,0)&"#"&配件表!N15&"|"&VLOOKUP(O15,属性表!$H:$I,2,0)&"#"&配件表!P15) -> 1#5052|3#210 | R15: 异妖1 | S15: 紫色 | Y15: 14 | Z15: ="异妖"&CEILING(Y15/4,1)+1 -> 异妖5 | AA15: 橙色
A16: 配件2 | B16: 2 | C16: 5 | D16: 6002 | E16: =E6 -> 3 | F16: 5 | G16: 135 | H16: =[1]!SUMSTRING(D16:E16,"#") ->  | I16: =[1]!SUMSTRING(F16:G16,"#") ->  | J16: =[1]!SUMSTRING(H16:I16,"|") ->  | K16: 生命 | L16: 7157 | M16: 护甲 | N16: 295 | Q16: =IF(O16="",VLOOKUP(K16,属性表!$H:$I,2,0)&"#"&配件表!L16&"|"&VLOOKUP(M16,属性表!$H:$I,2,0)&"#"&配件表!N16,VLOOKUP(K16,属性表!$H:$I,2,0)&"#"&配件表!L16&"|"&VLOOKUP(M16,属性表!$H:$I,2,0)&"#"&配件表!N16&"|"&VLOOKUP(O16,属性表!$H:$I,2,0)&"#"&配件表!P16) -> 1#7157|3#295 | R16: 异妖1 | S16: 紫色 | Y16: 15 | Z16: 异妖5 | AA16: 橙色
A17: 配件2 | B17: 2 | C17: 6 | D17: 6002 | E17: =E7 -> 3 | F17: 5 | G17: 180 | H17: =[1]!SUMSTRING(D17:E17,"#") ->  | I17: =[1]!SUMSTRING(F17:G17,"#") ->  | J17: =[1]!SUMSTRING(H17:I17,"|") ->  | K17: 生命 | L17: 9684 | M17: 护甲 | N17: 400 | Q17: =IF(O17="",VLOOKUP(K17,属性表!$H:$I,2,0)&"#"&配件表!L17&"|"&VLOOKUP(M17,属性表!$H:$I,2,0)&"#"&配件表!N17,VLOOKUP(K17,属性表!$H:$I,2,0)&"#"&配件表!L17&"|"&VLOOKUP(M17,属性表!$H:$I,2,0)&"#"&配件表!N17&"|"&VLOOKUP(O17,属性表!$H:$I,2,0)&"#"&配件表!P17) -> 1#9684|3#400 | R17: 异妖1 | S17: 紫色 | Y17: 16 | Z17: 异妖5 | AA17: 橙色 | AB17: =[1]!SUMSTRING(Y14:Y17,"#") -> 
A18: 配件2 | B18: 2 | C18: 7 | D18: 6002 | E18: =E8 -> 4 | F18: 5 | G18: 235 | H18: =[1]!SUMSTRING(D18:E18,"#") ->  | I18: =[1]!SUMSTRING(F18:G18,"#") ->  | J18: =[1]!SUMSTRING(H18:I18,"|") ->  | K18: 生命 | L18: 12631 | M18: 护甲 | N18: 525 | Q18: =IF(O18="",VLOOKUP(K18,属性表!$H:$I,2,0)&"#"&配件表!L18&"|"&VLOOKUP(M18,属性表!$H:$I,2,0)&"#"&配件表!N18,VLOOKUP(K18,属性表!$H:$I,2,0)&"#"&配件表!L18&"|"&VLOOKUP(M18,属性表!$H:$I,2,0)&"#"&配件表!N18&"|"&VLOOKUP(O18,属性表!$H:$I,2,0)&"#"&配件表!P18) -> 1#12631|3#525 | R18: 异妖1 | S18: 紫色 | Y18: 17 | Z18: 异妖6 | AA18: 橙色
A19: 配件2 | B19: 2 | C19: 8 | D19: 6002 | E19: =E9 -> 5 | F19: 5 | G19: 290 | H19: =[1]!SUMSTRING(D19:E19,"#") ->  | I19: =[1]!SUMSTRING(F19:G19,"#") ->  | J19: =[1]!SUMSTRING(H19:I19,"|") ->  | K19: 生命 | L19: 16000 | M19: 护甲 | N19: 665 | Q19: =IF(O19="",VLOOKUP(K19,属性表!$H:$I,2,0)&"#"&配件表!L19&"|"&VLOOKUP(M19,属性表!$H:$I,2,0)&"#"&配件表!N19,VLOOKUP(K19,属性表!$H:$I,2,0)&"#"&配件表!L19&"|"&VLOOKUP(M19,属性表!$H:$I,2,0)&"#"&配件表!N19&"|"&VLOOKUP(O19,属性表!$H:$I,2,0)&"#"&配件表!P19) -> 1#16000|3#665 | R19: 异妖1 | S19: 紫色 | Y19: 18 | Z19: 异妖6 | AA19: 橙色
A20: 配件2 | B20: 2 | C20: 9 | D20: 6002 | E20: =E10 -> 6 | F20: 5 | G20: 355 | H20: =[1]!SUMSTRING(D20:E20,"#") ->  | I20: =[1]!SUMSTRING(F20:G20,"#") ->  | J20: =[1]!SUMSTRING(H20:I20,"|") ->  | K20: 生命 | L20: 19789 | M20: 护甲 | N20: 820 | Q20: =IF(O20="",VLOOKUP(K20,属性表!$H:$I,2,0)&"#"&配件表!L20&"|"&VLOOKUP(M20,属性表!$H:$I,2,0)&"#"&配件表!N20,VLOOKUP(K20,属性表!$H:$I,2,0)&"#"&配件表!L20&"|"&VLOOKUP(M20,属性表!$H:$I,2,0)&"#"&配件表!N20&"|"&VLOOKUP(O20,属性表!$H:$I,2,0)&"#"&配件表!P20) -> 1#19789|3#820 | R20: 异妖1 | S20: 紫色 | Y20: 19 | Z20: 异妖6 | AA20: 橙色
A21: 配件2 | B21: 2 | C21: 10 | D21: 6002 | E21: =E11 -> 8 | F21: 5 | G21: 420 | H21: =[1]!SUMSTRING(D21:E21,"#") ->  | I21: =[1]!SUMSTRING(F21:G21,"#") ->  | J21: =[1]!SUMSTRING(H21:I21,"|") ->  | K21: 生命 | L21: 24000 | M21: 护甲 | N21: 1000 | Q21: =IF(O21="",VLOOKUP(K21,属性表!$H:$I,2,0)&"#"&配件表!L21&"|"&VLOOKUP(M21,属性表!$H:$I,2,0)&"#"&配件表!N21,VLOOKUP(K21,属性表!$H:$I,2,0)&"#"&配件表!L21&"|"&VLOOKUP(M21,属性表!$H:$I,2,0)&"#"&配件表!N21&"|"&VLOOKUP(O21,属性表!$H:$I,2,0)&"#"&配件表!P21) -> 1#24000|3#1000 | R21: 异妖1 | S21: 紫色 | Y21: 20 | Z21: 异妖6 | AA21: 橙色 | AB21: =[1]!SUMSTRING(Y18:Y21,"#") -> 
A22: 配件3 | B22: 3 | C22: 1 | D22: 6003 | E22: =E12 -> 1 | F22: 5 | G22: 0 | H22: =[1]!SUMSTRING(D22:E22,"#") ->  | I22: =[1]!SUMSTRING(F22:G22,"#") ->  | J22: =[1]!SUMSTRING(H22:I22,"|") ->  | K22: 攻击 | L22: 7 | M22: 护甲 | N22: 70 | Q22: =IF(O22="",VLOOKUP(K22,属性表!$H:$I,2,0)&"#"&配件表!L22&"|"&VLOOKUP(M22,属性表!$H:$I,2,0)&"#"&配件表!N22,VLOOKUP(K22,属性表!$H:$I,2,0)&"#"&配件表!L22&"|"&VLOOKUP(M22,属性表!$H:$I,2,0)&"#"&配件表!N22&"|"&VLOOKUP(O22,属性表!$H:$I,2,0)&"#"&配件表!P22) -> 2#7|3#70 | R22: 异妖1 | S22: 紫色 | Y22: 21 | Z22: 异妖7 | AA22: 橙色
A23: 配件3 | B23: 3 | C23: 2 | D23: 6003 | E23: =E13 -> 1 | F23: 5 | G23: 40 | H23: =[1]!SUMSTRING(D23:E23,"#") ->  | I23: =[1]!SUMSTRING(F23:G23,"#") ->  | J23: =[1]!SUMSTRING(H23:I23,"|") ->  | K23: 攻击 | L23: 17 | M23: 护甲 | N23: 175 | Q23: =IF(O23="",VLOOKUP(K23,属性表!$H:$I,2,0)&"#"&配件表!L23&"|"&VLOOKUP(M23,属性表!$H:$I,2,0)&"#"&配件表!N23,VLOOKUP(K23,属性表!$H:$I,2,0)&"#"&配件表!L23&"|"&VLOOKUP(M23,属性表!$H:$I,2,0)&"#"&配件表!N23&"|"&VLOOKUP(O23,属性表!$H:$I,2,0)&"#"&配件表!P23) -> 2#17|3#175 | R23: 异妖1 | S23: 紫色 | Y23: 22 | Z23: 异妖7 | AA23: 橙色
A24: 配件3 | B24: 3 | C24: 3 | D24: 6003 | E24: =E14 -> 2 | F24: 5 | G24: 65 | H24: =[1]!SUMSTRING(D24:E24,"#") ->  | I24: =[1]!SUMSTRING(F24:G24,"#") ->  | J24: =[1]!SUMSTRING(H24:I24,"|") ->  | K24: 攻击 | L24: 28 | M24: 护甲 | N24: 280 | Q24: =IF(O24="",VLOOKUP(K24,属性表!$H:$I,2,0)&"#"&配件表!L24&"|"&VLOOKUP(M24,属性表!$H:$I,2,0)&"#"&配件表!N24,VLOOKUP(K24,属性表!$H:$I,2,0)&"#"&配件表!L24&"|"&VLOOKUP(M24,属性表!$H:$I,2,0)&"#"&配件表!N24&"|"&VLOOKUP(O24,属性表!$H:$I,2,0)&"#"&配件表!P24) -> 2#28|3#280 | R24: 异妖1 | S24: 紫色 | Y24: 23 | Z24: 异妖7 | AA24: 橙色
A25: 配件3 | B25: 3 | C25: 4 | D25: 6003 | E25: =E15 -> 2 | F25: 5 | G25: 100 | H25: =[1]!SUMSTRING(D25:E25,"#") ->  | I25: =[1]!SUMSTRING(F25:G25,"#") ->  | J25: =[1]!SUMSTRING(H25:I25,"|") ->  | K25: 攻击 | L25: 42 | M25: 护甲 | N25: 420 | Q25: =IF(O25="",VLOOKUP(K25,属性表!$H:$I,2,0)&"#"&配件表!L25&"|"&VLOOKUP(M25,属性表!$H:$I,2,0)&"#"&配件表!N25,VLOOKUP(K25,属性表!$H:$I,2,0)&"#"&配件表!L25&"|"&VLOOKUP(M25,属性表!$H:$I,2,0)&"#"&配件表!N25&"|"&VLOOKUP(O25,属性表!$H:$I,2,0)&"#"&配件表!P25) -> 2#42|3#420 | R25: 异妖1 | S25: 紫色 | Y25: 24 | Z25: 异妖7 | AA25: 橙色 | AB25: =[1]!SUMSTRING(Y22:Y25,"#") -> 
A26: 配件3 | B26: 3 | C26: 5 | D26: 6003 | E26: =E16 -> 3 | F26: 5 | G26: 135 | H26: =[1]!SUMSTRING(D26:E26,"#") ->  | I26: =[1]!SUMSTRING(F26:G26,"#") ->  | J26: =[1]!SUMSTRING(H26:I26,"|") ->  | K26: 攻击 | L26: 59 | M26: 护甲 | N26: 595 | Q26: =IF(O26="",VLOOKUP(K26,属性表!$H:$I,2,0)&"#"&配件表!L26&"|"&VLOOKUP(M26,属性表!$H:$I,2,0)&"#"&配件表!N26,VLOOKUP(K26,属性表!$H:$I,2,0)&"#"&配件表!L26&"|"&VLOOKUP(M26,属性表!$H:$I,2,0)&"#"&配件表!N26&"|"&VLOOKUP(O26,属性表!$H:$I,2,0)&"#"&配件表!P26) -> 2#59|3#595 | R26: 异妖1 | S26: 紫色 | Y26: 25 | Z26: 异妖8 | AA26: 橙色
A27: 配件3 | B27: 3 | C27: 6 | D27: 6003 | E27: =E17 -> 3 | F27: 5 | G27: 180 | H27: =[1]!SUMSTRING(D27:E27,"#") ->  | I27: =[1]!SUMSTRING(F27:G27,"#") ->  | J27: =[1]!SUMSTRING(H27:I27,"|") ->  | K27: 攻击 | L27: 80 | M27: 护甲 | N27: 805 | Q27: =IF(O27="",VLOOKUP(K27,属性表!$H:$I,2,0)&"#"&配件表!L27&"|"&VLOOKUP(M27,属性表!$H:$I,2,0)&"#"&配件表!N27,VLOOKUP(K27,属性表!$H:$I,2,0)&"#"&配件表!L27&"|"&VLOOKUP(M27,属性表!$H:$I,2,0)&"#"&配件表!N27&"|"&VLOOKUP(O27,属性表!$H:$I,2,0)&"#"&配件表!P27) -> 2#80|3#805 | R27: 异妖1 | S27: 紫色 | Y27: 26 | Z27: 异妖8 | AA27: 橙色
A28: 配件3 | B28: 3 | C28: 7 | D28: 6003 | E28: =E18 -> 4 | F28: 5 | G28: 235 | H28: =[1]!SUMSTRING(D28:E28,"#") ->  | I28: =[1]!SUMSTRING(F28:G28,"#") ->  | J28: =[1]!SUMSTRING(H28:I28,"|") ->  | K28: 攻击 | L28: 105 | M28: 护甲 | N28: 1050 | Q28: =IF(O28="",VLOOKUP(K28,属性表!$H:$I,2,0)&"#"&配件表!L28&"|"&VLOOKUP(M28,属性表!$H:$I,2,0)&"#"&配件表!N28,VLOOKUP(K28,属性表!$H:$I,2,0)&"#"&配件表!L28&"|"&VLOOKUP(M28,属性表!$H:$I,2,0)&"#"&配件表!N28&"|"&VLOOKUP(O28,属性表!$H:$I,2,0)&"#"&配件表!P28) -> 2#105|3#1050 | R28: 异妖1 | S28: 紫色 | Y28: 27 | Z28: 异妖8 | AA28: 橙色
A29: 配件3 | B29: 3 | C29: 8 | D29: 6003 | E29: =E19 -> 5 | F29: 5 | G29: 290 | H29: =[1]!SUMSTRING(D29:E29,"#") ->  | I29: =[1]!SUMSTRING(F29:G29,"#") ->  | J29: =[1]!SUMSTRING(H29:I29,"|") ->  | K29: 攻击 | L29: 133 | M29: 护甲 | N29: 1330 | Q29: =IF(O29="",VLOOKUP(K29,属性表!$H:$I,2,0)&"#"&配件表!L29&"|"&VLOOKUP(M29,属性表!$H:$I,2,0)&"#"&配件表!N29,VLOOKUP(K29,属性表!$H:$I,2,0)&"#"&配件表!L29&"|"&VLOOKUP(M29,属性表!$H:$I,2,0)&"#"&配件表!N29&"|"&VLOOKUP(O29,属性表!$H:$I,2,0)&"#"&配件表!P29) -> 2#133|3#1330 | R29: 异妖1 | S29: 紫色 | Y29: 28 | Z29: 异妖8 | AA29: 橙色 | AB29: =[1]!SUMSTRING(Y26:Y29,"#") -> 
A30: 配件3 | B30: 3 | C30: 9 | D30: 6003 | E30: =E20 -> 6 | F30: 5 | G30: 355 | H30: =[1]!SUMSTRING(D30:E30,"#") ->  | I30: =[1]!SUMSTRING(F30:G30,"#") ->  | J30: =[1]!SUMSTRING(H30:I30,"|") ->  | K30: 攻击 | L30: 164 | M30: 护甲 | N30: 1645 | Q30: =IF(O30="",VLOOKUP(K30,属性表!$H:$I,2,0)&"#"&配件表!L30&"|"&VLOOKUP(M30,属性表!$H:$I,2,0)&"#"&配件表!N30,VLOOKUP(K30,属性表!$H:$I,2,0)&"#"&配件表!L30&"|"&VLOOKUP(M30,属性表!$H:$I,2,0)&"#"&配件表!N30&"|"&VLOOKUP(O30,属性表!$H:$I,2,0)&"#"&配件表!P30) -> 2#164|3#1645 | R30: 异妖1 | S30: 紫色 | Y30: 29 | Z30: 异妖9 | AA30: 橙色
A31: 配件3 | B31: 3 | C31: 10 | D31: 6003 | E31: =E21 -> 8 | F31: 5 | G31: 420 | H31: =[1]!SUMSTRING(D31:E31,"#") ->  | I31: =[1]!SUMSTRING(F31:G31,"#") ->  | J31: =[1]!SUMSTRING(H31:I31,"|") ->  | K31: 攻击 | L31: 200 | M31: 护甲 | N31: 2000 | Q31: =IF(O31="",VLOOKUP(K31,属性表!$H:$I,2,0)&"#"&配件表!L31&"|"&VLOOKUP(M31,属性表!$H:$I,2,0)&"#"&配件表!N31,VLOOKUP(K31,属性表!$H:$I,2,0)&"#"&配件表!L31&"|"&VLOOKUP(M31,属性表!$H:$I,2,0)&"#"&配件表!N31&"|"&VLOOKUP(O31,属性表!$H:$I,2,0)&"#"&配件表!P31) -> 2#200|3#2000 | R31: 异妖1 | S31: 紫色 | Y31: 30 | Z31: 异妖9 | AA31: 橙色
A32: 配件4 | B32: 4 | C32: 1 | D32: 6004 | E32: =E22 -> 1 | F32: 5 | G32: 0 | H32: =[1]!SUMSTRING(D32:E32,"#") ->  | I32: =[1]!SUMSTRING(F32:G32,"#") ->  | J32: =[1]!SUMSTRING(H32:I32,"|") ->  | K32: 生命 | L32: 842 | M32: 攻击 | N32: 7 | Q32: =IF(O32="",VLOOKUP(K32,属性表!$H:$I,2,0)&"#"&配件表!L32&"|"&VLOOKUP(M32,属性表!$H:$I,2,0)&"#"&配件表!N32,VLOOKUP(K32,属性表!$H:$I,2,0)&"#"&配件表!L32&"|"&VLOOKUP(M32,属性表!$H:$I,2,0)&"#"&配件表!N32&"|"&VLOOKUP(O32,属性表!$H:$I,2,0)&"#"&配件表!P32) -> 1#842|2#7 | R32: 异妖2 | S32: 紫色 | Y32: 31 | Z32: 异妖9 | AA32: 橙色
A33: 配件4 | B33: 4 | C33: 2 | D33: 6004 | E33: =E23 -> 1 | F33: 5 | G33: 40 | H33: =[1]!SUMSTRING(D33:E33,"#") ->  | I33: =[1]!SUMSTRING(F33:G33,"#") ->  | J33: =[1]!SUMSTRING(H33:I33,"|") ->  | K33: 生命 | L33: 2105 | M33: 攻击 | N33: 17 | Q33: =IF(O33="",VLOOKUP(K33,属性表!$H:$I,2,0)&"#"&配件表!L33&"|"&VLOOKUP(M33,属性表!$H:$I,2,0)&"#"&配件表!N33,VLOOKUP(K33,属性表!$H:$I,2,0)&"#"&配件表!L33&"|"&VLOOKUP(M33,属性表!$H:$I,2,0)&"#"&配件表!N33&"|"&VLOOKUP(O33,属性表!$H:$I,2,0)&"#"&配件表!P33) -> 1#2105|2#17 | R33: 异妖2 | S33: 紫色 | Y33: 32 | Z33: 异妖9 | AA33: 橙色 | AB33: =[1]!SUMSTRING(Y30:Y33,"#") -> 
A34: 配件4 | B34: 4 | C34: 3 | D34: 6004 | E34: =E24 -> 2 | F34: 5 | G34: 65 | H34: =[1]!SUMSTRING(D34:E34,"#") ->  | I34: =[1]!SUMSTRING(F34:G34,"#") ->  | J34: =[1]!SUMSTRING(H34:I34,"|") ->  | K34: 生命 | L34: 3368 | M34: 攻击 | N34: 28 | Q34: =IF(O34="",VLOOKUP(K34,属性表!$H:$I,2,0)&"#"&配件表!L34&"|"&VLOOKUP(M34,属性表!$H:$I,2,0)&"#"&配件表!N34,VLOOKUP(K34,属性表!$H:$I,2,0)&"#"&配件表!L34&"|"&VLOOKUP(M34,属性表!$H:$I,2,0)&"#"&配件表!N34&"|"&VLOOKUP(O34,属性表!$H:$I,2,0)&"#"&配件表!P34) -> 1#3368|2#28 | R34: =VLOOKUP(B34,$Y:$Z,2,0) -> 异妖2 | S34: =VLOOKUP(R34,$Z:$AA,2,0) -> 紫色
A35: 配件4 | B35: 4 | C35: 4 | D35: 6004 | E35: =E25 -> 2 | F35: 5 | G35: 100 | H35: =[1]!SUMSTRING(D35:E35,"#") ->  | I35: =[1]!SUMSTRING(F35:G35,"#") ->  | J35: =[1]!SUMSTRING(H35:I35,"|") ->  | K35: 生命 | L35: 5052 | M35: 攻击 | N35: 42 | Q35: =IF(O35="",VLOOKUP(K35,属性表!$H:$I,2,0)&"#"&配件表!L35&"|"&VLOOKUP(M35,属性表!$H:$I,2,0)&"#"&配件表!N35,VLOOKUP(K35,属性表!$H:$I,2,0)&"#"&配件表!L35&"|"&VLOOKUP(M35,属性表!$H:$I,2,0)&"#"&配件表!N35&"|"&VLOOKUP(O35,属性表!$H:$I,2,0)&"#"&配件表!P35) -> 1#5052|2#42 | R35: 异妖2 | S35: 紫色
A36: 配件4 | B36: 4 | C36: 5 | D36: 6004 | E36: =E26 -> 3 | F36: 5 | G36: 135 | H36: =[1]!SUMSTRING(D36:E36,"#") ->  | I36: =[1]!SUMSTRING(F36:G36,"#") ->  | J36: =[1]!SUMSTRING(H36:I36,"|") ->  | K36: 生命 | L36: 7157 | M36: 攻击 | N36: 59 | Q36: =IF(O36="",VLOOKUP(K36,属性表!$H:$I,2,0)&"#"&配件表!L36&"|"&VLOOKUP(M36,属性表!$H:$I,2,0)&"#"&配件表!N36,VLOOKUP(K36,属性表!$H:$I,2,0)&"#"&配件表!L36&"|"&VLOOKUP(M36,属性表!$H:$I,2,0)&"#"&配件表!N36&"|"&VLOOKUP(O36,属性表!$H:$I,2,0)&"#"&配件表!P36) -> 1#7157|2#59 | R36: 异妖2 | S36: 紫色
A37: 配件4 | B37: 4 | C37: 6 | D37: 6004 | E37: =E27 -> 3 | F37: 5 | G37: 180 | H37: =[1]!SUMSTRING(D37:E37,"#") ->  | I37: =[1]!SUMSTRING(F37:G37,"#") ->  | J37: =[1]!SUMSTRING(H37:I37,"|") ->  | K37: 生命 | L37: 9684 | M37: 攻击 | N37: 80 | Q37: =IF(O37="",VLOOKUP(K37,属性表!$H:$I,2,0)&"#"&配件表!L37&"|"&VLOOKUP(M37,属性表!$H:$I,2,0)&"#"&配件表!N37,VLOOKUP(K37,属性表!$H:$I,2,0)&"#"&配件表!L37&"|"&VLOOKUP(M37,属性表!$H:$I,2,0)&"#"&配件表!N37&"|"&VLOOKUP(O37,属性表!$H:$I,2,0)&"#"&配件表!P37) -> 1#9684|2#80 | R37: 异妖2 | S37: 紫色
A38: 配件4 | B38: 4 | C38: 7 | D38: 6004 | E38: =E28 -> 4 | F38: 5 | G38: 235 | H38: =[1]!SUMSTRING(D38:E38,"#") ->  | I38: =[1]!SUMSTRING(F38:G38,"#") ->  | J38: =[1]!SUMSTRING(H38:I38,"|") ->  | K38: 生命 | L38: 12631 | M38: 攻击 | N38: 105 | Q38: =IF(O38="",VLOOKUP(K38,属性表!$H:$I,2,0)&"#"&配件表!L38&"|"&VLOOKUP(M38,属性表!$H:$I,2,0)&"#"&配件表!N38,VLOOKUP(K38,属性表!$H:$I,2,0)&"#"&配件表!L38&"|"&VLOOKUP(M38,属性表!$H:$I,2,0)&"#"&配件表!N38&"|"&VLOOKUP(O38,属性表!$H:$I,2,0)&"#"&配件表!P38) -> 1#12631|2#105 | R38: 异妖2 | S38: 紫色
A39: 配件4 | B39: 4 | C39: 8 | D39: 6004 | E39: =E29 -> 5 | F39: 5 | G39: 290 | H39: =[1]!SUMSTRING(D39:E39,"#") ->  | I39: =[1]!SUMSTRING(F39:G39,"#") ->  | J39: =[1]!SUMSTRING(H39:I39,"|") ->  | K39: 生命 | L39: 16000 | M39: 攻击 | N39: 133 | Q39: =IF(O39="",VLOOKUP(K39,属性表!$H:$I,2,0)&"#"&配件表!L39&"|"&VLOOKUP(M39,属性表!$H:$I,2,0)&"#"&配件表!N39,VLOOKUP(K39,属性表!$H:$I,2,0)&"#"&配件表!L39&"|"&VLOOKUP(M39,属性表!$H:$I,2,0)&"#"&配件表!N39&"|"&VLOOKUP(O39,属性表!$H:$I,2,0)&"#"&配件表!P39) -> 1#16000|2#133 | R39: 异妖2 | S39: 紫色
A40: 配件4 | B40: 4 | C40: 9 | D40: 6004 | E40: =E30 -> 6 | F40: 5 | G40: 355 | H40: =[1]!SUMSTRING(D40:E40,"#") ->  | I40: =[1]!SUMSTRING(F40:G40,"#") ->  | J40: =[1]!SUMSTRING(H40:I40,"|") ->  | K40: 生命 | L40: 19789 | M40: 攻击 | N40: 164 | Q40: =IF(O40="",VLOOKUP(K40,属性表!$H:$I,2,0)&"#"&配件表!L40&"|"&VLOOKUP(M40,属性表!$H:$I,2,0)&"#"&配件表!N40,VLOOKUP(K40,属性表!$H:$I,2,0)&"#"&配件表!L40&"|"&VLOOKUP(M40,属性表!$H:$I,2,0)&"#"&配件表!N40&"|"&VLOOKUP(O40,属性表!$H:$I,2,0)&"#"&配件表!P40) -> 1#19789|2#164 | R40: 异妖2 | S40: 紫色
A41: 配件4 | B41: 4 | C41: 10 | D41: 6004 | E41: =E31 -> 8 | F41: 5 | G41: 420 | H41: =[1]!SUMSTRING(D41:E41,"#") ->  | I41: =[1]!SUMSTRING(F41:G41,"#") ->  | J41: =[1]!SUMSTRING(H41:I41,"|") ->  | K41: 生命 | L41: 24000 | M41: 攻击 | N41: 200 | Q41: =IF(O41="",VLOOKUP(K41,属性表!$H:$I,2,0)&"#"&配件表!L41&"|"&VLOOKUP(M41,属性表!$H:$I,2,0)&"#"&配件表!N41,VLOOKUP(K41,属性表!$H:$I,2,0)&"#"&配件表!L41&"|"&VLOOKUP(M41,属性表!$H:$I,2,0)&"#"&配件表!N41&"|"&VLOOKUP(O41,属性表!$H:$I,2,0)&"#"&配件表!P41) -> 1#24000|2#200 | R41: 异妖2 | S41: 紫色
A42: 配件5 | B42: 5 | C42: 1 | D42: 6005 | E42: =E32 -> 1 | F42: 5 | G42: 0 | H42: =[1]!SUMSTRING(D42:E42,"#") ->  | I42: =[1]!SUMSTRING(F42:G42,"#") ->  | J42: =[1]!SUMSTRING(H42:I42,"|") ->  | K42: 生命 | L42: 842 | M42: 魔抗 | N42: 70 | Q42: =IF(O42="",VLOOKUP(K42,属性表!$H:$I,2,0)&"#"&配件表!L42&"|"&VLOOKUP(M42,属性表!$H:$I,2,0)&"#"&配件表!N42,VLOOKUP(K42,属性表!$H:$I,2,0)&"#"&配件表!L42&"|"&VLOOKUP(M42,属性表!$H:$I,2,0)&"#"&配件表!N42&"|"&VLOOKUP(O42,属性表!$H:$I,2,0)&"#"&配件表!P42) -> 1#842|4#70 | R42: 异妖2 | S42: 紫色
A43: 配件5 | B43: 5 | C43: 2 | D43: 6005 | E43: =E33 -> 1 | F43: 5 | G43: 40 | H43: =[1]!SUMSTRING(D43:E43,"#") ->  | I43: =[1]!SUMSTRING(F43:G43,"#") ->  | J43: =[1]!SUMSTRING(H43:I43,"|") ->  | K43: 生命 | L43: 2105 | M43: 魔抗 | N43: 175 | Q43: =IF(O43="",VLOOKUP(K43,属性表!$H:$I,2,0)&"#"&配件表!L43&"|"&VLOOKUP(M43,属性表!$H:$I,2,0)&"#"&配件表!N43,VLOOKUP(K43,属性表!$H:$I,2,0)&"#"&配件表!L43&"|"&VLOOKUP(M43,属性表!$H:$I,2,0)&"#"&配件表!N43&"|"&VLOOKUP(O43,属性表!$H:$I,2,0)&"#"&配件表!P43) -> 1#2105|4#175 | R43: 异妖2 | S43: 紫色
A44: 配件5 | B44: 5 | C44: 3 | D44: 6005 | E44: =E34 -> 2 | F44: 5 | G44: 65 | H44: =[1]!SUMSTRING(D44:E44,"#") ->  | I44: =[1]!SUMSTRING(F44:G44,"#") ->  | J44: =[1]!SUMSTRING(H44:I44,"|") ->  | K44: 生命 | L44: 3368 | M44: 魔抗 | N44: 280 | Q44: =IF(O44="",VLOOKUP(K44,属性表!$H:$I,2,0)&"#"&配件表!L44&"|"&VLOOKUP(M44,属性表!$H:$I,2,0)&"#"&配件表!N44,VLOOKUP(K44,属性表!$H:$I,2,0)&"#"&配件表!L44&"|"&VLOOKUP(M44,属性表!$H:$I,2,0)&"#"&配件表!N44&"|"&VLOOKUP(O44,属性表!$H:$I,2,0)&"#"&配件表!P44) -> 1#3368|4#280 | R44: 异妖2 | S44: 紫色
A45: 配件5 | B45: 5 | C45: 4 | D45: 6005 | E45: =E35 -> 2 | F45: 5 | G45: 100 | H45: =[1]!SUMSTRING(D45:E45,"#") ->  | I45: =[1]!SUMSTRING(F45:G45,"#") ->  | J45: =[1]!SUMSTRING(H45:I45,"|") ->  | K45: 生命 | L45: 5052 | M45: 魔抗 | N45: 420 | Q45: =IF(O45="",VLOOKUP(K45,属性表!$H:$I,2,0)&"#"&配件表!L45&"|"&VLOOKUP(M45,属性表!$H:$I,2,0)&"#"&配件表!N45,VLOOKUP(K45,属性表!$H:$I,2,0)&"#"&配件表!L45&"|"&VLOOKUP(M45,属性表!$H:$I,2,0)&"#"&配件表!N45&"|"&VLOOKUP(O45,属性表!$H:$I,2,0)&"#"&配件表!P45) -> 1#5052|4#420 | R45: 异妖2 | S45: 紫色
A46: 配件5 | B46: 5 | C46: 5 | D46: 6005 | E46: =E36 -> 3 | F46: 5 | G46: 135 | H46: =[1]!SUMSTRING(D46:E46,"#") ->  | I46: =[1]!SUMSTRING(F46:G46,"#") ->  | J46: =[1]!SUMSTRING(H46:I46,"|") ->  | K46: 生命 | L46: 7157 | M46: 魔抗 | N46: 595 | Q46: =IF(O46="",VLOOKUP(K46,属性表!$H:$I,2,0)&"#"&配件表!L46&"|"&VLOOKUP(M46,属性表!$H:$I,2,0)&"#"&配件表!N46,VLOOKUP(K46,属性表!$H:$I,2,0)&"#"&配件表!L46&"|"&VLOOKUP(M46,属性表!$H:$I,2,0)&"#"&配件表!N46&"|"&VLOOKUP(O46,属性表!$H:$I,2,0)&"#"&配件表!P46) -> 1#7157|4#595 | R46: 异妖2 | S46: 紫色
A47: 配件5 | B47: 5 | C47: 6 | D47: 6005 | E47: =E37 -> 3 | F47: 5 | G47: 180 | H47: =[1]!SUMSTRING(D47:E47,"#") ->  | I47: =[1]!SUMSTRING(F47:G47,"#") ->  | J47: =[1]!SUMSTRING(H47:I47,"|") ->  | K47: 生命 | L47: 9684 | M47: 魔抗 | N47: 805 | Q47: =IF(O47="",VLOOKUP(K47,属性表!$H:$I,2,0)&"#"&配件表!L47&"|"&VLOOKUP(M47,属性表!$H:$I,2,0)&"#"&配件表!N47,VLOOKUP(K47,属性表!$H:$I,2,0)&"#"&配件表!L47&"|"&VLOOKUP(M47,属性表!$H:$I,2,0)&"#"&配件表!N47&"|"&VLOOKUP(O47,属性表!$H:$I,2,0)&"#"&配件表!P47) -> 1#9684|4#805 | R47: 异妖2 | S47: 紫色
A48: 配件5 | B48: 5 | C48: 7 | D48: 6005 | E48: =E38 -> 4 | F48: 5 | G48: 235 | H48: =[1]!SUMSTRING(D48:E48,"#") ->  | I48: =[1]!SUMSTRING(F48:G48,"#") ->  | J48: =[1]!SUMSTRING(H48:I48,"|") ->  | K48: 生命 | L48: 12631 | M48: 魔抗 | N48: 1050 | Q48: =IF(O48="",VLOOKUP(K48,属性表!$H:$I,2,0)&"#"&配件表!L48&"|"&VLOOKUP(M48,属性表!$H:$I,2,0)&"#"&配件表!N48,VLOOKUP(K48,属性表!$H:$I,2,0)&"#"&配件表!L48&"|"&VLOOKUP(M48,属性表!$H:$I,2,0)&"#"&配件表!N48&"|"&VLOOKUP(O48,属性表!$H:$I,2,0)&"#"&配件表!P48) -> 1#12631|4#1050 | R48: 异妖2 | S48: 紫色
A49: 配件5 | B49: 5 | C49: 8 | D49: 6005 | E49: =E39 -> 5 | F49: 5 | G49: 290 | H49: =[1]!SUMSTRING(D49:E49,"#") ->  | I49: =[1]!SUMSTRING(F49:G49,"#") ->  | J49: =[1]!SUMSTRING(H49:I49,"|") ->  | K49: 生命 | L49: 16000 | M49: 魔抗 | N49: 1330 | Q49: =IF(O49="",VLOOKUP(K49,属性表!$H:$I,2,0)&"#"&配件表!L49&"|"&VLOOKUP(M49,属性表!$H:$I,2,0)&"#"&配件表!N49,VLOOKUP(K49,属性表!$H:$I,2,0)&"#"&配件表!L49&"|"&VLOOKUP(M49,属性表!$H:$I,2,0)&"#"&配件表!N49&"|"&VLOOKUP(O49,属性表!$H:$I,2,0)&"#"&配件表!P49) -> 1#16000|4#1330 | R49: 异妖2 | S49: 紫色
A50: 配件5 | B50: 5 | C50: 9 | D50: 6005 | E50: =E40 -> 6 | F50: 5 | G50: 355 | H50: =[1]!SUMSTRING(D50:E50,"#") ->  | I50: =[1]!SUMSTRING(F50:G50,"#") ->  | J50: =[1]!SUMSTRING(H50:I50,"|") ->  | K50: 生命 | L50: 19789 | M50: 魔抗 | N50: 1645 | Q50: =IF(O50="",VLOOKUP(K50,属性表!$H:$I,2,0)&"#"&配件表!L50&"|"&VLOOKUP(M50,属性表!$H:$I,2,0)&"#"&配件表!N50,VLOOKUP(K50,属性表!$H:$I,2,0)&"#"&配件表!L50&"|"&VLOOKUP(M50,属性表!$H:$I,2,0)&"#"&配件表!N50&"|"&VLOOKUP(O50,属性表!$H:$I,2,0)&"#"&配件表!P50) -> 1#19789|4#1645 | R50: 异妖2 | S50: 紫色
A51: 配件5 | B51: 5 | C51: 10 | D51: 6005 | E51: =E41 -> 8 | F51: 5 | G51: 420 | H51: =[1]!SUMSTRING(D51:E51,"#") ->  | I51: =[1]!SUMSTRING(F51:G51,"#") ->  | J51: =[1]!SUMSTRING(H51:I51,"|") ->  | K51: 生命 | L51: 24000 | M51: 魔抗 | N51: 2000 | Q51: =IF(O51="",VLOOKUP(K51,属性表!$H:$I,2,0)&"#"&配件表!L51&"|"&VLOOKUP(M51,属性表!$H:$I,2,0)&"#"&配件表!N51,VLOOKUP(K51,属性表!$H:$I,2,0)&"#"&配件表!L51&"|"&VLOOKUP(M51,属性表!$H:$I,2,0)&"#"&配件表!N51&"|"&VLOOKUP(O51,属性表!$H:$I,2,0)&"#"&配件表!P51) -> 1#24000|4#2000 | R51: 异妖2 | S51: 紫色
A52: 配件6 | B52: 6 | C52: 1 | D52: 6006 | E52: =E42 -> 1 | F52: 5 | G52: 0 | H52: =[1]!SUMSTRING(D52:E52,"#") ->  | I52: =[1]!SUMSTRING(F52:G52,"#") ->  | J52: =[1]!SUMSTRING(H52:I52,"|") ->  | K52: 攻击 | L52: 7 | M52: 魔抗 | N52: 70 | Q52: =IF(O52="",VLOOKUP(K52,属性表!$H:$I,2,0)&"#"&配件表!L52&"|"&VLOOKUP(M52,属性表!$H:$I,2,0)&"#"&配件表!N52,VLOOKUP(K52,属性表!$H:$I,2,0)&"#"&配件表!L52&"|"&VLOOKUP(M52,属性表!$H:$I,2,0)&"#"&配件表!N52&"|"&VLOOKUP(O52,属性表!$H:$I,2,0)&"#"&配件表!P52) -> 2#7|4#70 | R52: 异妖2 | S52: 紫色
A53: 配件6 | B53: 6 | C53: 2 | D53: 6006 | E53: =E43 -> 1 | F53: 5 | G53: 40 | H53: =[1]!SUMSTRING(D53:E53,"#") ->  | I53: =[1]!SUMSTRING(F53:G53,"#") ->  | J53: =[1]!SUMSTRING(H53:I53,"|") ->  | K53: 攻击 | L53: 17 | M53: 魔抗 | N53: 175 | Q53: =IF(O53="",VLOOKUP(K53,属性表!$H:$I,2,0)&"#"&配件表!L53&"|"&VLOOKUP(M53,属性表!$H:$I,2,0)&"#"&配件表!N53,VLOOKUP(K53,属性表!$H:$I,2,0)&"#"&配件表!L53&"|"&VLOOKUP(M53,属性表!$H:$I,2,0)&"#"&配件表!N53&"|"&VLOOKUP(O53,属性表!$H:$I,2,0)&"#"&配件表!P53) -> 2#17|4#175 | R53: 异妖2 | S53: 紫色
A54: 配件6 | B54: 6 | C54: 3 | D54: 6006 | E54: =E44 -> 2 | F54: 5 | G54: 65 | H54: =[1]!SUMSTRING(D54:E54,"#") ->  | I54: =[1]!SUMSTRING(F54:G54,"#") ->  | J54: =[1]!SUMSTRING(H54:I54,"|") ->  | K54: 攻击 | L54: 28 | M54: 魔抗 | N54: 280 | Q54: =IF(O54="",VLOOKUP(K54,属性表!$H:$I,2,0)&"#"&配件表!L54&"|"&VLOOKUP(M54,属性表!$H:$I,2,0)&"#"&配件表!N54,VLOOKUP(K54,属性表!$H:$I,2,0)&"#"&配件表!L54&"|"&VLOOKUP(M54,属性表!$H:$I,2,0)&"#"&配件表!N54&"|"&VLOOKUP(O54,属性表!$H:$I,2,0)&"#"&配件表!P54) -> 2#28|4#280 | R54: 异妖2 | S54: 紫色
A55: 配件6 | B55: 6 | C55: 4 | D55: 6006 | E55: =E45 -> 2 | F55: 5 | G55: 100 | H55: =[1]!SUMSTRING(D55:E55,"#") ->  | I55: =[1]!SUMSTRING(F55:G55,"#") ->  | J55: =[1]!SUMSTRING(H55:I55,"|") ->  | K55: 攻击 | L55: 42 | M55: 魔抗 | N55: 420 | Q55: =IF(O55="",VLOOKUP(K55,属性表!$H:$I,2,0)&"#"&配件表!L55&"|"&VLOOKUP(M55,属性表!$H:$I,2,0)&"#"&配件表!N55,VLOOKUP(K55,属性表!$H:$I,2,0)&"#"&配件表!L55&"|"&VLOOKUP(M55,属性表!$H:$I,2,0)&"#"&配件表!N55&"|"&VLOOKUP(O55,属性表!$H:$I,2,0)&"#"&配件表!P55) -> 2#42|4#420 | R55: 异妖2 | S55: 紫色
A56: 配件6 | B56: 6 | C56: 5 | D56: 6006 | E56: =E46 -> 3 | F56: 5 | G56: 135 | H56: =[1]!SUMSTRING(D56:E56,"#") ->  | I56: =[1]!SUMSTRING(F56:G56,"#") ->  | J56: =[1]!SUMSTRING(H56:I56,"|") ->  | K56: 攻击 | L56: 59 | M56: 魔抗 | N56: 595 | Q56: =IF(O56="",VLOOKUP(K56,属性表!$H:$I,2,0)&"#"&配件表!L56&"|"&VLOOKUP(M56,属性表!$H:$I,2,0)&"#"&配件表!N56,VLOOKUP(K56,属性表!$H:$I,2,0)&"#"&配件表!L56&"|"&VLOOKUP(M56,属性表!$H:$I,2,0)&"#"&配件表!N56&"|"&VLOOKUP(O56,属性表!$H:$I,2,0)&"#"&配件表!P56) -> 2#59|4#595 | R56: 异妖2 | S56: 紫色
A57: 配件6 | B57: 6 | C57: 6 | D57: 6006 | E57: =E47 -> 3 | F57: 5 | G57: 180 | H57: =[1]!SUMSTRING(D57:E57,"#") ->  | I57: =[1]!SUMSTRING(F57:G57,"#") ->  | J57: =[1]!SUMSTRING(H57:I57,"|") ->  | K57: 攻击 | L57: 80 | M57: 魔抗 | N57: 805 | Q57: =IF(O57="",VLOOKUP(K57,属性表!$H:$I,2,0)&"#"&配件表!L57&"|"&VLOOKUP(M57,属性表!$H:$I,2,0)&"#"&配件表!N57,VLOOKUP(K57,属性表!$H:$I,2,0)&"#"&配件表!L57&"|"&VLOOKUP(M57,属性表!$H:$I,2,0)&"#"&配件表!N57&"|"&VLOOKUP(O57,属性表!$H:$I,2,0)&"#"&配件表!P57) -> 2#80|4#805 | R57: 异妖2 | S57: 紫色
A58: 配件6 | B58: 6 | C58: 7 | D58: 6006 | E58: =E48 -> 4 | F58: 5 | G58: 235 | H58: =[1]!SUMSTRING(D58:E58,"#") ->  | I58: =[1]!SUMSTRING(F58:G58,"#") ->  | J58: =[1]!SUMSTRING(H58:I58,"|") ->  | K58: 攻击 | L58: 105 | M58: 魔抗 | N58: 1050 | Q58: =IF(O58="",VLOOKUP(K58,属性表!$H:$I,2,0)&"#"&配件表!L58&"|"&VLOOKUP(M58,属性表!$H:$I,2,0)&"#"&配件表!N58,VLOOKUP(K58,属性表!$H:$I,2,0)&"#"&配件表!L58&"|"&VLOOKUP(M58,属性表!$H:$I,2,0)&"#"&配件表!N58&"|"&VLOOKUP(O58,属性表!$H:$I,2,0)&"#"&配件表!P58) -> 2#105|4#1050 | R58: 异妖2 | S58: 紫色
A59: 配件6 | B59: 6 | C59: 8 | D59: 6006 | E59: =E49 -> 5 | F59: 5 | G59: 290 | H59: =[1]!SUMSTRING(D59:E59,"#") ->  | I59: =[1]!SUMSTRING(F59:G59,"#") ->  | J59: =[1]!SUMSTRING(H59:I59,"|") ->  | K59: 攻击 | L59: 133 | M59: 魔抗 | N59: 1330 | Q59: =IF(O59="",VLOOKUP(K59,属性表!$H:$I,2,0)&"#"&配件表!L59&"|"&VLOOKUP(M59,属性表!$H:$I,2,0)&"#"&配件表!N59,VLOOKUP(K59,属性表!$H:$I,2,0)&"#"&配件表!L59&"|"&VLOOKUP(M59,属性表!$H:$I,2,0)&"#"&配件表!N59&"|"&VLOOKUP(O59,属性表!$H:$I,2,0)&"#"&配件表!P59) -> 2#133|4#1330 | R59: 异妖2 | S59: 紫色
A60: 配件6 | B60: 6 | C60: 9 | D60: 6006 | E60: =E50 -> 6 | F60: 5 | G60: 355 | H60: =[1]!SUMSTRING(D60:E60,"#") ->  | I60: =[1]!SUMSTRING(F60:G60,"#") ->  | J60: =[1]!SUMSTRING(H60:I60,"|") ->  | K60: 攻击 | L60: 164 | M60: 魔抗 | N60: 1645 | Q60: =IF(O60="",VLOOKUP(K60,属性表!$H:$I,2,0)&"#"&配件表!L60&"|"&VLOOKUP(M60,属性表!$H:$I,2,0)&"#"&配件表!N60,VLOOKUP(K60,属性表!$H:$I,2,0)&"#"&配件表!L60&"|"&VLOOKUP(M60,属性表!$H:$I,2,0)&"#"&配件表!N60&"|"&VLOOKUP(O60,属性表!$H:$I,2,0)&"#"&配件表!P60) -> 2#164|4#1645 | R60: 异妖2 | S60: 紫色
A61: 配件6 | B61: 6 | C61: 10 | D61: 6006 | E61: =E51 -> 8 | F61: 5 | G61: 420 | H61: =[1]!SUMSTRING(D61:E61,"#") ->  | I61: =[1]!SUMSTRING(F61:G61,"#") ->  | J61: =[1]!SUMSTRING(H61:I61,"|") ->  | K61: 攻击 | L61: 200 | M61: 魔抗 | N61: 2000 | Q61: =IF(O61="",VLOOKUP(K61,属性表!$H:$I,2,0)&"#"&配件表!L61&"|"&VLOOKUP(M61,属性表!$H:$I,2,0)&"#"&配件表!N61,VLOOKUP(K61,属性表!$H:$I,2,0)&"#"&配件表!L61&"|"&VLOOKUP(M61,属性表!$H:$I,2,0)&"#"&配件表!N61&"|"&VLOOKUP(O61,属性表!$H:$I,2,0)&"#"&配件表!P61) -> 2#200|4#2000 | R61: 异妖2 | S61: 紫色
A62: 配件7 | B62: 7 | C62: 1 | D62: 6007 | E62: =E52 -> 1 | F62: 5 | G62: 0 | H62: =[1]!SUMSTRING(D62:E62,"#") ->  | I62: =[1]!SUMSTRING(F62:G62,"#") ->  | J62: =[1]!SUMSTRING(H62:I62,"|") ->  | K62: 生命 | L62: 842 | M62: 攻击 | N62: 7 | Q62: =IF(O62="",VLOOKUP(K62,属性表!$H:$I,2,0)&"#"&配件表!L62&"|"&VLOOKUP(M62,属性表!$H:$I,2,0)&"#"&配件表!N62,VLOOKUP(K62,属性表!$H:$I,2,0)&"#"&配件表!L62&"|"&VLOOKUP(M62,属性表!$H:$I,2,0)&"#"&配件表!N62&"|"&VLOOKUP(O62,属性表!$H:$I,2,0)&"#"&配件表!P62) -> 1#842|2#7 | R62: 异妖3 | S62: 紫色
A63: 配件7 | B63: 7 | C63: 2 | D63: 6007 | E63: =E53 -> 1 | F63: 5 | G63: 40 | H63: =[1]!SUMSTRING(D63:E63,"#") ->  | I63: =[1]!SUMSTRING(F63:G63,"#") ->  | J63: =[1]!SUMSTRING(H63:I63,"|") ->  | K63: 生命 | L63: 2105 | M63: 攻击 | N63: 17 | Q63: =IF(O63="",VLOOKUP(K63,属性表!$H:$I,2,0)&"#"&配件表!L63&"|"&VLOOKUP(M63,属性表!$H:$I,2,0)&"#"&配件表!N63,VLOOKUP(K63,属性表!$H:$I,2,0)&"#"&配件表!L63&"|"&VLOOKUP(M63,属性表!$H:$I,2,0)&"#"&配件表!N63&"|"&VLOOKUP(O63,属性表!$H:$I,2,0)&"#"&配件表!P63) -> 1#2105|2#17 | R63: 异妖3 | S63: 紫色
A64: 配件7 | B64: 7 | C64: 3 | D64: 6007 | E64: =E54 -> 2 | F64: 5 | G64: 65 | H64: =[1]!SUMSTRING(D64:E64,"#") ->  | I64: =[1]!SUMSTRING(F64:G64,"#") ->  | J64: =[1]!SUMSTRING(H64:I64,"|") ->  | K64: 生命 | L64: 3368 | M64: 攻击 | N64: 28 | Q64: =IF(O64="",VLOOKUP(K64,属性表!$H:$I,2,0)&"#"&配件表!L64&"|"&VLOOKUP(M64,属性表!$H:$I,2,0)&"#"&配件表!N64,VLOOKUP(K64,属性表!$H:$I,2,0)&"#"&配件表!L64&"|"&VLOOKUP(M64,属性表!$H:$I,2,0)&"#"&配件表!N64&"|"&VLOOKUP(O64,属性表!$H:$I,2,0)&"#"&配件表!P64) -> 1#3368|2#28 | R64: 异妖3 | S64: 紫色
A65: 配件7 | B65: 7 | C65: 4 | D65: 6007 | E65: =E55 -> 2 | F65: 5 | G65: 100 | H65: =[1]!SUMSTRING(D65:E65,"#") ->  | I65: =[1]!SUMSTRING(F65:G65,"#") ->  | J65: =[1]!SUMSTRING(H65:I65,"|") ->  | K65: 生命 | L65: 5052 | M65: 攻击 | N65: 42 | Q65: =IF(O65="",VLOOKUP(K65,属性表!$H:$I,2,0)&"#"&配件表!L65&"|"&VLOOKUP(M65,属性表!$H:$I,2,0)&"#"&配件表!N65,VLOOKUP(K65,属性表!$H:$I,2,0)&"#"&配件表!L65&"|"&VLOOKUP(M65,属性表!$H:$I,2,0)&"#"&配件表!N65&"|"&VLOOKUP(O65,属性表!$H:$I,2,0)&"#"&配件表!P65) -> 1#5052|2#42 | R65: 异妖3 | S65: 紫色
A66: 配件7 | B66: 7 | C66: 5 | D66: 6007 | E66: =E56 -> 3 | F66: 5 | G66: 135 | H66: =[1]!SUMSTRING(D66:E66,"#") ->  | I66: =[1]!SUMSTRING(F66:G66,"#") ->  | J66: =[1]!SUMSTRING(H66:I66,"|") ->  | K66: 生命 | L66: 7157 | M66: 攻击 | N66: 59 | Q66: =IF(O66="",VLOOKUP(K66,属性表!$H:$I,2,0)&"#"&配件表!L66&"|"&VLOOKUP(M66,属性表!$H:$I,2,0)&"#"&配件表!N66,VLOOKUP(K66,属性表!$H:$I,2,0)&"#"&配件表!L66&"|"&VLOOKUP(M66,属性表!$H:$I,2,0)&"#"&配件表!N66&"|"&VLOOKUP(O66,属性表!$H:$I,2,0)&"#"&配件表!P66) -> 1#7157|2#59 | R66: =VLOOKUP(B66,$Y:$Z,2,0) -> 异妖3 | S66: =VLOOKUP(R66,$Z:$AA,2,0) -> 紫色
A67: ="配件"&B67 -> 配件7 | B67: 7 | C67: 6 | D67: 6007 | E67: =E57 -> 3 | F67: 5 | G67: 180 | H67: =[1]!SUMSTRING(D67:E67,"#") ->  | I67: =[1]!SUMSTRING(F67:G67,"#") ->  | J67: =[1]!SUMSTRING(H67:I67,"|") ->  | K67: 生命 | L67: 9684 | M67: 攻击 | N67: 80 | Q67: =IF(O67="",VLOOKUP(K67,属性表!$H:$I,2,0)&"#"&配件表!L67&"|"&VLOOKUP(M67,属性表!$H:$I,2,0)&"#"&配件表!N67,VLOOKUP(K67,属性表!$H:$I,2,0)&"#"&配件表!L67&"|"&VLOOKUP(M67,属性表!$H:$I,2,0)&"#"&配件表!N67&"|"&VLOOKUP(O67,属性表!$H:$I,2,0)&"#"&配件表!P67) -> 1#9684|2#80 | R67: 异妖3 | S67: 紫色
A68: 配件7 | B68: 7 | C68: 7 | D68: 6007 | E68: =E58 -> 4 | F68: 5 | G68: 235 | H68: =[1]!SUMSTRING(D68:E68,"#") ->  | I68: =[1]!SUMSTRING(F68:G68,"#") ->  | J68: =[1]!SUMSTRING(H68:I68,"|") ->  | K68: 生命 | L68: 12631 | M68: 攻击 | N68: 105 | Q68: =IF(O68="",VLOOKUP(K68,属性表!$H:$I,2,0)&"#"&配件表!L68&"|"&VLOOKUP(M68,属性表!$H:$I,2,0)&"#"&配件表!N68,VLOOKUP(K68,属性表!$H:$I,2,0)&"#"&配件表!L68&"|"&VLOOKUP(M68,属性表!$H:$I,2,0)&"#"&配件表!N68&"|"&VLOOKUP(O68,属性表!$H:$I,2,0)&"#"&配件表!P68) -> 1#12631|2#105 | R68: 异妖3 | S68: 紫色
A69: 配件7 | B69: 7 | C69: 8 | D69: 6007 | E69: =E59 -> 5 | F69: 5 | G69: 290 | H69: =[1]!SUMSTRING(D69:E69,"#") ->  | I69: =[1]!SUMSTRING(F69:G69,"#") ->  | J69: =[1]!SUMSTRING(H69:I69,"|") ->  | K69: 生命 | L69: 16000 | M69: 攻击 | N69: 133 | Q69: =IF(O69="",VLOOKUP(K69,属性表!$H:$I,2,0)&"#"&配件表!L69&"|"&VLOOKUP(M69,属性表!$H:$I,2,0)&"#"&配件表!N69,VLOOKUP(K69,属性表!$H:$I,2,0)&"#"&配件表!L69&"|"&VLOOKUP(M69,属性表!$H:$I,2,0)&"#"&配件表!N69&"|"&VLOOKUP(O69,属性表!$H:$I,2,0)&"#"&配件表!P69) -> 1#16000|2#133 | R69: 异妖3 | S69: 紫色
A70: 配件7 | B70: 7 | C70: 9 | D70: 6007 | E70: =E60 -> 6 | F70: 5 | G70: 355 | H70: =[1]!SUMSTRING(D70:E70,"#") ->  | I70: =[1]!SUMSTRING(F70:G70,"#") ->  | J70: =[1]!SUMSTRING(H70:I70,"|") ->  | K70: 生命 | L70: 19789 | M70: 攻击 | N70: 164 | Q70: =IF(O70="",VLOOKUP(K70,属性表!$H:$I,2,0)&"#"&配件表!L70&"|"&VLOOKUP(M70,属性表!$H:$I,2,0)&"#"&配件表!N70,VLOOKUP(K70,属性表!$H:$I,2,0)&"#"&配件表!L70&"|"&VLOOKUP(M70,属性表!$H:$I,2,0)&"#"&配件表!N70&"|"&VLOOKUP(O70,属性表!$H:$I,2,0)&"#"&配件表!P70) -> 1#19789|2#164 | R70: 异妖3 | S70: 紫色
A71: 配件7 | B71: 7 | C71: 10 | D71: 6007 | E71: =E61 -> 8 | F71: 5 | G71: 420 | H71: =[1]!SUMSTRING(D71:E71,"#") ->  | I71: =[1]!SUMSTRING(F71:G71,"#") ->  | J71: =[1]!SUMSTRING(H71:I71,"|") ->  | K71: 生命 | L71: 24000 | M71: 攻击 | N71: 200 | Q71: =IF(O71="",VLOOKUP(K71,属性表!$H:$I,2,0)&"#"&配件表!L71&"|"&VLOOKUP(M71,属性表!$H:$I,2,0)&"#"&配件表!N71,VLOOKUP(K71,属性表!$H:$I,2,0)&"#"&配件表!L71&"|"&VLOOKUP(M71,属性表!$H:$I,2,0)&"#"&配件表!N71&"|"&VLOOKUP(O71,属性表!$H:$I,2,0)&"#"&配件表!P71) -> 1#24000|2#200 | R71: 异妖3 | S71: 紫色
A72: 配件8 | B72: 8 | C72: 1 | D72: 6008 | E72: =E62 -> 1 | F72: 5 | G72: 0 | H72: =[1]!SUMSTRING(D72:E72,"#") ->  | I72: =[1]!SUMSTRING(F72:G72,"#") ->  | J72: =[1]!SUMSTRING(H72:I72,"|") ->  | K72: 生命 | L72: 842 | M72: 效果命中 | N72: 1 | Q72: =IF(O72="",VLOOKUP(K72,属性表!$H:$I,2,0)&"#"&配件表!L72&"|"&VLOOKUP(M72,属性表!$H:$I,2,0)&"#"&配件表!N72,VLOOKUP(K72,属性表!$H:$I,2,0)&"#"&配件表!L72&"|"&VLOOKUP(M72,属性表!$H:$I,2,0)&"#"&配件表!N72&"|"&VLOOKUP(O72,属性表!$H:$I,2,0)&"#"&配件表!P72) -> 1#842|53#1 | R72: 异妖3 | S72: 紫色
A73: 配件8 | B73: 8 | C73: 2 | D73: 6008 | E73: =E63 -> 1 | F73: 5 | G73: 40 | H73: =[1]!SUMSTRING(D73:E73,"#") ->  | I73: =[1]!SUMSTRING(F73:G73,"#") ->  | J73: =[1]!SUMSTRING(H73:I73,"|") ->  | K73: 生命 | L73: 2105 | M73: 效果命中 | N73: 2 | Q73: =IF(O73="",VLOOKUP(K73,属性表!$H:$I,2,0)&"#"&配件表!L73&"|"&VLOOKUP(M73,属性表!$H:$I,2,0)&"#"&配件表!N73,VLOOKUP(K73,属性表!$H:$I,2,0)&"#"&配件表!L73&"|"&VLOOKUP(M73,属性表!$H:$I,2,0)&"#"&配件表!N73&"|"&VLOOKUP(O73,属性表!$H:$I,2,0)&"#"&配件表!P73) -> 1#2105|53#2 | R73: 异妖3 | S73: 紫色
A74: 配件8 | B74: 8 | C74: 3 | D74: 6008 | E74: =E64 -> 2 | F74: 5 | G74: 65 | H74: =[1]!SUMSTRING(D74:E74,"#") ->  | I74: =[1]!SUMSTRING(F74:G74,"#") ->  | J74: =[1]!SUMSTRING(H74:I74,"|") ->  | K74: 生命 | L74: 3368 | M74: 效果命中 | N74: 4 | Q74: =IF(O74="",VLOOKUP(K74,属性表!$H:$I,2,0)&"#"&配件表!L74&"|"&VLOOKUP(M74,属性表!$H:$I,2,0)&"#"&配件表!N74,VLOOKUP(K74,属性表!$H:$I,2,0)&"#"&配件表!L74&"|"&VLOOKUP(M74,属性表!$H:$I,2,0)&"#"&配件表!N74&"|"&VLOOKUP(O74,属性表!$H:$I,2,0)&"#"&配件表!P74) -> 1#3368|53#4 | R74: 异妖3 | S74: 紫色
A75: 配件8 | B75: 8 | C75: 4 | D75: 6008 | E75: =E65 -> 2 | F75: 5 | G75: 100 | H75: =[1]!SUMSTRING(D75:E75,"#") ->  | I75: =[1]!SUMSTRING(F75:G75,"#") ->  | J75: =[1]!SUMSTRING(H75:I75,"|") ->  | K75: 生命 | L75: 5052 | M75: 效果命中 | N75: 6 | Q75: =IF(O75="",VLOOKUP(K75,属性表!$H:$I,2,0)&"#"&配件表!L75&"|"&VLOOKUP(M75,属性表!$H:$I,2,0)&"#"&配件表!N75,VLOOKUP(K75,属性表!$H:$I,2,0)&"#"&配件表!L75&"|"&VLOOKUP(M75,属性表!$H:$I,2,0)&"#"&配件表!N75&"|"&VLOOKUP(O75,属性表!$H:$I,2,0)&"#"&配件表!P75) -> 1#5052|53#6 | R75: 异妖3 | S75: 紫色
A76: 配件8 | B76: 8 | C76: 5 | D76: 6008 | E76: =E66 -> 3 | F76: 5 | G76: 135 | H76: =[1]!SUMSTRING(D76:E76,"#") ->  | I76: =[1]!SUMSTRING(F76:G76,"#") ->  | J76: =[1]!SUMSTRING(H76:I76,"|") ->  | K76: 生命 | L76: 7157 | M76: 效果命中 | N76: 9 | Q76: =IF(O76="",VLOOKUP(K76,属性表!$H:$I,2,0)&"#"&配件表!L76&"|"&VLOOKUP(M76,属性表!$H:$I,2,0)&"#"&配件表!N76,VLOOKUP(K76,属性表!$H:$I,2,0)&"#"&配件表!L76&"|"&VLOOKUP(M76,属性表!$H:$I,2,0)&"#"&配件表!N76&"|"&VLOOKUP(O76,属性表!$H:$I,2,0)&"#"&配件表!P76) -> 1#7157|53#9 | R76: 异妖3 | S76: 紫色
A77: 配件8 | B77: =B67+1 -> 8 | C77: =C67 -> 6 | D77: =D67+1 -> 6008 | E77: =E67 -> 3 | F77: 5 | G77: 180 | H77: =[1]!SUMSTRING(D77:E77,"#") ->  | I77: =[1]!SUMSTRING(F77:G77,"#") ->  | J77: =[1]!SUMSTRING(H77:I77,"|") ->  | K77: 生命 | L77: 9684 | M77: 效果命中 | N77: 12 | Q77: =IF(O77="",VLOOKUP(K77,属性表!$H:$I,2,0)&"#"&配件表!L77&"|"&VLOOKUP(M77,属性表!$H:$I,2,0)&"#"&配件表!N77,VLOOKUP(K77,属性表!$H:$I,2,0)&"#"&配件表!L77&"|"&VLOOKUP(M77,属性表!$H:$I,2,0)&"#"&配件表!N77&"|"&VLOOKUP(O77,属性表!$H:$I,2,0)&"#"&配件表!P77) -> 1#9684|53#12 | R77: 异妖3 | S77: 紫色
A78: 配件8 | B78: 8 | C78: 7 | D78: 6008 | E78: =E68 -> 4 | F78: 5 | G78: 235 | H78: =[1]!SUMSTRING(D78:E78,"#") ->  | I78: =[1]!SUMSTRING(F78:G78,"#") ->  | J78: =[1]!SUMSTRING(H78:I78,"|") ->  | K78: 生命 | L78: 12631 | M78: 效果命中 | N78: 16 | Q78: =IF(O78="",VLOOKUP(K78,属性表!$H:$I,2,0)&"#"&配件表!L78&"|"&VLOOKUP(M78,属性表!$H:$I,2,0)&"#"&配件表!N78,VLOOKUP(K78,属性表!$H:$I,2,0)&"#"&配件表!L78&"|"&VLOOKUP(M78,属性表!$H:$I,2,0)&"#"&配件表!N78&"|"&VLOOKUP(O78,属性表!$H:$I,2,0)&"#"&配件表!P78) -> 1#12631|53#16 | R78: 异妖3 | S78: 紫色
A79: 配件8 | B79: 8 | C79: 8 | D79: 6008 | E79: =E69 -> 5 | F79: 5 | G79: 290 | H79: =[1]!SUMSTRING(D79:E79,"#") ->  | I79: =[1]!SUMSTRING(F79:G79,"#") ->  | J79: =[1]!SUMSTRING(H79:I79,"|") ->  | K79: 生命 | L79: 16000 | M79: 效果命中 | N79: 20 | Q79: =IF(O79="",VLOOKUP(K79,属性表!$H:$I,2,0)&"#"&配件表!L79&"|"&VLOOKUP(M79,属性表!$H:$I,2,0)&"#"&配件表!N79,VLOOKUP(K79,属性表!$H:$I,2,0)&"#"&配件表!L79&"|"&VLOOKUP(M79,属性表!$H:$I,2,0)&"#"&配件表!N79&"|"&VLOOKUP(O79,属性表!$H:$I,2,0)&"#"&配件表!P79) -> 1#16000|53#20 | R79: 异妖3 | S79: 紫色
A80: 配件8 | B80: 8 | C80: 9 | D80: 6008 | E80: =E70 -> 6 | F80: 5 | G80: 355 | H80: =[1]!SUMSTRING(D80:E80,"#") ->  | I80: =[1]!SUMSTRING(F80:G80,"#") ->  | J80: =[1]!SUMSTRING(H80:I80,"|") ->  | K80: 生命 | L80: 19789 | M80: 效果命中 | N80: 25 | Q80: =IF(O80="",VLOOKUP(K80,属性表!$H:$I,2,0)&"#"&配件表!L80&"|"&VLOOKUP(M80,属性表!$H:$I,2,0)&"#"&配件表!N80,VLOOKUP(K80,属性表!$H:$I,2,0)&"#"&配件表!L80&"|"&VLOOKUP(M80,属性表!$H:$I,2,0)&"#"&配件表!N80&"|"&VLOOKUP(O80,属性表!$H:$I,2,0)&"#"&配件表!P80) -> 1#19789|53#25 | R80: 异妖3 | S80: 紫色
A81: 配件8 | B81: 8 | C81: 10 | D81: 6008 | E81: =E71 -> 8 | F81: 5 | G81: 420 | H81: =[1]!SUMSTRING(D81:E81,"#") ->  | I81: =[1]!SUMSTRING(F81:G81,"#") ->  | J81: =[1]!SUMSTRING(H81:I81,"|") ->  | K81: 生命 | L81: 24000 | M81: 效果命中 | N81: 30 | Q81: =IF(O81="",VLOOKUP(K81,属性表!$H:$I,2,0)&"#"&配件表!L81&"|"&VLOOKUP(M81,属性表!$H:$I,2,0)&"#"&配件表!N81,VLOOKUP(K81,属性表!$H:$I,2,0)&"#"&配件表!L81&"|"&VLOOKUP(M81,属性表!$H:$I,2,0)&"#"&配件表!N81&"|"&VLOOKUP(O81,属性表!$H:$I,2,0)&"#"&配件表!P81) -> 1#24000|53#30 | R81: 异妖3 | S81: 紫色
A82: 配件9 | B82: 9 | C82: 1 | D82: 6009 | E82: =E72 -> 1 | F82: 5 | G82: 0 | H82: =[1]!SUMSTRING(D82:E82,"#") ->  | I82: =[1]!SUMSTRING(F82:G82,"#") ->  | J82: =[1]!SUMSTRING(H82:I82,"|") ->  | K82: 攻击 | L82: 7 | M82: 效果命中 | N82: 1 | Q82: =IF(O82="",VLOOKUP(K82,属性表!$H:$I,2,0)&"#"&配件表!L82&"|"&VLOOKUP(M82,属性表!$H:$I,2,0)&"#"&配件表!N82,VLOOKUP(K82,属性表!$H:$I,2,0)&"#"&配件表!L82&"|"&VLOOKUP(M82,属性表!$H:$I,2,0)&"#"&配件表!N82&"|"&VLOOKUP(O82,属性表!$H:$I,2,0)&"#"&配件表!P82) -> 2#7|53#1 | R82: 异妖3 | S82: 紫色
A83: 配件9 | B83: 9 | C83: 2 | D83: 6009 | E83: =E73 -> 1 | F83: 5 | G83: 40 | H83: =[1]!SUMSTRING(D83:E83,"#") ->  | I83: =[1]!SUMSTRING(F83:G83,"#") ->  | J83: =[1]!SUMSTRING(H83:I83,"|") ->  | K83: 攻击 | L83: 17 | M83: 效果命中 | N83: 2 | Q83: =IF(O83="",VLOOKUP(K83,属性表!$H:$I,2,0)&"#"&配件表!L83&"|"&VLOOKUP(M83,属性表!$H:$I,2,0)&"#"&配件表!N83,VLOOKUP(K83,属性表!$H:$I,2,0)&"#"&配件表!L83&"|"&VLOOKUP(M83,属性表!$H:$I,2,0)&"#"&配件表!N83&"|"&VLOOKUP(O83,属性表!$H:$I,2,0)&"#"&配件表!P83) -> 2#17|53#2 | R83: 异妖3 | S83: 紫色
A84: 配件9 | B84: 9 | C84: 3 | D84: 6009 | E84: =E74 -> 2 | F84: 5 | G84: 65 | H84: =[1]!SUMSTRING(D84:E84,"#") ->  | I84: =[1]!SUMSTRING(F84:G84,"#") ->  | J84: =[1]!SUMSTRING(H84:I84,"|") ->  | K84: 攻击 | L84: 28 | M84: 效果命中 | N84: 4 | Q84: =IF(O84="",VLOOKUP(K84,属性表!$H:$I,2,0)&"#"&配件表!L84&"|"&VLOOKUP(M84,属性表!$H:$I,2,0)&"#"&配件表!N84,VLOOKUP(K84,属性表!$H:$I,2,0)&"#"&配件表!L84&"|"&VLOOKUP(M84,属性表!$H:$I,2,0)&"#"&配件表!N84&"|"&VLOOKUP(O84,属性表!$H:$I,2,0)&"#"&配件表!P84) -> 2#28|53#4 | R84: 异妖3 | S84: 紫色
A85: 配件9 | B85: 9 | C85: 4 | D85: 6009 | E85: =E75 -> 2 | F85: 5 | G85: 100 | H85: =[1]!SUMSTRING(D85:E85,"#") ->  | I85: =[1]!SUMSTRING(F85:G85,"#") ->  | J85: =[1]!SUMSTRING(H85:I85,"|") ->  | K85: 攻击 | L85: 42 | M85: 效果命中 | N85: 6 | Q85: =IF(O85="",VLOOKUP(K85,属性表!$H:$I,2,0)&"#"&配件表!L85&"|"&VLOOKUP(M85,属性表!$H:$I,2,0)&"#"&配件表!N85,VLOOKUP(K85,属性表!$H:$I,2,0)&"#"&配件表!L85&"|"&VLOOKUP(M85,属性表!$H:$I,2,0)&"#"&配件表!N85&"|"&VLOOKUP(O85,属性表!$H:$I,2,0)&"#"&配件表!P85) -> 2#42|53#6 | R85: 异妖3 | S85: 紫色
A86: 配件9 | B86: 9 | C86: 5 | D86: 6009 | E86: =E76 -> 3 | F86: 5 | G86: 135 | H86: =[1]!SUMSTRING(D86:E86,"#") ->  | I86: =[1]!SUMSTRING(F86:G86,"#") ->  | J86: =[1]!SUMSTRING(H86:I86,"|") ->  | K86: 攻击 | L86: 59 | M86: 效果命中 | N86: 9 | Q86: =IF(O86="",VLOOKUP(K86,属性表!$H:$I,2,0)&"#"&配件表!L86&"|"&VLOOKUP(M86,属性表!$H:$I,2,0)&"#"&配件表!N86,VLOOKUP(K86,属性表!$H:$I,2,0)&"#"&配件表!L86&"|"&VLOOKUP(M86,属性表!$H:$I,2,0)&"#"&配件表!N86&"|"&VLOOKUP(O86,属性表!$H:$I,2,0)&"#"&配件表!P86) -> 2#59|53#9 | R86: 异妖3 | S86: 紫色
A87: 配件9 | B87: 9 | C87: 6 | D87: 6009 | E87: =E77 -> 3 | F87: 5 | G87: 180 | H87: =[1]!SUMSTRING(D87:E87,"#") ->  | I87: =[1]!SUMSTRING(F87:G87,"#") ->  | J87: =[1]!SUMSTRING(H87:I87,"|") ->  | K87: 攻击 | L87: 80 | M87: 效果命中 | N87: 12 | Q87: =IF(O87="",VLOOKUP(K87,属性表!$H:$I,2,0)&"#"&配件表!L87&"|"&VLOOKUP(M87,属性表!$H:$I,2,0)&"#"&配件表!N87,VLOOKUP(K87,属性表!$H:$I,2,0)&"#"&配件表!L87&"|"&VLOOKUP(M87,属性表!$H:$I,2,0)&"#"&配件表!N87&"|"&VLOOKUP(O87,属性表!$H:$I,2,0)&"#"&配件表!P87) -> 2#80|53#12 | R87: 异妖3 | S87: 紫色
A88: 配件9 | B88: 9 | C88: 7 | D88: 6009 | E88: =E78 -> 4 | F88: 5 | G88: 235 | H88: =[1]!SUMSTRING(D88:E88,"#") ->  | I88: =[1]!SUMSTRING(F88:G88,"#") ->  | J88: =[1]!SUMSTRING(H88:I88,"|") ->  | K88: 攻击 | L88: 105 | M88: 效果命中 | N88: 16 | Q88: =IF(O88="",VLOOKUP(K88,属性表!$H:$I,2,0)&"#"&配件表!L88&"|"&VLOOKUP(M88,属性表!$H:$I,2,0)&"#"&配件表!N88,VLOOKUP(K88,属性表!$H:$I,2,0)&"#"&配件表!L88&"|"&VLOOKUP(M88,属性表!$H:$I,2,0)&"#"&配件表!N88&"|"&VLOOKUP(O88,属性表!$H:$I,2,0)&"#"&配件表!P88) -> 2#105|53#16 | R88: 异妖3 | S88: 紫色
A89: 配件9 | B89: 9 | C89: 8 | D89: 6009 | E89: =E79 -> 5 | F89: 5 | G89: 290 | H89: =[1]!SUMSTRING(D89:E89,"#") ->  | I89: =[1]!SUMSTRING(F89:G89,"#") ->  | J89: =[1]!SUMSTRING(H89:I89,"|") ->  | K89: 攻击 | L89: 133 | M89: 效果命中 | N89: 20 | Q89: =IF(O89="",VLOOKUP(K89,属性表!$H:$I,2,0)&"#"&配件表!L89&"|"&VLOOKUP(M89,属性表!$H:$I,2,0)&"#"&配件表!N89,VLOOKUP(K89,属性表!$H:$I,2,0)&"#"&配件表!L89&"|"&VLOOKUP(M89,属性表!$H:$I,2,0)&"#"&配件表!N89&"|"&VLOOKUP(O89,属性表!$H:$I,2,0)&"#"&配件表!P89) -> 2#133|53#20 | R89: 异妖3 | S89: 紫色
A90: 配件9 | B90: 9 | C90: 9 | D90: 6009 | E90: =E80 -> 6 | F90: 5 | G90: 355 | H90: =[1]!SUMSTRING(D90:E90,"#") ->  | I90: =[1]!SUMSTRING(F90:G90,"#") ->  | J90: =[1]!SUMSTRING(H90:I90,"|") ->  | K90: 攻击 | L90: 164 | M90: 效果命中 | N90: 25 | Q90: =IF(O90="",VLOOKUP(K90,属性表!$H:$I,2,0)&"#"&配件表!L90&"|"&VLOOKUP(M90,属性表!$H:$I,2,0)&"#"&配件表!N90,VLOOKUP(K90,属性表!$H:$I,2,0)&"#"&配件表!L90&"|"&VLOOKUP(M90,属性表!$H:$I,2,0)&"#"&配件表!N90&"|"&VLOOKUP(O90,属性表!$H:$I,2,0)&"#"&配件表!P90) -> 2#164|53#25 | R90: 异妖3 | S90: 紫色
A91: 配件9 | B91: 9 | C91: 10 | D91: 6009 | E91: =E81 -> 8 | F91: 5 | G91: 420 | H91: =[1]!SUMSTRING(D91:E91,"#") ->  | I91: =[1]!SUMSTRING(F91:G91,"#") ->  | J91: =[1]!SUMSTRING(H91:I91,"|") ->  | K91: 攻击 | L91: 200 | M91: 效果命中 | N91: 30 | Q91: =IF(O91="",VLOOKUP(K91,属性表!$H:$I,2,0)&"#"&配件表!L91&"|"&VLOOKUP(M91,属性表!$H:$I,2,0)&"#"&配件表!N91,VLOOKUP(K91,属性表!$H:$I,2,0)&"#"&配件表!L91&"|"&VLOOKUP(M91,属性表!$H:$I,2,0)&"#"&配件表!N91&"|"&VLOOKUP(O91,属性表!$H:$I,2,0)&"#"&配件表!P91) -> 2#200|53#30 | R91: 异妖3 | S91: 紫色
A92: 配件10 | B92: 10 | C92: 1 | D92: 6010 | E92: =E82 -> 1 | F92: 5 | G92: 0 | H92: =[1]!SUMSTRING(D92:E92,"#") ->  | I92: =[1]!SUMSTRING(F92:G92,"#") ->  | J92: =[1]!SUMSTRING(H92:I92,"|") ->  | K92: 生命 | L92: 842 | M92: 攻击 | N92: 7 | Q92: =IF(O92="",VLOOKUP(K92,属性表!$H:$I,2,0)&"#"&配件表!L92&"|"&VLOOKUP(M92,属性表!$H:$I,2,0)&"#"&配件表!N92,VLOOKUP(K92,属性表!$H:$I,2,0)&"#"&配件表!L92&"|"&VLOOKUP(M92,属性表!$H:$I,2,0)&"#"&配件表!N92&"|"&VLOOKUP(O92,属性表!$H:$I,2,0)&"#"&配件表!P92) -> 1#842|2#7 | R92: 异妖4 | S92: 紫色
A93: 配件10 | B93: 10 | C93: 2 | D93: 6010 | E93: =E83 -> 1 | F93: 5 | G93: 40 | H93: =[1]!SUMSTRING(D93:E93,"#") ->  | I93: =[1]!SUMSTRING(F93:G93,"#") ->  | J93: =[1]!SUMSTRING(H93:I93,"|") ->  | K93: 生命 | L93: 2105 | M93: 攻击 | N93: 17 | Q93: =IF(O93="",VLOOKUP(K93,属性表!$H:$I,2,0)&"#"&配件表!L93&"|"&VLOOKUP(M93,属性表!$H:$I,2,0)&"#"&配件表!N93,VLOOKUP(K93,属性表!$H:$I,2,0)&"#"&配件表!L93&"|"&VLOOKUP(M93,属性表!$H:$I,2,0)&"#"&配件表!N93&"|"&VLOOKUP(O93,属性表!$H:$I,2,0)&"#"&配件表!P93) -> 1#2105|2#17 | R93: 异妖4 | S93: 紫色
A94: 配件10 | B94: 10 | C94: 3 | D94: 6010 | E94: =E84 -> 2 | F94: 5 | G94: 65 | H94: =[1]!SUMSTRING(D94:E94,"#") ->  | I94: =[1]!SUMSTRING(F94:G94,"#") ->  | J94: =[1]!SUMSTRING(H94:I94,"|") ->  | K94: 生命 | L94: 3368 | M94: 攻击 | N94: 28 | Q94: =IF(O94="",VLOOKUP(K94,属性表!$H:$I,2,0)&"#"&配件表!L94&"|"&VLOOKUP(M94,属性表!$H:$I,2,0)&"#"&配件表!N94,VLOOKUP(K94,属性表!$H:$I,2,0)&"#"&配件表!L94&"|"&VLOOKUP(M94,属性表!$H:$I,2,0)&"#"&配件表!N94&"|"&VLOOKUP(O94,属性表!$H:$I,2,0)&"#"&配件表!P94) -> 1#3368|2#28 | R94: 异妖4 | S94: 紫色
A95: 配件10 | B95: 10 | C95: 4 | D95: 6010 | E95: =E85 -> 2 | F95: 5 | G95: 100 | H95: =[1]!SUMSTRING(D95:E95,"#") ->  | I95: =[1]!SUMSTRING(F95:G95,"#") ->  | J95: =[1]!SUMSTRING(H95:I95,"|") ->  | K95: 生命 | L95: 5052 | M95: 攻击 | N95: 42 | Q95: =IF(O95="",VLOOKUP(K95,属性表!$H:$I,2,0)&"#"&配件表!L95&"|"&VLOOKUP(M95,属性表!$H:$I,2,0)&"#"&配件表!N95,VLOOKUP(K95,属性表!$H:$I,2,0)&"#"&配件表!L95&"|"&VLOOKUP(M95,属性表!$H:$I,2,0)&"#"&配件表!N95&"|"&VLOOKUP(O95,属性表!$H:$I,2,0)&"#"&配件表!P95) -> 1#5052|2#42 | R95: 异妖4 | S95: 紫色
A96: 配件10 | B96: 10 | C96: 5 | D96: 6010 | E96: =E86 -> 3 | F96: 5 | G96: 135 | H96: =[1]!SUMSTRING(D96:E96,"#") ->  | I96: =[1]!SUMSTRING(F96:G96,"#") ->  | J96: =[1]!SUMSTRING(H96:I96,"|") ->  | K96: 生命 | L96: 7157 | M96: 攻击 | N96: 59 | Q96: =IF(O96="",VLOOKUP(K96,属性表!$H:$I,2,0)&"#"&配件表!L96&"|"&VLOOKUP(M96,属性表!$H:$I,2,0)&"#"&配件表!N96,VLOOKUP(K96,属性表!$H:$I,2,0)&"#"&配件表!L96&"|"&VLOOKUP(M96,属性表!$H:$I,2,0)&"#"&配件表!N96&"|"&VLOOKUP(O96,属性表!$H:$I,2,0)&"#"&配件表!P96) -> 1#7157|2#59 | R96: 异妖4 | S96: 紫色
A97: 配件10 | B97: 10 | C97: 6 | D97: 6010 | E97: =E87 -> 3 | F97: 5 | G97: 180 | H97: =[1]!SUMSTRING(D97:E97,"#") ->  | I97: =[1]!SUMSTRING(F97:G97,"#") ->  | J97: =[1]!SUMSTRING(H97:I97,"|") ->  | K97: 生命 | L97: 9684 | M97: 攻击 | N97: 80 | Q97: =IF(O97="",VLOOKUP(K97,属性表!$H:$I,2,0)&"#"&配件表!L97&"|"&VLOOKUP(M97,属性表!$H:$I,2,0)&"#"&配件表!N97,VLOOKUP(K97,属性表!$H:$I,2,0)&"#"&配件表!L97&"|"&VLOOKUP(M97,属性表!$H:$I,2,0)&"#"&配件表!N97&"|"&VLOOKUP(O97,属性表!$H:$I,2,0)&"#"&配件表!P97) -> 1#9684|2#80 | R97: 异妖4 | S97: 紫色
A98: 配件10 | B98: 10 | C98: 7 | D98: 6010 | E98: =E88 -> 4 | F98: 5 | G98: 235 | H98: =[1]!SUMSTRING(D98:E98,"#") ->  | I98: =[1]!SUMSTRING(F98:G98,"#") ->  | J98: =[1]!SUMSTRING(H98:I98,"|") ->  | K98: 生命 | L98: 12631 | M98: 攻击 | N98: 105 | Q98: =IF(O98="",VLOOKUP(K98,属性表!$H:$I,2,0)&"#"&配件表!L98&"|"&VLOOKUP(M98,属性表!$H:$I,2,0)&"#"&配件表!N98,VLOOKUP(K98,属性表!$H:$I,2,0)&"#"&配件表!L98&"|"&VLOOKUP(M98,属性表!$H:$I,2,0)&"#"&配件表!N98&"|"&VLOOKUP(O98,属性表!$H:$I,2,0)&"#"&配件表!P98) -> 1#12631|2#105 | R98: =VLOOKUP(B98,$Y:$Z,2,0) -> 异妖4 | S98: =VLOOKUP(R98,$Z:$AA,2,0) -> 紫色
A99: 配件10 | B99: 10 | C99: 8 | D99: 6010 | E99: =E89 -> 5 | F99: 5 | G99: 290 | H99: =[1]!SUMSTRING(D99:E99,"#") ->  | I99: =[1]!SUMSTRING(F99:G99,"#") ->  | J99: =[1]!SUMSTRING(H99:I99,"|") ->  | K99: 生命 | L99: 16000 | M99: 攻击 | N99: 133 | Q99: =IF(O99="",VLOOKUP(K99,属性表!$H:$I,2,0)&"#"&配件表!L99&"|"&VLOOKUP(M99,属性表!$H:$I,2,0)&"#"&配件表!N99,VLOOKUP(K99,属性表!$H:$I,2,0)&"#"&配件表!L99&"|"&VLOOKUP(M99,属性表!$H:$I,2,0)&"#"&配件表!N99&"|"&VLOOKUP(O99,属性表!$H:$I,2,0)&"#"&配件表!P99) -> 1#16000|2#133 | R99: 异妖4 | S99: 紫色
A100: 配件10 | B100: 10 | C100: 9 | D100: 6010 | E100: =E90 -> 6 | F100: 5 | G100: 355 | H100: =[1]!SUMSTRING(D100:E100,"#") ->  | I100: =[1]!SUMSTRING(F100:G100,"#") ->  | J100: =[1]!SUMSTRING(H100:I100,"|") ->  | K100: 生命 | L100: 19789 | M100: 攻击 | N100: 164 | Q100: =IF(O100="",VLOOKUP(K100,属性表!$H:$I,2,0)&"#"&配件表!L100&"|"&VLOOKUP(M100,属性表!$H:$I,2,0)&"#"&配件表!N100,VLOOKUP(K100,属性表!$H:$I,2,0)&"#"&配件表!L100&"|"&VLOOKUP(M100,属性表!$H:$I,2,0)&"#"&配件表!N100&"|"&VLOOKUP(O100,属性表!$H:$I,2,0)&"#"&配件表!P100) -> 1#19789|2#164 | R100: 异妖4 | S100: 紫色
A101: 配件10 | B101: 10 | C101: 10 | D101: 6010 | E101: =E91 -> 8 | F101: 5 | G101: 420 | H101: =[1]!SUMSTRING(D101:E101,"#") ->  | I101: =[1]!SUMSTRING(F101:G101,"#") ->  | J101: =[1]!SUMSTRING(H101:I101,"|") ->  | K101: 生命 | L101: 24000 | M101: 攻击 | N101: 200 | Q101: =IF(O101="",VLOOKUP(K101,属性表!$H:$I,2,0)&"#"&配件表!L101&"|"&VLOOKUP(M101,属性表!$H:$I,2,0)&"#"&配件表!N101,VLOOKUP(K101,属性表!$H:$I,2,0)&"#"&配件表!L101&"|"&VLOOKUP(M101,属性表!$H:$I,2,0)&"#"&配件表!N101&"|"&VLOOKUP(O101,属性表!$H:$I,2,0)&"#"&配件表!P101) -> 1#24000|2#200 | R101: 异妖4 | S101: 紫色
A102: 配件11 | B102: 11 | C102: 1 | D102: 6011 | E102: =E92 -> 1 | F102: 5 | G102: 0 | H102: =[1]!SUMSTRING(D102:E102,"#") ->  | I102: =[1]!SUMSTRING(F102:G102,"#") ->  | J102: =[1]!SUMSTRING(H102:I102,"|") ->  | K102: 生命 | L102: 842 | M102: 效果抵抗 | N102: 1 | Q102: =IF(O102="",VLOOKUP(K102,属性表!$H:$I,2,0)&"#"&配件表!L102&"|"&VLOOKUP(M102,属性表!$H:$I,2,0)&"#"&配件表!N102,VLOOKUP(K102,属性表!$H:$I,2,0)&"#"&配件表!L102&"|"&VLOOKUP(M102,属性表!$H:$I,2,0)&"#"&配件表!N102&"|"&VLOOKUP(O102,属性表!$H:$I,2,0)&"#"&配件表!P102) -> 1#842|54#1 | R102: 异妖4 | S102: 紫色
A103: 配件11 | B103: 11 | C103: 2 | D103: 6011 | E103: =E93 -> 1 | F103: 5 | G103: 40 | H103: =[1]!SUMSTRING(D103:E103,"#") ->  | I103: =[1]!SUMSTRING(F103:G103,"#") ->  | J103: =[1]!SUMSTRING(H103:I103,"|") ->  | K103: 生命 | L103: 2105 | M103: 效果抵抗 | N103: 2 | Q103: =IF(O103="",VLOOKUP(K103,属性表!$H:$I,2,0)&"#"&配件表!L103&"|"&VLOOKUP(M103,属性表!$H:$I,2,0)&"#"&配件表!N103,VLOOKUP(K103,属性表!$H:$I,2,0)&"#"&配件表!L103&"|"&VLOOKUP(M103,属性表!$H:$I,2,0)&"#"&配件表!N103&"|"&VLOOKUP(O103,属性表!$H:$I,2,0)&"#"&配件表!P103) -> 1#2105|54#2 | R103: 异妖4 | S103: 紫色
A104: 配件11 | B104: 11 | C104: 3 | D104: 6011 | E104: =E94 -> 2 | F104: 5 | G104: 65 | H104: =[1]!SUMSTRING(D104:E104,"#") ->  | I104: =[1]!SUMSTRING(F104:G104,"#") ->  | J104: =[1]!SUMSTRING(H104:I104,"|") ->  | K104: 生命 | L104: 3368 | M104: 效果抵抗 | N104: 4 | Q104: =IF(O104="",VLOOKUP(K104,属性表!$H:$I,2,0)&"#"&配件表!L104&"|"&VLOOKUP(M104,属性表!$H:$I,2,0)&"#"&配件表!N104,VLOOKUP(K104,属性表!$H:$I,2,0)&"#"&配件表!L104&"|"&VLOOKUP(M104,属性表!$H:$I,2,0)&"#"&配件表!N104&"|"&VLOOKUP(O104,属性表!$H:$I,2,0)&"#"&配件表!P104) -> 1#3368|54#4 | R104: 异妖4 | S104: 紫色
A105: 配件11 | B105: 11 | C105: 4 | D105: 6011 | E105: =E95 -> 2 | F105: 5 | G105: 100 | H105: =[1]!SUMSTRING(D105:E105,"#") ->  | I105: =[1]!SUMSTRING(F105:G105,"#") ->  | J105: =[1]!SUMSTRING(H105:I105,"|") ->  | K105: 生命 | L105: 5052 | M105: 效果抵抗 | N105: 6 | Q105: =IF(O105="",VLOOKUP(K105,属性表!$H:$I,2,0)&"#"&配件表!L105&"|"&VLOOKUP(M105,属性表!$H:$I,2,0)&"#"&配件表!N105,VLOOKUP(K105,属性表!$H:$I,2,0)&"#"&配件表!L105&"|"&VLOOKUP(M105,属性表!$H:$I,2,0)&"#"&配件表!N105&"|"&VLOOKUP(O105,属性表!$H:$I,2,0)&"#"&配件表!P105) -> 1#5052|54#6 | R105: 异妖4 | S105: 紫色
A106: 配件11 | B106: 11 | C106: 5 | D106: 6011 | E106: =E96 -> 3 | F106: 5 | G106: 135 | H106: =[1]!SUMSTRING(D106:E106,"#") ->  | I106: =[1]!SUMSTRING(F106:G106,"#") ->  | J106: =[1]!SUMSTRING(H106:I106,"|") ->  | K106: 生命 | L106: 7157 | M106: 效果抵抗 | N106: 9 | Q106: =IF(O106="",VLOOKUP(K106,属性表!$H:$I,2,0)&"#"&配件表!L106&"|"&VLOOKUP(M106,属性表!$H:$I,2,0)&"#"&配件表!N106,VLOOKUP(K106,属性表!$H:$I,2,0)&"#"&配件表!L106&"|"&VLOOKUP(M106,属性表!$H:$I,2,0)&"#"&配件表!N106&"|"&VLOOKUP(O106,属性表!$H:$I,2,0)&"#"&配件表!P106) -> 1#7157|54#9 | R106: 异妖4 | S106: 紫色
A107: 配件11 | B107: 11 | C107: 6 | D107: 6011 | E107: =E97 -> 3 | F107: 5 | G107: 180 | H107: =[1]!SUMSTRING(D107:E107,"#") ->  | I107: =[1]!SUMSTRING(F107:G107,"#") ->  | J107: =[1]!SUMSTRING(H107:I107,"|") ->  | K107: 生命 | L107: 9684 | M107: 效果抵抗 | N107: 12 | Q107: =IF(O107="",VLOOKUP(K107,属性表!$H:$I,2,0)&"#"&配件表!L107&"|"&VLOOKUP(M107,属性表!$H:$I,2,0)&"#"&配件表!N107,VLOOKUP(K107,属性表!$H:$I,2,0)&"#"&配件表!L107&"|"&VLOOKUP(M107,属性表!$H:$I,2,0)&"#"&配件表!N107&"|"&VLOOKUP(O107,属性表!$H:$I,2,0)&"#"&配件表!P107) -> 1#9684|54#12 | R107: 异妖4 | S107: 紫色
A108: 配件11 | B108: 11 | C108: 7 | D108: 6011 | E108: =E98 -> 4 | F108: 5 | G108: 235 | H108: =[1]!SUMSTRING(D108:E108,"#") ->  | I108: =[1]!SUMSTRING(F108:G108,"#") ->  | J108: =[1]!SUMSTRING(H108:I108,"|") ->  | K108: 生命 | L108: 12631 | M108: 效果抵抗 | N108: 16 | Q108: =IF(O108="",VLOOKUP(K108,属性表!$H:$I,2,0)&"#"&配件表!L108&"|"&VLOOKUP(M108,属性表!$H:$I,2,0)&"#"&配件表!N108,VLOOKUP(K108,属性表!$H:$I,2,0)&"#"&配件表!L108&"|"&VLOOKUP(M108,属性表!$H:$I,2,0)&"#"&配件表!N108&"|"&VLOOKUP(O108,属性表!$H:$I,2,0)&"#"&配件表!P108) -> 1#12631|54#16 | R108: 异妖4 | S108: 紫色
A109: 配件11 | B109: 11 | C109: 8 | D109: 6011 | E109: =E99 -> 5 | F109: 5 | G109: 290 | H109: =[1]!SUMSTRING(D109:E109,"#") ->  | I109: =[1]!SUMSTRING(F109:G109,"#") ->  | J109: =[1]!SUMSTRING(H109:I109,"|") ->  | K109: 生命 | L109: 16000 | M109: 效果抵抗 | N109: 20 | Q109: =IF(O109="",VLOOKUP(K109,属性表!$H:$I,2,0)&"#"&配件表!L109&"|"&VLOOKUP(M109,属性表!$H:$I,2,0)&"#"&配件表!N109,VLOOKUP(K109,属性表!$H:$I,2,0)&"#"&配件表!L109&"|"&VLOOKUP(M109,属性表!$H:$I,2,0)&"#"&配件表!N109&"|"&VLOOKUP(O109,属性表!$H:$I,2,0)&"#"&配件表!P109) -> 1#16000|54#20 | R109: 异妖4 | S109: 紫色
A110: 配件11 | B110: 11 | C110: 9 | D110: 6011 | E110: =E100 -> 6 | F110: 5 | G110: 355 | H110: =[1]!SUMSTRING(D110:E110,"#") ->  | I110: =[1]!SUMSTRING(F110:G110,"#") ->  | J110: =[1]!SUMSTRING(H110:I110,"|") ->  | K110: 生命 | L110: 19789 | M110: 效果抵抗 | N110: 25 | Q110: =IF(O110="",VLOOKUP(K110,属性表!$H:$I,2,0)&"#"&配件表!L110&"|"&VLOOKUP(M110,属性表!$H:$I,2,0)&"#"&配件表!N110,VLOOKUP(K110,属性表!$H:$I,2,0)&"#"&配件表!L110&"|"&VLOOKUP(M110,属性表!$H:$I,2,0)&"#"&配件表!N110&"|"&VLOOKUP(O110,属性表!$H:$I,2,0)&"#"&配件表!P110) -> 1#19789|54#25 | R110: 异妖4 | S110: 紫色
A111: 配件11 | B111: 11 | C111: 10 | D111: 6011 | E111: =E101 -> 8 | F111: 5 | G111: 420 | H111: =[1]!SUMSTRING(D111:E111,"#") ->  | I111: =[1]!SUMSTRING(F111:G111,"#") ->  | J111: =[1]!SUMSTRING(H111:I111,"|") ->  | K111: 生命 | L111: 24000 | M111: 效果抵抗 | N111: 30 | Q111: =IF(O111="",VLOOKUP(K111,属性表!$H:$I,2,0)&"#"&配件表!L111&"|"&VLOOKUP(M111,属性表!$H:$I,2,0)&"#"&配件表!N111,VLOOKUP(K111,属性表!$H:$I,2,0)&"#"&配件表!L111&"|"&VLOOKUP(M111,属性表!$H:$I,2,0)&"#"&配件表!N111&"|"&VLOOKUP(O111,属性表!$H:$I,2,0)&"#"&配件表!P111) -> 1#24000|54#30 | R111: 异妖4 | S111: 紫色
A112: 配件12 | B112: 12 | C112: 1 | D112: 6012 | E112: =E102 -> 1 | F112: 5 | G112: 0 | H112: =[1]!SUMSTRING(D112:E112,"#") ->  | I112: =[1]!SUMSTRING(F112:G112,"#") ->  | J112: =[1]!SUMSTRING(H112:I112,"|") ->  | K112: 攻击 | L112: 7 | M112: 效果抵抗 | N112: 1 | P112: =IF(K112="生命",L112,"") ->  | Q112: =IF(O112="",VLOOKUP(K112,属性表!$H:$I,2,0)&"#"&配件表!L112&"|"&VLOOKUP(M112,属性表!$H:$I,2,0)&"#"&配件表!N112,VLOOKUP(K112,属性表!$H:$I,2,0)&"#"&配件表!L112&"|"&VLOOKUP(M112,属性表!$H:$I,2,0)&"#"&配件表!N112&"|"&VLOOKUP(O112,属性表!$H:$I,2,0)&"#"&配件表!P112) -> 2#7|54#1 | R112: 异妖4 | S112: 紫色
A113: 配件12 | B113: 12 | C113: 2 | D113: 6012 | E113: =E103 -> 1 | F113: 5 | G113: 40 | H113: =[1]!SUMSTRING(D113:E113,"#") ->  | I113: =[1]!SUMSTRING(F113:G113,"#") ->  | J113: =[1]!SUMSTRING(H113:I113,"|") ->  | K113: 攻击 | L113: 17 | M113: 效果抵抗 | N113: 2 | Q113: =IF(O113="",VLOOKUP(K113,属性表!$H:$I,2,0)&"#"&配件表!L113&"|"&VLOOKUP(M113,属性表!$H:$I,2,0)&"#"&配件表!N113,VLOOKUP(K113,属性表!$H:$I,2,0)&"#"&配件表!L113&"|"&VLOOKUP(M113,属性表!$H:$I,2,0)&"#"&配件表!N113&"|"&VLOOKUP(O113,属性表!$H:$I,2,0)&"#"&配件表!P113) -> 2#17|54#2 | R113: 异妖4 | S113: 紫色
A114: 配件12 | B114: 12 | C114: 3 | D114: 6012 | E114: =E104 -> 2 | F114: 5 | G114: 65 | H114: =[1]!SUMSTRING(D114:E114,"#") ->  | I114: =[1]!SUMSTRING(F114:G114,"#") ->  | J114: =[1]!SUMSTRING(H114:I114,"|") ->  | K114: 攻击 | L114: 28 | M114: 效果抵抗 | N114: 4 | Q114: =IF(O114="",VLOOKUP(K114,属性表!$H:$I,2,0)&"#"&配件表!L114&"|"&VLOOKUP(M114,属性表!$H:$I,2,0)&"#"&配件表!N114,VLOOKUP(K114,属性表!$H:$I,2,0)&"#"&配件表!L114&"|"&VLOOKUP(M114,属性表!$H:$I,2,0)&"#"&配件表!N114&"|"&VLOOKUP(O114,属性表!$H:$I,2,0)&"#"&配件表!P114) -> 2#28|54#4 | R114: 异妖4 | S114: 紫色
A115: 配件12 | B115: 12 | C115: 4 | D115: 6012 | E115: =E105 -> 2 | F115: 5 | G115: 100 | H115: =[1]!SUMSTRING(D115:E115,"#") ->  | I115: =[1]!SUMSTRING(F115:G115,"#") ->  | J115: =[1]!SUMSTRING(H115:I115,"|") ->  | K115: 攻击 | L115: 42 | M115: 效果抵抗 | N115: 6 | Q115: =IF(O115="",VLOOKUP(K115,属性表!$H:$I,2,0)&"#"&配件表!L115&"|"&VLOOKUP(M115,属性表!$H:$I,2,0)&"#"&配件表!N115,VLOOKUP(K115,属性表!$H:$I,2,0)&"#"&配件表!L115&"|"&VLOOKUP(M115,属性表!$H:$I,2,0)&"#"&配件表!N115&"|"&VLOOKUP(O115,属性表!$H:$I,2,0)&"#"&配件表!P115) -> 2#42|54#6 | R115: 异妖4 | S115: 紫色
A116: 配件12 | B116: 12 | C116: 5 | D116: 6012 | E116: =E106 -> 3 | F116: 5 | G116: 135 | H116: =[1]!SUMSTRING(D116:E116,"#") ->  | I116: =[1]!SUMSTRING(F116:G116,"#") ->  | J116: =[1]!SUMSTRING(H116:I116,"|") ->  | K116: 攻击 | L116: 59 | M116: 效果抵抗 | N116: 9 | Q116: =IF(O116="",VLOOKUP(K116,属性表!$H:$I,2,0)&"#"&配件表!L116&"|"&VLOOKUP(M116,属性表!$H:$I,2,0)&"#"&配件表!N116,VLOOKUP(K116,属性表!$H:$I,2,0)&"#"&配件表!L116&"|"&VLOOKUP(M116,属性表!$H:$I,2,0)&"#"&配件表!N116&"|"&VLOOKUP(O116,属性表!$H:$I,2,0)&"#"&配件表!P116) -> 2#59|54#9 | R116: 异妖4 | S116: 紫色
A117: 配件12 | B117: 12 | C117: 6 | D117: 6012 | E117: =E107 -> 3 | F117: 5 | G117: 180 | H117: =[1]!SUMSTRING(D117:E117,"#") ->  | I117: =[1]!SUMSTRING(F117:G117,"#") ->  | J117: =[1]!SUMSTRING(H117:I117,"|") ->  | K117: 攻击 | L117: 80 | M117: 效果抵抗 | N117: 12 | Q117: =IF(O117="",VLOOKUP(K117,属性表!$H:$I,2,0)&"#"&配件表!L117&"|"&VLOOKUP(M117,属性表!$H:$I,2,0)&"#"&配件表!N117,VLOOKUP(K117,属性表!$H:$I,2,0)&"#"&配件表!L117&"|"&VLOOKUP(M117,属性表!$H:$I,2,0)&"#"&配件表!N117&"|"&VLOOKUP(O117,属性表!$H:$I,2,0)&"#"&配件表!P117) -> 2#80|54#12 | R117: 异妖4 | S117: 紫色
A118: 配件12 | B118: 12 | C118: 7 | D118: 6012 | E118: =E108 -> 4 | F118: 5 | G118: 235 | H118: =[1]!SUMSTRING(D118:E118,"#") ->  | I118: =[1]!SUMSTRING(F118:G118,"#") ->  | J118: =[1]!SUMSTRING(H118:I118,"|") ->  | K118: 攻击 | L118: 105 | M118: 效果抵抗 | N118: 16 | Q118: =IF(O118="",VLOOKUP(K118,属性表!$H:$I,2,0)&"#"&配件表!L118&"|"&VLOOKUP(M118,属性表!$H:$I,2,0)&"#"&配件表!N118,VLOOKUP(K118,属性表!$H:$I,2,0)&"#"&配件表!L118&"|"&VLOOKUP(M118,属性表!$H:$I,2,0)&"#"&配件表!N118&"|"&VLOOKUP(O118,属性表!$H:$I,2,0)&"#"&配件表!P118) -> 2#105|54#16 | R118: 异妖4 | S118: 紫色
A119: 配件12 | B119: 12 | C119: 8 | D119: 6012 | E119: =E109 -> 5 | F119: 5 | G119: 290 | H119: =[1]!SUMSTRING(D119:E119,"#") ->  | I119: =[1]!SUMSTRING(F119:G119,"#") ->  | J119: =[1]!SUMSTRING(H119:I119,"|") ->  | K119: 攻击 | L119: 133 | M119: 效果抵抗 | N119: 20 | Q119: =IF(O119="",VLOOKUP(K119,属性表!$H:$I,2,0)&"#"&配件表!L119&"|"&VLOOKUP(M119,属性表!$H:$I,2,0)&"#"&配件表!N119,VLOOKUP(K119,属性表!$H:$I,2,0)&"#"&配件表!L119&"|"&VLOOKUP(M119,属性表!$H:$I,2,0)&"#"&配件表!N119&"|"&VLOOKUP(O119,属性表!$H:$I,2,0)&"#"&配件表!P119) -> 2#133|54#20 | R119: 异妖4 | S119: 紫色
A120: 配件12 | B120: 12 | C120: 9 | D120: 6012 | E120: =E110 -> 6 | F120: 5 | G120: 355 | H120: =[1]!SUMSTRING(D120:E120,"#") ->  | I120: =[1]!SUMSTRING(F120:G120,"#") ->  | J120: =[1]!SUMSTRING(H120:I120,"|") ->  | K120: 攻击 | L120: 164 | M120: 效果抵抗 | N120: 25 | Q120: =IF(O120="",VLOOKUP(K120,属性表!$H:$I,2,0)&"#"&配件表!L120&"|"&VLOOKUP(M120,属性表!$H:$I,2,0)&"#"&配件表!N120,VLOOKUP(K120,属性表!$H:$I,2,0)&"#"&配件表!L120&"|"&VLOOKUP(M120,属性表!$H:$I,2,0)&"#"&配件表!N120&"|"&VLOOKUP(O120,属性表!$H:$I,2,0)&"#"&配件表!P120) -> 2#164|54#25 | R120: 异妖4 | S120: 紫色
A121: 配件12 | B121: 12 | C121: 10 | D121: 6012 | E121: =E111 -> 8 | F121: 5 | G121: 420 | H121: =[1]!SUMSTRING(D121:E121,"#") ->  | I121: =[1]!SUMSTRING(F121:G121,"#") ->  | J121: =[1]!SUMSTRING(H121:I121,"|") ->  | K121: 攻击 | L121: 200 | M121: 效果抵抗 | N121: 30 | Q121: =IF(O121="",VLOOKUP(K121,属性表!$H:$I,2,0)&"#"&配件表!L121&"|"&VLOOKUP(M121,属性表!$H:$I,2,0)&"#"&配件表!N121,VLOOKUP(K121,属性表!$H:$I,2,0)&"#"&配件表!L121&"|"&VLOOKUP(M121,属性表!$H:$I,2,0)&"#"&配件表!N121&"|"&VLOOKUP(O121,属性表!$H:$I,2,0)&"#"&配件表!P121) -> 2#200|54#30 | R121: 异妖4 | S121: 紫色
A122: 配件13 | B122: 13 | C122: 1 | D122: 6013 | E122: =E112 -> 1 | F122: 5 | G122: 0 | H122: =[1]!SUMSTRING(D122:E122,"#") ->  | I122: =[1]!SUMSTRING(F122:G122,"#") ->  | J122: =[1]!SUMSTRING(H122:I122,"|") ->  | K122: 生命 | L122: 1347 | M122: 攻击 | N122: 11 | Q122: =IF(O122="",VLOOKUP(K122,属性表!$H:$I,2,0)&"#"&配件表!L122&"|"&VLOOKUP(M122,属性表!$H:$I,2,0)&"#"&配件表!N122,VLOOKUP(K122,属性表!$H:$I,2,0)&"#"&配件表!L122&"|"&VLOOKUP(M122,属性表!$H:$I,2,0)&"#"&配件表!N122&"|"&VLOOKUP(O122,属性表!$H:$I,2,0)&"#"&配件表!P122) -> 1#1347|2#11 | R122: =VLOOKUP(B122,$Y:$Z,2,0) -> 异妖5 | S122: =VLOOKUP(R122,$Z:$AA,2,0) -> 橙色
A123: 配件13 | B123: 13 | C123: 2 | D123: 6013 | E123: =E113 -> 1 | F123: 5 | G123: 40 | H123: =[1]!SUMSTRING(D123:E123,"#") ->  | I123: =[1]!SUMSTRING(F123:G123,"#") ->  | J123: =[1]!SUMSTRING(H123:I123,"|") ->  | K123: 生命 | L123: 3368 | M123: 攻击 | N123: 28 | O123: 火攻（%） | P123: 2 | Q123: =IF(O123="",VLOOKUP(K123,属性表!$H:$I,2,0)&"#"&配件表!L123&"|"&VLOOKUP(M123,属性表!$H:$I,2,0)&"#"&配件表!N123,VLOOKUP(K123,属性表!$H:$I,2,0)&"#"&配件表!L123&"|"&VLOOKUP(M123,属性表!$H:$I,2,0)&"#"&配件表!N123&"|"&VLOOKUP(O123,属性表!$H:$I,2,0)&"#"&配件表!P123) -> 1#3368|2#28|101#2 | R123: 异妖5 | S123: 橙色
A124: 配件13 | B124: 13 | C124: 3 | D124: 6013 | E124: =E114 -> 2 | F124: 5 | G124: 65 | H124: =[1]!SUMSTRING(D124:E124,"#") ->  | I124: =[1]!SUMSTRING(F124:G124,"#") ->  | J124: =[1]!SUMSTRING(H124:I124,"|") ->  | K124: 生命 | L124: 5389 | M124: 攻击 | N124: 44 | Q124: =IF(O124="",VLOOKUP(K124,属性表!$H:$I,2,0)&"#"&配件表!L124&"|"&VLOOKUP(M124,属性表!$H:$I,2,0)&"#"&配件表!N124,VLOOKUP(K124,属性表!$H:$I,2,0)&"#"&配件表!L124&"|"&VLOOKUP(M124,属性表!$H:$I,2,0)&"#"&配件表!N124&"|"&VLOOKUP(O124,属性表!$H:$I,2,0)&"#"&配件表!P124) -> 1#5389|2#44 | R124: 异妖5 | S124: 橙色
A125: 配件13 | B125: 13 | C125: 4 | D125: 6013 | E125: =E115 -> 2 | F125: 5 | G125: 100 | H125: =[1]!SUMSTRING(D125:E125,"#") ->  | I125: =[1]!SUMSTRING(F125:G125,"#") ->  | J125: =[1]!SUMSTRING(H125:I125,"|") ->  | K125: 生命 | L125: 8084 | M125: 攻击 | N125: 67 | O125: 火攻（%） | P125: 6 | Q125: =IF(O125="",VLOOKUP(K125,属性表!$H:$I,2,0)&"#"&配件表!L125&"|"&VLOOKUP(M125,属性表!$H:$I,2,0)&"#"&配件表!N125,VLOOKUP(K125,属性表!$H:$I,2,0)&"#"&配件表!L125&"|"&VLOOKUP(M125,属性表!$H:$I,2,0)&"#"&配件表!N125&"|"&VLOOKUP(O125,属性表!$H:$I,2,0)&"#"&配件表!P125) -> 1#8084|2#67|101#6 | R125: 异妖5 | S125: 橙色
A126: 配件13 | B126: 13 | C126: 5 | D126: 6013 | E126: =E116 -> 3 | F126: 5 | G126: 135 | H126: =[1]!SUMSTRING(D126:E126,"#") ->  | I126: =[1]!SUMSTRING(F126:G126,"#") ->  | J126: =[1]!SUMSTRING(H126:I126,"|") ->  | K126: 生命 | L126: 11452 | M126: 攻击 | N126: 95 | Q126: =IF(O126="",VLOOKUP(K126,属性表!$H:$I,2,0)&"#"&配件表!L126&"|"&VLOOKUP(M126,属性表!$H:$I,2,0)&"#"&配件表!N126,VLOOKUP(K126,属性表!$H:$I,2,0)&"#"&配件表!L126&"|"&VLOOKUP(M126,属性表!$H:$I,2,0)&"#"&配件表!N126&"|"&VLOOKUP(O126,属性表!$H:$I,2,0)&"#"&配件表!P126) -> 1#11452|2#95 | R126: 异妖5 | S126: 橙色
A127: 配件13 | B127: 13 | C127: 6 | D127: 6013 | E127: =E117 -> 3 | F127: 5 | G127: 180 | H127: =[1]!SUMSTRING(D127:E127,"#") ->  | I127: =[1]!SUMSTRING(F127:G127,"#") ->  | J127: =[1]!SUMSTRING(H127:I127,"|") ->  | K127: 生命 | L127: 15494 | M127: 攻击 | N127: 129 | O127: 火攻（%） | P127: 12 | Q127: =IF(O127="",VLOOKUP(K127,属性表!$H:$I,2,0)&"#"&配件表!L127&"|"&VLOOKUP(M127,属性表!$H:$I,2,0)&"#"&配件表!N127,VLOOKUP(K127,属性表!$H:$I,2,0)&"#"&配件表!L127&"|"&VLOOKUP(M127,属性表!$H:$I,2,0)&"#"&配件表!N127&"|"&VLOOKUP(O127,属性表!$H:$I,2,0)&"#"&配件表!P127) -> 1#15494|2#129|101#12 | R127: 异妖5 | S127: 橙色
A128: 配件13 | B128: 13 | C128: 7 | D128: 6013 | E128: =E118 -> 4 | F128: 5 | G128: 235 | H128: =[1]!SUMSTRING(D128:E128,"#") ->  | I128: =[1]!SUMSTRING(F128:G128,"#") ->  | J128: =[1]!SUMSTRING(H128:I128,"|") ->  | K128: 生命 | L128: 20210 | M128: 攻击 | N128: 168 | Q128: =IF(O128="",VLOOKUP(K128,属性表!$H:$I,2,0)&"#"&配件表!L128&"|"&VLOOKUP(M128,属性表!$H:$I,2,0)&"#"&配件表!N128,VLOOKUP(K128,属性表!$H:$I,2,0)&"#"&配件表!L128&"|"&VLOOKUP(M128,属性表!$H:$I,2,0)&"#"&配件表!N128&"|"&VLOOKUP(O128,属性表!$H:$I,2,0)&"#"&配件表!P128) -> 1#20210|2#168 | R128: 异妖5 | S128: 橙色
A129: 配件13 | B129: 13 | C129: 8 | D129: 6013 | E129: =E119 -> 5 | F129: 5 | G129: 290 | H129: =[1]!SUMSTRING(D129:E129,"#") ->  | I129: =[1]!SUMSTRING(F129:G129,"#") ->  | J129: =[1]!SUMSTRING(H129:I129,"|") ->  | K129: 生命 | L129: 25600 | M129: 攻击 | N129: 213 | O129: 火攻（%） | P129: 20 | Q129: =IF(O129="",VLOOKUP(K129,属性表!$H:$I,2,0)&"#"&配件表!L129&"|"&VLOOKUP(M129,属性表!$H:$I,2,0)&"#"&配件表!N129,VLOOKUP(K129,属性表!$H:$I,2,0)&"#"&配件表!L129&"|"&VLOOKUP(M129,属性表!$H:$I,2,0)&"#"&配件表!N129&"|"&VLOOKUP(O129,属性表!$H:$I,2,0)&"#"&配件表!P129) -> 1#25600|2#213|101#20 | R129: 异妖5 | S129: 橙色
A130: 配件13 | B130: 13 | C130: 9 | D130: 6013 | E130: =E120 -> 6 | F130: 5 | G130: 355 | H130: =[1]!SUMSTRING(D130:E130,"#") ->  | I130: =[1]!SUMSTRING(F130:G130,"#") ->  | J130: =[1]!SUMSTRING(H130:I130,"|") ->  | K130: 生命 | L130: 31663 | M130: 攻击 | N130: 263 | Q130: =IF(O130="",VLOOKUP(K130,属性表!$H:$I,2,0)&"#"&配件表!L130&"|"&VLOOKUP(M130,属性表!$H:$I,2,0)&"#"&配件表!N130,VLOOKUP(K130,属性表!$H:$I,2,0)&"#"&配件表!L130&"|"&VLOOKUP(M130,属性表!$H:$I,2,0)&"#"&配件表!N130&"|"&VLOOKUP(O130,属性表!$H:$I,2,0)&"#"&配件表!P130) -> 1#31663|2#263 | R130: 异妖5 | S130: 橙色
A131: ="配件"&B131 -> 配件13 | B131: 13 | C131: 10 | D131: 6013 | E131: =E121 -> 8 | F131: 5 | G131: 420 | H131: =[1]!SUMSTRING(D131:E131,"#") ->  | I131: =[1]!SUMSTRING(F131:G131,"#") ->  | J131: =[1]!SUMSTRING(H131:I131,"|") ->  | K131: 生命 | L131: 38400 | M131: 攻击 | N131: 320 | O131: 火攻（%） | P131: 30 | Q131: =IF(O131="",VLOOKUP(K131,属性表!$H:$I,2,0)&"#"&配件表!L131&"|"&VLOOKUP(M131,属性表!$H:$I,2,0)&"#"&配件表!N131,VLOOKUP(K131,属性表!$H:$I,2,0)&"#"&配件表!L131&"|"&VLOOKUP(M131,属性表!$H:$I,2,0)&"#"&配件表!N131&"|"&VLOOKUP(O131,属性表!$H:$I,2,0)&"#"&配件表!P131) -> 1#38400|2#320|101#30 | R131: 异妖5 | S131: 橙色
A132: 配件14 | B132: 14 | C132: 1 | D132: 6014 | E132: =E122 -> 1 | F132: 5 | G132: 0 | H132: =[1]!SUMSTRING(D132:E132,"#") ->  | I132: =[1]!SUMSTRING(F132:G132,"#") ->  | J132: =[1]!SUMSTRING(H132:I132,"|") ->  | K132: 生命 | L132: 1347 | M132: 攻击 | N132: 11 | Q132: =IF(O132="",VLOOKUP(K132,属性表!$H:$I,2,0)&"#"&配件表!L132&"|"&VLOOKUP(M132,属性表!$H:$I,2,0)&"#"&配件表!N132,VLOOKUP(K132,属性表!$H:$I,2,0)&"#"&配件表!L132&"|"&VLOOKUP(M132,属性表!$H:$I,2,0)&"#"&配件表!N132&"|"&VLOOKUP(O132,属性表!$H:$I,2,0)&"#"&配件表!P132) -> 1#1347|2#11 | R132: 异妖5 | S132: 橙色
A133: 配件14 | B133: 14 | C133: 2 | D133: 6014 | E133: =E123 -> 1 | F133: 5 | G133: 40 | H133: =[1]!SUMSTRING(D133:E133,"#") ->  | I133: =[1]!SUMSTRING(F133:G133,"#") ->  | J133: =[1]!SUMSTRING(H133:I133,"|") ->  | K133: 生命 | L133: 3368 | M133: 攻击 | N133: 28 | O133: 水攻（%） | P133: 2 | Q133: =IF(O133="",VLOOKUP(K133,属性表!$H:$I,2,0)&"#"&配件表!L133&"|"&VLOOKUP(M133,属性表!$H:$I,2,0)&"#"&配件表!N133,VLOOKUP(K133,属性表!$H:$I,2,0)&"#"&配件表!L133&"|"&VLOOKUP(M133,属性表!$H:$I,2,0)&"#"&配件表!N133&"|"&VLOOKUP(O133,属性表!$H:$I,2,0)&"#"&配件表!P133) -> 1#3368|2#28|103#2 | R133: 异妖5 | S133: 橙色
A134: 配件14 | B134: 14 | C134: 3 | D134: 6014 | E134: =E124 -> 2 | F134: 5 | G134: 65 | H134: =[1]!SUMSTRING(D134:E134,"#") ->  | I134: =[1]!SUMSTRING(F134:G134,"#") ->  | J134: =[1]!SUMSTRING(H134:I134,"|") ->  | K134: 生命 | L134: 5389 | M134: 攻击 | N134: 44 | Q134: =IF(O134="",VLOOKUP(K134,属性表!$H:$I,2,0)&"#"&配件表!L134&"|"&VLOOKUP(M134,属性表!$H:$I,2,0)&"#"&配件表!N134,VLOOKUP(K134,属性表!$H:$I,2,0)&"#"&配件表!L134&"|"&VLOOKUP(M134,属性表!$H:$I,2,0)&"#"&配件表!N134&"|"&VLOOKUP(O134,属性表!$H:$I,2,0)&"#"&配件表!P134) -> 1#5389|2#44 | R134: 异妖5 | S134: 橙色
A135: 配件14 | B135: 14 | C135: 4 | D135: 6014 | E135: =E125 -> 2 | F135: 5 | G135: 100 | H135: =[1]!SUMSTRING(D135:E135,"#") ->  | I135: =[1]!SUMSTRING(F135:G135,"#") ->  | J135: =[1]!SUMSTRING(H135:I135,"|") ->  | K135: 生命 | L135: 8084 | M135: 攻击 | N135: 67 | O135: 水攻（%） | P135: 6 | Q135: =IF(O135="",VLOOKUP(K135,属性表!$H:$I,2,0)&"#"&配件表!L135&"|"&VLOOKUP(M135,属性表!$H:$I,2,0)&"#"&配件表!N135,VLOOKUP(K135,属性表!$H:$I,2,0)&"#"&配件表!L135&"|"&VLOOKUP(M135,属性表!$H:$I,2,0)&"#"&配件表!N135&"|"&VLOOKUP(O135,属性表!$H:$I,2,0)&"#"&配件表!P135) -> 1#8084|2#67|103#6 | R135: 异妖5 | S135: 橙色
A136: 配件14 | B136: 14 | C136: 5 | D136: 6014 | E136: =E126 -> 3 | F136: 5 | G136: 135 | H136: =[1]!SUMSTRING(D136:E136,"#") ->  | I136: =[1]!SUMSTRING(F136:G136,"#") ->  | J136: =[1]!SUMSTRING(H136:I136,"|") ->  | K136: 生命 | L136: 11452 | M136: 攻击 | N136: 95 | Q136: =IF(O136="",VLOOKUP(K136,属性表!$H:$I,2,0)&"#"&配件表!L136&"|"&VLOOKUP(M136,属性表!$H:$I,2,0)&"#"&配件表!N136,VLOOKUP(K136,属性表!$H:$I,2,0)&"#"&配件表!L136&"|"&VLOOKUP(M136,属性表!$H:$I,2,0)&"#"&配件表!N136&"|"&VLOOKUP(O136,属性表!$H:$I,2,0)&"#"&配件表!P136) -> 1#11452|2#95 | R136: 异妖5 | S136: 橙色
A137: 配件14 | B137: 14 | C137: 6 | D137: 6014 | E137: =E127 -> 3 | F137: 5 | G137: 180 | H137: =[1]!SUMSTRING(D137:E137,"#") ->  | I137: =[1]!SUMSTRING(F137:G137,"#") ->  | J137: =[1]!SUMSTRING(H137:I137,"|") ->  | K137: 生命 | L137: 15494 | M137: 攻击 | N137: 129 | O137: 水攻（%） | P137: 12 | Q137: =IF(O137="",VLOOKUP(K137,属性表!$H:$I,2,0)&"#"&配件表!L137&"|"&VLOOKUP(M137,属性表!$H:$I,2,0)&"#"&配件表!N137,VLOOKUP(K137,属性表!$H:$I,2,0)&"#"&配件表!L137&"|"&VLOOKUP(M137,属性表!$H:$I,2,0)&"#"&配件表!N137&"|"&VLOOKUP(O137,属性表!$H:$I,2,0)&"#"&配件表!P137) -> 1#15494|2#129|103#12 | R137: 异妖5 | S137: 橙色
A138: 配件14 | B138: 14 | C138: 7 | D138: 6014 | E138: =E128 -> 4 | F138: 5 | G138: 235 | H138: =[1]!SUMSTRING(D138:E138,"#") ->  | I138: =[1]!SUMSTRING(F138:G138,"#") ->  | J138: =[1]!SUMSTRING(H138:I138,"|") ->  | K138: 生命 | L138: 20210 | M138: 攻击 | N138: 168 | Q138: =IF(O138="",VLOOKUP(K138,属性表!$H:$I,2,0)&"#"&配件表!L138&"|"&VLOOKUP(M138,属性表!$H:$I,2,0)&"#"&配件表!N138,VLOOKUP(K138,属性表!$H:$I,2,0)&"#"&配件表!L138&"|"&VLOOKUP(M138,属性表!$H:$I,2,0)&"#"&配件表!N138&"|"&VLOOKUP(O138,属性表!$H:$I,2,0)&"#"&配件表!P138) -> 1#20210|2#168 | R138: 异妖5 | S138: 橙色
A139: 配件14 | B139: 14 | C139: 8 | D139: 6014 | E139: =E129 -> 5 | F139: 5 | G139: 290 | H139: =[1]!SUMSTRING(D139:E139,"#") ->  | I139: =[1]!SUMSTRING(F139:G139,"#") ->  | J139: =[1]!SUMSTRING(H139:I139,"|") ->  | K139: 生命 | L139: 25600 | M139: 攻击 | N139: 213 | O139: 水攻（%） | P139: 20 | Q139: =IF(O139="",VLOOKUP(K139,属性表!$H:$I,2,0)&"#"&配件表!L139&"|"&VLOOKUP(M139,属性表!$H:$I,2,0)&"#"&配件表!N139,VLOOKUP(K139,属性表!$H:$I,2,0)&"#"&配件表!L139&"|"&VLOOKUP(M139,属性表!$H:$I,2,0)&"#"&配件表!N139&"|"&VLOOKUP(O139,属性表!$H:$I,2,0)&"#"&配件表!P139) -> 1#25600|2#213|103#20 | R139: 异妖5 | S139: 橙色
A140: 配件14 | B140: 14 | C140: 9 | D140: 6014 | E140: =E130 -> 6 | F140: 5 | G140: 355 | H140: =[1]!SUMSTRING(D140:E140,"#") ->  | I140: =[1]!SUMSTRING(F140:G140,"#") ->  | J140: =[1]!SUMSTRING(H140:I140,"|") ->  | K140: 生命 | L140: 31663 | M140: 攻击 | N140: 263 | Q140: =IF(O140="",VLOOKUP(K140,属性表!$H:$I,2,0)&"#"&配件表!L140&"|"&VLOOKUP(M140,属性表!$H:$I,2,0)&"#"&配件表!N140,VLOOKUP(K140,属性表!$H:$I,2,0)&"#"&配件表!L140&"|"&VLOOKUP(M140,属性表!$H:$I,2,0)&"#"&配件表!N140&"|"&VLOOKUP(O140,属性表!$H:$I,2,0)&"#"&配件表!P140) -> 1#31663|2#263 | R140: 异妖5 | S140: 橙色
A141: 配件14 | B141: =B131+1 -> 14 | C141: =C131 -> 10 | D141: =D131+1 -> 6014 | E141: =E131 -> 8 | F141: 5 | G141: 420 | H141: =[1]!SUMSTRING(D141:E141,"#") ->  | I141: =[1]!SUMSTRING(F141:G141,"#") ->  | J141: =[1]!SUMSTRING(H141:I141,"|") ->  | K141: 生命 | L141: 38400 | M141: 攻击 | N141: 320 | O141: 水攻（%） | P141: 30 | Q141: =IF(O141="",VLOOKUP(K141,属性表!$H:$I,2,0)&"#"&配件表!L141&"|"&VLOOKUP(M141,属性表!$H:$I,2,0)&"#"&配件表!N141,VLOOKUP(K141,属性表!$H:$I,2,0)&"#"&配件表!L141&"|"&VLOOKUP(M141,属性表!$H:$I,2,0)&"#"&配件表!N141&"|"&VLOOKUP(O141,属性表!$H:$I,2,0)&"#"&配件表!P141) -> 1#38400|2#320|103#30 | R141: 异妖5 | S141: 橙色
A142: 配件15 | B142: 15 | C142: 1 | D142: 6015 | E142: =E132 -> 1 | F142: 5 | G142: 0 | H142: =[1]!SUMSTRING(D142:E142,"#") ->  | I142: =[1]!SUMSTRING(F142:G142,"#") ->  | J142: =[1]!SUMSTRING(H142:I142,"|") ->  | K142: 生命 | L142: 1347 | M142: 攻击 | N142: 11 | Q142: =IF(O142="",VLOOKUP(K142,属性表!$H:$I,2,0)&"#"&配件表!L142&"|"&VLOOKUP(M142,属性表!$H:$I,2,0)&"#"&配件表!N142,VLOOKUP(K142,属性表!$H:$I,2,0)&"#"&配件表!L142&"|"&VLOOKUP(M142,属性表!$H:$I,2,0)&"#"&配件表!N142&"|"&VLOOKUP(O142,属性表!$H:$I,2,0)&"#"&配件表!P142) -> 1#1347|2#11 | R142: 异妖5 | S142: 橙色
A143: 配件15 | B143: 15 | C143: 2 | D143: 6015 | E143: =E133 -> 1 | F143: 5 | G143: 40 | H143: =[1]!SUMSTRING(D143:E143,"#") ->  | I143: =[1]!SUMSTRING(F143:G143,"#") ->  | J143: =[1]!SUMSTRING(H143:I143,"|") ->  | K143: 生命 | L143: 3368 | M143: 攻击 | N143: 28 | O143: 地攻（%） | P143: 2 | Q143: =IF(O143="",VLOOKUP(K143,属性表!$H:$I,2,0)&"#"&配件表!L143&"|"&VLOOKUP(M143,属性表!$H:$I,2,0)&"#"&配件表!N143,VLOOKUP(K143,属性表!$H:$I,2,0)&"#"&配件表!L143&"|"&VLOOKUP(M143,属性表!$H:$I,2,0)&"#"&配件表!N143&"|"&VLOOKUP(O143,属性表!$H:$I,2,0)&"#"&配件表!P143) -> 1#3368|2#28|104#2 | R143: 异妖5 | S143: 橙色
A144: 配件15 | B144: 15 | C144: 3 | D144: 6015 | E144: =E134 -> 2 | F144: 5 | G144: 65 | H144: =[1]!SUMSTRING(D144:E144,"#") ->  | I144: =[1]!SUMSTRING(F144:G144,"#") ->  | J144: =[1]!SUMSTRING(H144:I144,"|") ->  | K144: 生命 | L144: 5389 | M144: 攻击 | N144: 44 | Q144: =IF(O144="",VLOOKUP(K144,属性表!$H:$I,2,0)&"#"&配件表!L144&"|"&VLOOKUP(M144,属性表!$H:$I,2,0)&"#"&配件表!N144,VLOOKUP(K144,属性表!$H:$I,2,0)&"#"&配件表!L144&"|"&VLOOKUP(M144,属性表!$H:$I,2,0)&"#"&配件表!N144&"|"&VLOOKUP(O144,属性表!$H:$I,2,0)&"#"&配件表!P144) -> 1#5389|2#44 | R144: 异妖5 | S144: 橙色
A145: 配件15 | B145: 15 | C145: 4 | D145: 6015 | E145: =E135 -> 2 | F145: 5 | G145: 100 | H145: =[1]!SUMSTRING(D145:E145,"#") ->  | I145: =[1]!SUMSTRING(F145:G145,"#") ->  | J145: =[1]!SUMSTRING(H145:I145,"|") ->  | K145: 生命 | L145: 8084 | M145: 攻击 | N145: 67 | O145: 地攻（%） | P145: 6 | Q145: =IF(O145="",VLOOKUP(K145,属性表!$H:$I,2,0)&"#"&配件表!L145&"|"&VLOOKUP(M145,属性表!$H:$I,2,0)&"#"&配件表!N145,VLOOKUP(K145,属性表!$H:$I,2,0)&"#"&配件表!L145&"|"&VLOOKUP(M145,属性表!$H:$I,2,0)&"#"&配件表!N145&"|"&VLOOKUP(O145,属性表!$H:$I,2,0)&"#"&配件表!P145) -> 1#8084|2#67|104#6 | R145: 异妖5 | S145: 橙色
A146: 配件15 | B146: 15 | C146: 5 | D146: 6015 | E146: =E136 -> 3 | F146: 5 | G146: 135 | H146: =[1]!SUMSTRING(D146:E146,"#") ->  | I146: =[1]!SUMSTRING(F146:G146,"#") ->  | J146: =[1]!SUMSTRING(H146:I146,"|") ->  | K146: 生命 | L146: 11452 | M146: 攻击 | N146: 95 | Q146: =IF(O146="",VLOOKUP(K146,属性表!$H:$I,2,0)&"#"&配件表!L146&"|"&VLOOKUP(M146,属性表!$H:$I,2,0)&"#"&配件表!N146,VLOOKUP(K146,属性表!$H:$I,2,0)&"#"&配件表!L146&"|"&VLOOKUP(M146,属性表!$H:$I,2,0)&"#"&配件表!N146&"|"&VLOOKUP(O146,属性表!$H:$I,2,0)&"#"&配件表!P146) -> 1#11452|2#95 | R146: 异妖5 | S146: 橙色
A147: 配件15 | B147: 15 | C147: 6 | D147: 6015 | E147: =E137 -> 3 | F147: 5 | G147: 180 | H147: =[1]!SUMSTRING(D147:E147,"#") ->  | I147: =[1]!SUMSTRING(F147:G147,"#") ->  | J147: =[1]!SUMSTRING(H147:I147,"|") ->  | K147: 生命 | L147: 15494 | M147: 攻击 | N147: 129 | O147: 地攻（%） | P147: 12 | Q147: =IF(O147="",VLOOKUP(K147,属性表!$H:$I,2,0)&"#"&配件表!L147&"|"&VLOOKUP(M147,属性表!$H:$I,2,0)&"#"&配件表!N147,VLOOKUP(K147,属性表!$H:$I,2,0)&"#"&配件表!L147&"|"&VLOOKUP(M147,属性表!$H:$I,2,0)&"#"&配件表!N147&"|"&VLOOKUP(O147,属性表!$H:$I,2,0)&"#"&配件表!P147) -> 1#15494|2#129|104#12 | R147: 异妖5 | S147: 橙色
A148: 配件15 | B148: 15 | C148: 7 | D148: 6015 | E148: =E138 -> 4 | F148: 5 | G148: 235 | H148: =[1]!SUMSTRING(D148:E148,"#") ->  | I148: =[1]!SUMSTRING(F148:G148,"#") ->  | J148: =[1]!SUMSTRING(H148:I148,"|") ->  | K148: 生命 | L148: 20210 | M148: 攻击 | N148: 168 | Q148: =IF(O148="",VLOOKUP(K148,属性表!$H:$I,2,0)&"#"&配件表!L148&"|"&VLOOKUP(M148,属性表!$H:$I,2,0)&"#"&配件表!N148,VLOOKUP(K148,属性表!$H:$I,2,0)&"#"&配件表!L148&"|"&VLOOKUP(M148,属性表!$H:$I,2,0)&"#"&配件表!N148&"|"&VLOOKUP(O148,属性表!$H:$I,2,0)&"#"&配件表!P148) -> 1#20210|2#168 | R148: 异妖5 | S148: 橙色
A149: 配件15 | B149: 15 | C149: 8 | D149: 6015 | E149: =E139 -> 5 | F149: 5 | G149: 290 | H149: =[1]!SUMSTRING(D149:E149,"#") ->  | I149: =[1]!SUMSTRING(F149:G149,"#") ->  | J149: =[1]!SUMSTRING(H149:I149,"|") ->  | K149: 生命 | L149: 25600 | M149: 攻击 | N149: 213 | O149: 地攻（%） | P149: 20 | Q149: =IF(O149="",VLOOKUP(K149,属性表!$H:$I,2,0)&"#"&配件表!L149&"|"&VLOOKUP(M149,属性表!$H:$I,2,0)&"#"&配件表!N149,VLOOKUP(K149,属性表!$H:$I,2,0)&"#"&配件表!L149&"|"&VLOOKUP(M149,属性表!$H:$I,2,0)&"#"&配件表!N149&"|"&VLOOKUP(O149,属性表!$H:$I,2,0)&"#"&配件表!P149) -> 1#25600|2#213|104#20 | R149: 异妖5 | S149: 橙色
A150: 配件15 | B150: 15 | C150: 9 | D150: 6015 | E150: =E140 -> 6 | F150: 5 | G150: 355 | H150: =[1]!SUMSTRING(D150:E150,"#") ->  | I150: =[1]!SUMSTRING(F150:G150,"#") ->  | J150: =[1]!SUMSTRING(H150:I150,"|") ->  | K150: 生命 | L150: 31663 | M150: 攻击 | N150: 263 | Q150: =IF(O150="",VLOOKUP(K150,属性表!$H:$I,2,0)&"#"&配件表!L150&"|"&VLOOKUP(M150,属性表!$H:$I,2,0)&"#"&配件表!N150,VLOOKUP(K150,属性表!$H:$I,2,0)&"#"&配件表!L150&"|"&VLOOKUP(M150,属性表!$H:$I,2,0)&"#"&配件表!N150&"|"&VLOOKUP(O150,属性表!$H:$I,2,0)&"#"&配件表!P150) -> 1#31663|2#263 | R150: 异妖5 | S150: 橙色
A151: 配件15 | B151: 15 | C151: 10 | D151: 6015 | E151: =E141 -> 8 | F151: 5 | G151: 420 | H151: =[1]!SUMSTRING(D151:E151,"#") ->  | I151: =[1]!SUMSTRING(F151:G151,"#") ->  | J151: =[1]!SUMSTRING(H151:I151,"|") ->  | K151: 生命 | L151: 38400 | M151: 攻击 | N151: 320 | O151: 地攻（%） | P151: 30 | Q151: =IF(O151="",VLOOKUP(K151,属性表!$H:$I,2,0)&"#"&配件表!L151&"|"&VLOOKUP(M151,属性表!$H:$I,2,0)&"#"&配件表!N151,VLOOKUP(K151,属性表!$H:$I,2,0)&"#"&配件表!L151&"|"&VLOOKUP(M151,属性表!$H:$I,2,0)&"#"&配件表!N151&"|"&VLOOKUP(O151,属性表!$H:$I,2,0)&"#"&配件表!P151) -> 1#38400|2#320|104#30 | R151: 异妖5 | S151: 橙色
A152: 配件16 | B152: 16 | C152: 1 | D152: 6016 | E152: =E142 -> 1 | F152: 5 | G152: 0 | H152: =[1]!SUMSTRING(D152:E152,"#") ->  | I152: =[1]!SUMSTRING(F152:G152,"#") ->  | J152: =[1]!SUMSTRING(H152:I152,"|") ->  | K152: 生命 | L152: 1347 | M152: 攻击 | N152: 11 | Q152: =IF(O152="",VLOOKUP(K152,属性表!$H:$I,2,0)&"#"&配件表!L152&"|"&VLOOKUP(M152,属性表!$H:$I,2,0)&"#"&配件表!N152,VLOOKUP(K152,属性表!$H:$I,2,0)&"#"&配件表!L152&"|"&VLOOKUP(M152,属性表!$H:$I,2,0)&"#"&配件表!N152&"|"&VLOOKUP(O152,属性表!$H:$I,2,0)&"#"&配件表!P152) -> 1#1347|2#11 | R152: 异妖5 | S152: 橙色
A153: 配件16 | B153: 16 | C153: 2 | D153: 6016 | E153: =E143 -> 1 | F153: 5 | G153: 40 | H153: =[1]!SUMSTRING(D153:E153,"#") ->  | I153: =[1]!SUMSTRING(F153:G153,"#") ->  | J153: =[1]!SUMSTRING(H153:I153,"|") ->  | K153: 生命 | L153: 3368 | M153: 攻击 | N153: 28 | O153: 风攻（%） | P153: 2 | Q153: =IF(O153="",VLOOKUP(K153,属性表!$H:$I,2,0)&"#"&配件表!L153&"|"&VLOOKUP(M153,属性表!$H:$I,2,0)&"#"&配件表!N153,VLOOKUP(K153,属性表!$H:$I,2,0)&"#"&配件表!L153&"|"&VLOOKUP(M153,属性表!$H:$I,2,0)&"#"&配件表!N153&"|"&VLOOKUP(O153,属性表!$H:$I,2,0)&"#"&配件表!P153) -> 1#3368|2#28|102#2 | R153: 异妖5 | S153: 橙色
A154: 配件16 | B154: 16 | C154: 3 | D154: 6016 | E154: =E144 -> 2 | F154: 5 | G154: 65 | H154: =[1]!SUMSTRING(D154:E154,"#") ->  | I154: =[1]!SUMSTRING(F154:G154,"#") ->  | J154: =[1]!SUMSTRING(H154:I154,"|") ->  | K154: 生命 | L154: 5389 | M154: 攻击 | N154: 44 | Q154: =IF(O154="",VLOOKUP(K154,属性表!$H:$I,2,0)&"#"&配件表!L154&"|"&VLOOKUP(M154,属性表!$H:$I,2,0)&"#"&配件表!N154,VLOOKUP(K154,属性表!$H:$I,2,0)&"#"&配件表!L154&"|"&VLOOKUP(M154,属性表!$H:$I,2,0)&"#"&配件表!N154&"|"&VLOOKUP(O154,属性表!$H:$I,2,0)&"#"&配件表!P154) -> 1#5389|2#44 | R154: 异妖5 | S154: 橙色
A155: 配件16 | B155: 16 | C155: 4 | D155: 6016 | E155: =E145 -> 2 | F155: 5 | G155: 100 | H155: =[1]!SUMSTRING(D155:E155,"#") ->  | I155: =[1]!SUMSTRING(F155:G155,"#") ->  | J155: =[1]!SUMSTRING(H155:I155,"|") ->  | K155: 生命 | L155: 8084 | M155: 攻击 | N155: 67 | O155: 风攻（%） | P155: 6 | Q155: =IF(O155="",VLOOKUP(K155,属性表!$H:$I,2,0)&"#"&配件表!L155&"|"&VLOOKUP(M155,属性表!$H:$I,2,0)&"#"&配件表!N155,VLOOKUP(K155,属性表!$H:$I,2,0)&"#"&配件表!L155&"|"&VLOOKUP(M155,属性表!$H:$I,2,0)&"#"&配件表!N155&"|"&VLOOKUP(O155,属性表!$H:$I,2,0)&"#"&配件表!P155) -> 1#8084|2#67|102#6 | R155: 异妖5 | S155: 橙色
A156: 配件16 | B156: 16 | C156: 5 | D156: 6016 | E156: =E146 -> 3 | F156: 5 | G156: 135 | H156: =[1]!SUMSTRING(D156:E156,"#") ->  | I156: =[1]!SUMSTRING(F156:G156,"#") ->  | J156: =[1]!SUMSTRING(H156:I156,"|") ->  | K156: 生命 | L156: 11452 | M156: 攻击 | N156: 95 | Q156: =IF(O156="",VLOOKUP(K156,属性表!$H:$I,2,0)&"#"&配件表!L156&"|"&VLOOKUP(M156,属性表!$H:$I,2,0)&"#"&配件表!N156,VLOOKUP(K156,属性表!$H:$I,2,0)&"#"&配件表!L156&"|"&VLOOKUP(M156,属性表!$H:$I,2,0)&"#"&配件表!N156&"|"&VLOOKUP(O156,属性表!$H:$I,2,0)&"#"&配件表!P156) -> 1#11452|2#95 | R156: 异妖5 | S156: 橙色
A157: 配件16 | B157: 16 | C157: 6 | D157: 6016 | E157: =E147 -> 3 | F157: 5 | G157: 180 | H157: =[1]!SUMSTRING(D157:E157,"#") ->  | I157: =[1]!SUMSTRING(F157:G157,"#") ->  | J157: =[1]!SUMSTRING(H157:I157,"|") ->  | K157: 生命 | L157: 15494 | M157: 攻击 | N157: 129 | O157: 风攻（%） | P157: 12 | Q157: =IF(O157="",VLOOKUP(K157,属性表!$H:$I,2,0)&"#"&配件表!L157&"|"&VLOOKUP(M157,属性表!$H:$I,2,0)&"#"&配件表!N157,VLOOKUP(K157,属性表!$H:$I,2,0)&"#"&配件表!L157&"|"&VLOOKUP(M157,属性表!$H:$I,2,0)&"#"&配件表!N157&"|"&VLOOKUP(O157,属性表!$H:$I,2,0)&"#"&配件表!P157) -> 1#15494|2#129|102#12 | R157: 异妖5 | S157: 橙色
A158: 配件16 | B158: 16 | C158: 7 | D158: 6016 | E158: =E148 -> 4 | F158: 5 | G158: 235 | H158: =[1]!SUMSTRING(D158:E158,"#") ->  | I158: =[1]!SUMSTRING(F158:G158,"#") ->  | J158: =[1]!SUMSTRING(H158:I158,"|") ->  | K158: 生命 | L158: 20210 | M158: 攻击 | N158: 168 | Q158: =IF(O158="",VLOOKUP(K158,属性表!$H:$I,2,0)&"#"&配件表!L158&"|"&VLOOKUP(M158,属性表!$H:$I,2,0)&"#"&配件表!N158,VLOOKUP(K158,属性表!$H:$I,2,0)&"#"&配件表!L158&"|"&VLOOKUP(M158,属性表!$H:$I,2,0)&"#"&配件表!N158&"|"&VLOOKUP(O158,属性表!$H:$I,2,0)&"#"&配件表!P158) -> 1#20210|2#168 | R158: 异妖5 | S158: 橙色
A159: 配件16 | B159: 16 | C159: 8 | D159: 6016 | E159: =E149 -> 5 | F159: 5 | G159: 290 | H159: =[1]!SUMSTRING(D159:E159,"#") ->  | I159: =[1]!SUMSTRING(F159:G159,"#") ->  | J159: =[1]!SUMSTRING(H159:I159,"|") ->  | K159: 生命 | L159: 25600 | M159: 攻击 | N159: 213 | O159: 风攻（%） | P159: 20 | Q159: =IF(O159="",VLOOKUP(K159,属性表!$H:$I,2,0)&"#"&配件表!L159&"|"&VLOOKUP(M159,属性表!$H:$I,2,0)&"#"&配件表!N159,VLOOKUP(K159,属性表!$H:$I,2,0)&"#"&配件表!L159&"|"&VLOOKUP(M159,属性表!$H:$I,2,0)&"#"&配件表!N159&"|"&VLOOKUP(O159,属性表!$H:$I,2,0)&"#"&配件表!P159) -> 1#25600|2#213|102#20 | R159: 异妖5 | S159: 橙色
A160: 配件16 | B160: 16 | C160: 9 | D160: 6016 | E160: =E150 -> 6 | F160: 5 | G160: 355 | H160: =[1]!SUMSTRING(D160:E160,"#") ->  | I160: =[1]!SUMSTRING(F160:G160,"#") ->  | J160: =[1]!SUMSTRING(H160:I160,"|") ->  | K160: 生命 | L160: 31663 | M160: 攻击 | N160: 263 | Q160: =IF(O160="",VLOOKUP(K160,属性表!$H:$I,2,0)&"#"&配件表!L160&"|"&VLOOKUP(M160,属性表!$H:$I,2,0)&"#"&配件表!N160,VLOOKUP(K160,属性表!$H:$I,2,0)&"#"&配件表!L160&"|"&VLOOKUP(M160,属性表!$H:$I,2,0)&"#"&配件表!N160&"|"&VLOOKUP(O160,属性表!$H:$I,2,0)&"#"&配件表!P160) -> 1#31663|2#263 | R160: 异妖5 | S160: 橙色
A161: 配件16 | B161: 16 | C161: 10 | D161: 6016 | E161: =E151 -> 8 | F161: 5 | G161: 420 | H161: =[1]!SUMSTRING(D161:E161,"#") ->  | I161: =[1]!SUMSTRING(F161:G161,"#") ->  | J161: =[1]!SUMSTRING(H161:I161,"|") ->  | K161: 生命 | L161: 38400 | M161: 攻击 | N161: 320 | O161: 风攻（%） | P161: 30 | Q161: =IF(O161="",VLOOKUP(K161,属性表!$H:$I,2,0)&"#"&配件表!L161&"|"&VLOOKUP(M161,属性表!$H:$I,2,0)&"#"&配件表!N161,VLOOKUP(K161,属性表!$H:$I,2,0)&"#"&配件表!L161&"|"&VLOOKUP(M161,属性表!$H:$I,2,0)&"#"&配件表!N161&"|"&VLOOKUP(O161,属性表!$H:$I,2,0)&"#"&配件表!P161) -> 1#38400|2#320|102#30 | R161: 异妖5 | S161: 橙色
A162: 配件17 | B162: 17 | C162: 1 | D162: 6017 | E162: =E152 -> 1 | F162: 5 | G162: 0 | H162: =[1]!SUMSTRING(D162:E162,"#") ->  | I162: =[1]!SUMSTRING(F162:G162,"#") ->  | J162: =[1]!SUMSTRING(H162:I162,"|") ->  | K162: 生命 | L162: 1347 | M162: 攻击 | N162: 11 | Q162: =IF(O162="",VLOOKUP(K162,属性表!$H:$I,2,0)&"#"&配件表!L162&"|"&VLOOKUP(M162,属性表!$H:$I,2,0)&"#"&配件表!N162,VLOOKUP(K162,属性表!$H:$I,2,0)&"#"&配件表!L162&"|"&VLOOKUP(M162,属性表!$H:$I,2,0)&"#"&配件表!N162&"|"&VLOOKUP(O162,属性表!$H:$I,2,0)&"#"&配件表!P162) -> 1#1347|2#11 | R162: 异妖6 | S162: 橙色
A163: 配件17 | B163: 17 | C163: 2 | D163: 6017 | E163: =E153 -> 1 | F163: 5 | G163: 40 | H163: =[1]!SUMSTRING(D163:E163,"#") ->  | I163: =[1]!SUMSTRING(F163:G163,"#") ->  | J163: =[1]!SUMSTRING(H163:I163,"|") ->  | K163: 生命 | L163: 3368 | M163: 攻击 | N163: 28 | O163: 火抗（%） | P163: 2 | Q163: =IF(O163="",VLOOKUP(K163,属性表!$H:$I,2,0)&"#"&配件表!L163&"|"&VLOOKUP(M163,属性表!$H:$I,2,0)&"#"&配件表!N163,VLOOKUP(K163,属性表!$H:$I,2,0)&"#"&配件表!L163&"|"&VLOOKUP(M163,属性表!$H:$I,2,0)&"#"&配件表!N163&"|"&VLOOKUP(O163,属性表!$H:$I,2,0)&"#"&配件表!P163) -> 1#3368|2#28|107#2 | R163: 异妖6 | S163: 橙色
A164: 配件17 | B164: 17 | C164: 3 | D164: 6017 | E164: =E154 -> 2 | F164: 5 | G164: 65 | H164: =[1]!SUMSTRING(D164:E164,"#") ->  | I164: =[1]!SUMSTRING(F164:G164,"#") ->  | J164: =[1]!SUMSTRING(H164:I164,"|") ->  | K164: 生命 | L164: 5389 | M164: 攻击 | N164: 44 | Q164: =IF(O164="",VLOOKUP(K164,属性表!$H:$I,2,0)&"#"&配件表!L164&"|"&VLOOKUP(M164,属性表!$H:$I,2,0)&"#"&配件表!N164,VLOOKUP(K164,属性表!$H:$I,2,0)&"#"&配件表!L164&"|"&VLOOKUP(M164,属性表!$H:$I,2,0)&"#"&配件表!N164&"|"&VLOOKUP(O164,属性表!$H:$I,2,0)&"#"&配件表!P164) -> 1#5389|2#44 | R164: 异妖6 | S164: 橙色
A165: 配件17 | B165: 17 | C165: 4 | D165: 6017 | E165: =E155 -> 2 | F165: 5 | G165: 100 | H165: =[1]!SUMSTRING(D165:E165,"#") ->  | I165: =[1]!SUMSTRING(F165:G165,"#") ->  | J165: =[1]!SUMSTRING(H165:I165,"|") ->  | K165: 生命 | L165: 8084 | M165: 攻击 | N165: 67 | O165: 火抗（%） | P165: 6 | Q165: =IF(O165="",VLOOKUP(K165,属性表!$H:$I,2,0)&"#"&配件表!L165&"|"&VLOOKUP(M165,属性表!$H:$I,2,0)&"#"&配件表!N165,VLOOKUP(K165,属性表!$H:$I,2,0)&"#"&配件表!L165&"|"&VLOOKUP(M165,属性表!$H:$I,2,0)&"#"&配件表!N165&"|"&VLOOKUP(O165,属性表!$H:$I,2,0)&"#"&配件表!P165) -> 1#8084|2#67|107#6 | R165: 异妖6 | S165: 橙色
A166: 配件17 | B166: 17 | C166: 5 | D166: 6017 | E166: =E156 -> 3 | F166: 5 | G166: 135 | H166: =[1]!SUMSTRING(D166:E166,"#") ->  | I166: =[1]!SUMSTRING(F166:G166,"#") ->  | J166: =[1]!SUMSTRING(H166:I166,"|") ->  | K166: 生命 | L166: 11452 | M166: 攻击 | N166: 95 | Q166: =IF(O166="",VLOOKUP(K166,属性表!$H:$I,2,0)&"#"&配件表!L166&"|"&VLOOKUP(M166,属性表!$H:$I,2,0)&"#"&配件表!N166,VLOOKUP(K166,属性表!$H:$I,2,0)&"#"&配件表!L166&"|"&VLOOKUP(M166,属性表!$H:$I,2,0)&"#"&配件表!N166&"|"&VLOOKUP(O166,属性表!$H:$I,2,0)&"#"&配件表!P166) -> 1#11452|2#95 | R166: 异妖6 | S166: 橙色
A167: 配件17 | B167: 17 | C167: 6 | D167: 6017 | E167: =E157 -> 3 | F167: 5 | G167: 180 | H167: =[1]!SUMSTRING(D167:E167,"#") ->  | I167: =[1]!SUMSTRING(F167:G167,"#") ->  | J167: =[1]!SUMSTRING(H167:I167,"|") ->  | K167: 生命 | L167: 15494 | M167: 攻击 | N167: 129 | O167: 火抗（%） | P167: 12 | Q167: =IF(O167="",VLOOKUP(K167,属性表!$H:$I,2,0)&"#"&配件表!L167&"|"&VLOOKUP(M167,属性表!$H:$I,2,0)&"#"&配件表!N167,VLOOKUP(K167,属性表!$H:$I,2,0)&"#"&配件表!L167&"|"&VLOOKUP(M167,属性表!$H:$I,2,0)&"#"&配件表!N167&"|"&VLOOKUP(O167,属性表!$H:$I,2,0)&"#"&配件表!P167) -> 1#15494|2#129|107#12 | R167: 异妖6 | S167: 橙色
A168: 配件17 | B168: 17 | C168: 7 | D168: 6017 | E168: =E158 -> 4 | F168: 5 | G168: 235 | H168: =[1]!SUMSTRING(D168:E168,"#") ->  | I168: =[1]!SUMSTRING(F168:G168,"#") ->  | J168: =[1]!SUMSTRING(H168:I168,"|") ->  | K168: 生命 | L168: 20210 | M168: 攻击 | N168: 168 | Q168: =IF(O168="",VLOOKUP(K168,属性表!$H:$I,2,0)&"#"&配件表!L168&"|"&VLOOKUP(M168,属性表!$H:$I,2,0)&"#"&配件表!N168,VLOOKUP(K168,属性表!$H:$I,2,0)&"#"&配件表!L168&"|"&VLOOKUP(M168,属性表!$H:$I,2,0)&"#"&配件表!N168&"|"&VLOOKUP(O168,属性表!$H:$I,2,0)&"#"&配件表!P168) -> 1#20210|2#168 | R168: 异妖6 | S168: 橙色
A169: 配件17 | B169: 17 | C169: 8 | D169: 6017 | E169: =E159 -> 5 | F169: 5 | G169: 290 | H169: =[1]!SUMSTRING(D169:E169,"#") ->  | I169: =[1]!SUMSTRING(F169:G169,"#") ->  | J169: =[1]!SUMSTRING(H169:I169,"|") ->  | K169: 生命 | L169: 25600 | M169: 攻击 | N169: 213 | O169: 火抗（%） | P169: 20 | Q169: =IF(O169="",VLOOKUP(K169,属性表!$H:$I,2,0)&"#"&配件表!L169&"|"&VLOOKUP(M169,属性表!$H:$I,2,0)&"#"&配件表!N169,VLOOKUP(K169,属性表!$H:$I,2,0)&"#"&配件表!L169&"|"&VLOOKUP(M169,属性表!$H:$I,2,0)&"#"&配件表!N169&"|"&VLOOKUP(O169,属性表!$H:$I,2,0)&"#"&配件表!P169) -> 1#25600|2#213|107#20 | R169: 异妖6 | S169: 橙色
A170: 配件17 | B170: 17 | C170: 9 | D170: 6017 | E170: =E160 -> 6 | F170: 5 | G170: 355 | H170: =[1]!SUMSTRING(D170:E170,"#") ->  | I170: =[1]!SUMSTRING(F170:G170,"#") ->  | J170: =[1]!SUMSTRING(H170:I170,"|") ->  | K170: 生命 | L170: 31663 | M170: 攻击 | N170: 263 | Q170: =IF(O170="",VLOOKUP(K170,属性表!$H:$I,2,0)&"#"&配件表!L170&"|"&VLOOKUP(M170,属性表!$H:$I,2,0)&"#"&配件表!N170,VLOOKUP(K170,属性表!$H:$I,2,0)&"#"&配件表!L170&"|"&VLOOKUP(M170,属性表!$H:$I,2,0)&"#"&配件表!N170&"|"&VLOOKUP(O170,属性表!$H:$I,2,0)&"#"&配件表!P170) -> 1#31663|2#263 | R170: 异妖6 | S170: 橙色
A171: 配件17 | B171: 17 | C171: 10 | D171: 6017 | E171: =E161 -> 8 | F171: 5 | G171: 420 | H171: =[1]!SUMSTRING(D171:E171,"#") ->  | I171: =[1]!SUMSTRING(F171:G171,"#") ->  | J171: =[1]!SUMSTRING(H171:I171,"|") ->  | K171: 生命 | L171: 38400 | M171: 攻击 | N171: 320 | O171: 火抗（%） | P171: 30 | Q171: =IF(O171="",VLOOKUP(K171,属性表!$H:$I,2,0)&"#"&配件表!L171&"|"&VLOOKUP(M171,属性表!$H:$I,2,0)&"#"&配件表!N171,VLOOKUP(K171,属性表!$H:$I,2,0)&"#"&配件表!L171&"|"&VLOOKUP(M171,属性表!$H:$I,2,0)&"#"&配件表!N171&"|"&VLOOKUP(O171,属性表!$H:$I,2,0)&"#"&配件表!P171) -> 1#38400|2#320|107#30 | R171: 异妖6 | S171: 橙色
A172: 配件18 | B172: 18 | C172: 1 | D172: 6018 | E172: =E162 -> 1 | F172: 5 | G172: 0 | H172: =[1]!SUMSTRING(D172:E172,"#") ->  | I172: =[1]!SUMSTRING(F172:G172,"#") ->  | J172: =[1]!SUMSTRING(H172:I172,"|") ->  | K172: 生命 | L172: 1347 | M172: 攻击 | N172: 11 | Q172: =IF(O172="",VLOOKUP(K172,属性表!$H:$I,2,0)&"#"&配件表!L172&"|"&VLOOKUP(M172,属性表!$H:$I,2,0)&"#"&配件表!N172,VLOOKUP(K172,属性表!$H:$I,2,0)&"#"&配件表!L172&"|"&VLOOKUP(M172,属性表!$H:$I,2,0)&"#"&配件表!N172&"|"&VLOOKUP(O172,属性表!$H:$I,2,0)&"#"&配件表!P172) -> 1#1347|2#11 | R172: 异妖6 | S172: 橙色
A173: 配件18 | B173: 18 | C173: 2 | D173: 6018 | E173: =E163 -> 1 | F173: 5 | G173: 40 | H173: =[1]!SUMSTRING(D173:E173,"#") ->  | I173: =[1]!SUMSTRING(F173:G173,"#") ->  | J173: =[1]!SUMSTRING(H173:I173,"|") ->  | K173: 生命 | L173: 3368 | M173: 攻击 | N173: 28 | O173: 水抗（%） | P173: 2 | Q173: =IF(O173="",VLOOKUP(K173,属性表!$H:$I,2,0)&"#"&配件表!L173&"|"&VLOOKUP(M173,属性表!$H:$I,2,0)&"#"&配件表!N173,VLOOKUP(K173,属性表!$H:$I,2,0)&"#"&配件表!L173&"|"&VLOOKUP(M173,属性表!$H:$I,2,0)&"#"&配件表!N173&"|"&VLOOKUP(O173,属性表!$H:$I,2,0)&"#"&配件表!P173) -> 1#3368|2#28|109#2 | R173: 异妖6 | S173: 橙色
A174: 配件18 | B174: 18 | C174: 3 | D174: 6018 | E174: =E164 -> 2 | F174: 5 | G174: 65 | H174: =[1]!SUMSTRING(D174:E174,"#") ->  | I174: =[1]!SUMSTRING(F174:G174,"#") ->  | J174: =[1]!SUMSTRING(H174:I174,"|") ->  | K174: 生命 | L174: 5389 | M174: 攻击 | N174: 44 | Q174: =IF(O174="",VLOOKUP(K174,属性表!$H:$I,2,0)&"#"&配件表!L174&"|"&VLOOKUP(M174,属性表!$H:$I,2,0)&"#"&配件表!N174,VLOOKUP(K174,属性表!$H:$I,2,0)&"#"&配件表!L174&"|"&VLOOKUP(M174,属性表!$H:$I,2,0)&"#"&配件表!N174&"|"&VLOOKUP(O174,属性表!$H:$I,2,0)&"#"&配件表!P174) -> 1#5389|2#44 | R174: 异妖6 | S174: 橙色
A175: 配件18 | B175: 18 | C175: 4 | D175: 6018 | E175: =E165 -> 2 | F175: 5 | G175: 100 | H175: =[1]!SUMSTRING(D175:E175,"#") ->  | I175: =[1]!SUMSTRING(F175:G175,"#") ->  | J175: =[1]!SUMSTRING(H175:I175,"|") ->  | K175: 生命 | L175: 8084 | M175: 攻击 | N175: 67 | O175: 水抗（%） | P175: 6 | Q175: =IF(O175="",VLOOKUP(K175,属性表!$H:$I,2,0)&"#"&配件表!L175&"|"&VLOOKUP(M175,属性表!$H:$I,2,0)&"#"&配件表!N175,VLOOKUP(K175,属性表!$H:$I,2,0)&"#"&配件表!L175&"|"&VLOOKUP(M175,属性表!$H:$I,2,0)&"#"&配件表!N175&"|"&VLOOKUP(O175,属性表!$H:$I,2,0)&"#"&配件表!P175) -> 1#8084|2#67|109#6 | R175: 异妖6 | S175: 橙色
A176: 配件18 | B176: 18 | C176: 5 | D176: 6018 | E176: =E166 -> 3 | F176: 5 | G176: 135 | H176: =[1]!SUMSTRING(D176:E176,"#") ->  | I176: =[1]!SUMSTRING(F176:G176,"#") ->  | J176: =[1]!SUMSTRING(H176:I176,"|") ->  | K176: 生命 | L176: 11452 | M176: 攻击 | N176: 95 | Q176: =IF(O176="",VLOOKUP(K176,属性表!$H:$I,2,0)&"#"&配件表!L176&"|"&VLOOKUP(M176,属性表!$H:$I,2,0)&"#"&配件表!N176,VLOOKUP(K176,属性表!$H:$I,2,0)&"#"&配件表!L176&"|"&VLOOKUP(M176,属性表!$H:$I,2,0)&"#"&配件表!N176&"|"&VLOOKUP(O176,属性表!$H:$I,2,0)&"#"&配件表!P176) -> 1#11452|2#95 | R176: 异妖6 | S176: 橙色
A177: 配件18 | B177: 18 | C177: 6 | D177: 6018 | E177: =E167 -> 3 | F177: 5 | G177: 180 | H177: =[1]!SUMSTRING(D177:E177,"#") ->  | I177: =[1]!SUMSTRING(F177:G177,"#") ->  | J177: =[1]!SUMSTRING(H177:I177,"|") ->  | K177: 生命 | L177: 15494 | M177: 攻击 | N177: 129 | O177: 水抗（%） | P177: 12 | Q177: =IF(O177="",VLOOKUP(K177,属性表!$H:$I,2,0)&"#"&配件表!L177&"|"&VLOOKUP(M177,属性表!$H:$I,2,0)&"#"&配件表!N177,VLOOKUP(K177,属性表!$H:$I,2,0)&"#"&配件表!L177&"|"&VLOOKUP(M177,属性表!$H:$I,2,0)&"#"&配件表!N177&"|"&VLOOKUP(O177,属性表!$H:$I,2,0)&"#"&配件表!P177) -> 1#15494|2#129|109#12 | R177: 异妖6 | S177: 橙色
A178: 配件18 | B178: 18 | C178: 7 | D178: 6018 | E178: =E168 -> 4 | F178: 5 | G178: 235 | H178: =[1]!SUMSTRING(D178:E178,"#") ->  | I178: =[1]!SUMSTRING(F178:G178,"#") ->  | J178: =[1]!SUMSTRING(H178:I178,"|") ->  | K178: 生命 | L178: 20210 | M178: 攻击 | N178: 168 | Q178: =IF(O178="",VLOOKUP(K178,属性表!$H:$I,2,0)&"#"&配件表!L178&"|"&VLOOKUP(M178,属性表!$H:$I,2,0)&"#"&配件表!N178,VLOOKUP(K178,属性表!$H:$I,2,0)&"#"&配件表!L178&"|"&VLOOKUP(M178,属性表!$H:$I,2,0)&"#"&配件表!N178&"|"&VLOOKUP(O178,属性表!$H:$I,2,0)&"#"&配件表!P178) -> 1#20210|2#168 | R178: 异妖6 | S178: 橙色
A179: 配件18 | B179: 18 | C179: 8 | D179: 6018 | E179: =E169 -> 5 | F179: 5 | G179: 290 | H179: =[1]!SUMSTRING(D179:E179,"#") ->  | I179: =[1]!SUMSTRING(F179:G179,"#") ->  | J179: =[1]!SUMSTRING(H179:I179,"|") ->  | K179: 生命 | L179: 25600 | M179: 攻击 | N179: 213 | O179: 水抗（%） | P179: 20 | Q179: =IF(O179="",VLOOKUP(K179,属性表!$H:$I,2,0)&"#"&配件表!L179&"|"&VLOOKUP(M179,属性表!$H:$I,2,0)&"#"&配件表!N179,VLOOKUP(K179,属性表!$H:$I,2,0)&"#"&配件表!L179&"|"&VLOOKUP(M179,属性表!$H:$I,2,0)&"#"&配件表!N179&"|"&VLOOKUP(O179,属性表!$H:$I,2,0)&"#"&配件表!P179) -> 1#25600|2#213|109#20 | R179: 异妖6 | S179: 橙色
A180: 配件18 | B180: 18 | C180: 9 | D180: 6018 | E180: =E170 -> 6 | F180: 5 | G180: 355 | H180: =[1]!SUMSTRING(D180:E180,"#") ->  | I180: =[1]!SUMSTRING(F180:G180,"#") ->  | J180: =[1]!SUMSTRING(H180:I180,"|") ->  | K180: 生命 | L180: 31663 | M180: 攻击 | N180: 263 | Q180: =IF(O180="",VLOOKUP(K180,属性表!$H:$I,2,0)&"#"&配件表!L180&"|"&VLOOKUP(M180,属性表!$H:$I,2,0)&"#"&配件表!N180,VLOOKUP(K180,属性表!$H:$I,2,0)&"#"&配件表!L180&"|"&VLOOKUP(M180,属性表!$H:$I,2,0)&"#"&配件表!N180&"|"&VLOOKUP(O180,属性表!$H:$I,2,0)&"#"&配件表!P180) -> 1#31663|2#263 | R180: 异妖6 | S180: 橙色
A181: 配件18 | B181: 18 | C181: 10 | D181: 6018 | E181: =E171 -> 8 | F181: 5 | G181: 420 | H181: =[1]!SUMSTRING(D181:E181,"#") ->  | I181: =[1]!SUMSTRING(F181:G181,"#") ->  | J181: =[1]!SUMSTRING(H181:I181,"|") ->  | K181: 生命 | L181: 38400 | M181: 攻击 | N181: 320 | O181: 水抗（%） | P181: 30 | Q181: =IF(O181="",VLOOKUP(K181,属性表!$H:$I,2,0)&"#"&配件表!L181&"|"&VLOOKUP(M181,属性表!$H:$I,2,0)&"#"&配件表!N181,VLOOKUP(K181,属性表!$H:$I,2,0)&"#"&配件表!L181&"|"&VLOOKUP(M181,属性表!$H:$I,2,0)&"#"&配件表!N181&"|"&VLOOKUP(O181,属性表!$H:$I,2,0)&"#"&配件表!P181) -> 1#38400|2#320|109#30 | R181: 异妖6 | S181: 橙色
A182: 配件19 | B182: 19 | C182: 1 | D182: 6019 | E182: =E172 -> 1 | F182: 5 | G182: 0 | H182: =[1]!SUMSTRING(D182:E182,"#") ->  | I182: =[1]!SUMSTRING(F182:G182,"#") ->  | J182: =[1]!SUMSTRING(H182:I182,"|") ->  | K182: 生命 | L182: 1347 | M182: 攻击 | N182: 11 | Q182: =IF(O182="",VLOOKUP(K182,属性表!$H:$I,2,0)&"#"&配件表!L182&"|"&VLOOKUP(M182,属性表!$H:$I,2,0)&"#"&配件表!N182,VLOOKUP(K182,属性表!$H:$I,2,0)&"#"&配件表!L182&"|"&VLOOKUP(M182,属性表!$H:$I,2,0)&"#"&配件表!N182&"|"&VLOOKUP(O182,属性表!$H:$I,2,0)&"#"&配件表!P182) -> 1#1347|2#11 | R182: 异妖6 | S182: 橙色
A183: 配件19 | B183: 19 | C183: 2 | D183: 6019 | E183: =E173 -> 1 | F183: 5 | G183: 40 | H183: =[1]!SUMSTRING(D183:E183,"#") ->  | I183: =[1]!SUMSTRING(F183:G183,"#") ->  | J183: =[1]!SUMSTRING(H183:I183,"|") ->  | K183: 生命 | L183: 3368 | M183: 攻击 | N183: 28 | O183: 地抗（%） | P183: 2 | Q183: =IF(O183="",VLOOKUP(K183,属性表!$H:$I,2,0)&"#"&配件表!L183&"|"&VLOOKUP(M183,属性表!$H:$I,2,0)&"#"&配件表!N183,VLOOKUP(K183,属性表!$H:$I,2,0)&"#"&配件表!L183&"|"&VLOOKUP(M183,属性表!$H:$I,2,0)&"#"&配件表!N183&"|"&VLOOKUP(O183,属性表!$H:$I,2,0)&"#"&配件表!P183) -> 1#3368|2#28|110#2 | R183: 异妖6 | S183: 橙色
A184: 配件19 | B184: 19 | C184: 3 | D184: 6019 | E184: =E174 -> 2 | F184: 5 | G184: 65 | H184: =[1]!SUMSTRING(D184:E184,"#") ->  | I184: =[1]!SUMSTRING(F184:G184,"#") ->  | J184: =[1]!SUMSTRING(H184:I184,"|") ->  | K184: 生命 | L184: 5389 | M184: 攻击 | N184: 44 | Q184: =IF(O184="",VLOOKUP(K184,属性表!$H:$I,2,0)&"#"&配件表!L184&"|"&VLOOKUP(M184,属性表!$H:$I,2,0)&"#"&配件表!N184,VLOOKUP(K184,属性表!$H:$I,2,0)&"#"&配件表!L184&"|"&VLOOKUP(M184,属性表!$H:$I,2,0)&"#"&配件表!N184&"|"&VLOOKUP(O184,属性表!$H:$I,2,0)&"#"&配件表!P184) -> 1#5389|2#44 | R184: 异妖6 | S184: 橙色
A185: 配件19 | B185: 19 | C185: 4 | D185: 6019 | E185: =E175 -> 2 | F185: 5 | G185: 100 | H185: =[1]!SUMSTRING(D185:E185,"#") ->  | I185: =[1]!SUMSTRING(F185:G185,"#") ->  | J185: =[1]!SUMSTRING(H185:I185,"|") ->  | K185: 生命 | L185: 8084 | M185: 攻击 | N185: 67 | O185: 地抗（%） | P185: 6 | Q185: =IF(O185="",VLOOKUP(K185,属性表!$H:$I,2,0)&"#"&配件表!L185&"|"&VLOOKUP(M185,属性表!$H:$I,2,0)&"#"&配件表!N185,VLOOKUP(K185,属性表!$H:$I,2,0)&"#"&配件表!L185&"|"&VLOOKUP(M185,属性表!$H:$I,2,0)&"#"&配件表!N185&"|"&VLOOKUP(O185,属性表!$H:$I,2,0)&"#"&配件表!P185) -> 1#8084|2#67|110#6 | R185: 异妖6 | S185: 橙色
A186: 配件19 | B186: 19 | C186: 5 | D186: 6019 | E186: =E176 -> 3 | F186: 5 | G186: 135 | H186: =[1]!SUMSTRING(D186:E186,"#") ->  | I186: =[1]!SUMSTRING(F186:G186,"#") ->  | J186: =[1]!SUMSTRING(H186:I186,"|") ->  | K186: 生命 | L186: 11452 | M186: 攻击 | N186: 95 | Q186: =IF(O186="",VLOOKUP(K186,属性表!$H:$I,2,0)&"#"&配件表!L186&"|"&VLOOKUP(M186,属性表!$H:$I,2,0)&"#"&配件表!N186,VLOOKUP(K186,属性表!$H:$I,2,0)&"#"&配件表!L186&"|"&VLOOKUP(M186,属性表!$H:$I,2,0)&"#"&配件表!N186&"|"&VLOOKUP(O186,属性表!$H:$I,2,0)&"#"&配件表!P186) -> 1#11452|2#95 | R186: =VLOOKUP(B186,$Y:$Z,2,0) -> 异妖6 | S186: =VLOOKUP(R186,$Z:$AA,2,0) -> 橙色
A187: 配件19 | B187: 19 | C187: 6 | D187: 6019 | E187: =E177 -> 3 | F187: 5 | G187: 180 | H187: =[1]!SUMSTRING(D187:E187,"#") ->  | I187: =[1]!SUMSTRING(F187:G187,"#") ->  | J187: =[1]!SUMSTRING(H187:I187,"|") ->  | K187: 生命 | L187: 15494 | M187: 攻击 | N187: 129 | O187: 地抗（%） | P187: 12 | Q187: =IF(O187="",VLOOKUP(K187,属性表!$H:$I,2,0)&"#"&配件表!L187&"|"&VLOOKUP(M187,属性表!$H:$I,2,0)&"#"&配件表!N187,VLOOKUP(K187,属性表!$H:$I,2,0)&"#"&配件表!L187&"|"&VLOOKUP(M187,属性表!$H:$I,2,0)&"#"&配件表!N187&"|"&VLOOKUP(O187,属性表!$H:$I,2,0)&"#"&配件表!P187) -> 1#15494|2#129|110#12 | R187: 异妖6 | S187: 橙色
A188: 配件19 | B188: 19 | C188: 7 | D188: 6019 | E188: =E178 -> 4 | F188: 5 | G188: 235 | H188: =[1]!SUMSTRING(D188:E188,"#") ->  | I188: =[1]!SUMSTRING(F188:G188,"#") ->  | J188: =[1]!SUMSTRING(H188:I188,"|") ->  | K188: 生命 | L188: 20210 | M188: 攻击 | N188: 168 | Q188: =IF(O188="",VLOOKUP(K188,属性表!$H:$I,2,0)&"#"&配件表!L188&"|"&VLOOKUP(M188,属性表!$H:$I,2,0)&"#"&配件表!N188,VLOOKUP(K188,属性表!$H:$I,2,0)&"#"&配件表!L188&"|"&VLOOKUP(M188,属性表!$H:$I,2,0)&"#"&配件表!N188&"|"&VLOOKUP(O188,属性表!$H:$I,2,0)&"#"&配件表!P188) -> 1#20210|2#168 | R188: 异妖6 | S188: 橙色
A189: 配件19 | B189: 19 | C189: 8 | D189: 6019 | E189: =E179 -> 5 | F189: 5 | G189: 290 | H189: =[1]!SUMSTRING(D189:E189,"#") ->  | I189: =[1]!SUMSTRING(F189:G189,"#") ->  | J189: =[1]!SUMSTRING(H189:I189,"|") ->  | K189: 生命 | L189: 25600 | M189: 攻击 | N189: 213 | O189: 地抗（%） | P189: 20 | Q189: =IF(O189="",VLOOKUP(K189,属性表!$H:$I,2,0)&"#"&配件表!L189&"|"&VLOOKUP(M189,属性表!$H:$I,2,0)&"#"&配件表!N189,VLOOKUP(K189,属性表!$H:$I,2,0)&"#"&配件表!L189&"|"&VLOOKUP(M189,属性表!$H:$I,2,0)&"#"&配件表!N189&"|"&VLOOKUP(O189,属性表!$H:$I,2,0)&"#"&配件表!P189) -> 1#25600|2#213|110#20 | R189: 异妖6 | S189: 橙色
A190: 配件19 | B190: 19 | C190: 9 | D190: 6019 | E190: =E180 -> 6 | F190: 5 | G190: 355 | H190: =[1]!SUMSTRING(D190:E190,"#") ->  | I190: =[1]!SUMSTRING(F190:G190,"#") ->  | J190: =[1]!SUMSTRING(H190:I190,"|") ->  | K190: 生命 | L190: 31663 | M190: 攻击 | N190: 263 | Q190: =IF(O190="",VLOOKUP(K190,属性表!$H:$I,2,0)&"#"&配件表!L190&"|"&VLOOKUP(M190,属性表!$H:$I,2,0)&"#"&配件表!N190,VLOOKUP(K190,属性表!$H:$I,2,0)&"#"&配件表!L190&"|"&VLOOKUP(M190,属性表!$H:$I,2,0)&"#"&配件表!N190&"|"&VLOOKUP(O190,属性表!$H:$I,2,0)&"#"&配件表!P190) -> 1#31663|2#263 | R190: 异妖6 | S190: 橙色
A191: 配件19 | B191: 19 | C191: 10 | D191: 6019 | E191: =E181 -> 8 | F191: 5 | G191: 420 | H191: =[1]!SUMSTRING(D191:E191,"#") ->  | I191: =[1]!SUMSTRING(F191:G191,"#") ->  | J191: =[1]!SUMSTRING(H191:I191,"|") ->  | K191: 生命 | L191: 38400 | M191: 攻击 | N191: 320 | O191: 地抗（%） | P191: 30 | Q191: =IF(O191="",VLOOKUP(K191,属性表!$H:$I,2,0)&"#"&配件表!L191&"|"&VLOOKUP(M191,属性表!$H:$I,2,0)&"#"&配件表!N191,VLOOKUP(K191,属性表!$H:$I,2,0)&"#"&配件表!L191&"|"&VLOOKUP(M191,属性表!$H:$I,2,0)&"#"&配件表!N191&"|"&VLOOKUP(O191,属性表!$H:$I,2,0)&"#"&配件表!P191) -> 1#38400|2#320|110#30 | R191: 异妖6 | S191: 橙色
A192: 配件20 | B192: 20 | C192: 1 | D192: 6020 | E192: =E182 -> 1 | F192: 5 | G192: 0 | H192: =[1]!SUMSTRING(D192:E192,"#") ->  | I192: =[1]!SUMSTRING(F192:G192,"#") ->  | J192: =[1]!SUMSTRING(H192:I192,"|") ->  | K192: 生命 | L192: 1347 | M192: 攻击 | N192: 11 | Q192: =IF(O192="",VLOOKUP(K192,属性表!$H:$I,2,0)&"#"&配件表!L192&"|"&VLOOKUP(M192,属性表!$H:$I,2,0)&"#"&配件表!N192,VLOOKUP(K192,属性表!$H:$I,2,0)&"#"&配件表!L192&"|"&VLOOKUP(M192,属性表!$H:$I,2,0)&"#"&配件表!N192&"|"&VLOOKUP(O192,属性表!$H:$I,2,0)&"#"&配件表!P192) -> 1#1347|2#11 | R192: 异妖6 | S192: 橙色
A193: 配件20 | B193: 20 | C193: 2 | D193: 6020 | E193: =E183 -> 1 | F193: 5 | G193: 40 | H193: =[1]!SUMSTRING(D193:E193,"#") ->  | I193: =[1]!SUMSTRING(F193:G193,"#") ->  | J193: =[1]!SUMSTRING(H193:I193,"|") ->  | K193: 生命 | L193: 3368 | M193: 攻击 | N193: 28 | O193: 风抗（%） | P193: 2 | Q193: =IF(O193="",VLOOKUP(K193,属性表!$H:$I,2,0)&"#"&配件表!L193&"|"&VLOOKUP(M193,属性表!$H:$I,2,0)&"#"&配件表!N193,VLOOKUP(K193,属性表!$H:$I,2,0)&"#"&配件表!L193&"|"&VLOOKUP(M193,属性表!$H:$I,2,0)&"#"&配件表!N193&"|"&VLOOKUP(O193,属性表!$H:$I,2,0)&"#"&配件表!P193) -> 1#3368|2#28|108#2 | R193: 异妖6 | S193: 橙色
A194: 配件20 | B194: 20 | C194: 3 | D194: 6020 | E194: =E184 -> 2 | F194: 5 | G194: 65 | H194: =[1]!SUMSTRING(D194:E194,"#") ->  | I194: =[1]!SUMSTRING(F194:G194,"#") ->  | J194: =[1]!SUMSTRING(H194:I194,"|") ->  | K194: 生命 | L194: 5389 | M194: 攻击 | N194: 44 | Q194: =IF(O194="",VLOOKUP(K194,属性表!$H:$I,2,0)&"#"&配件表!L194&"|"&VLOOKUP(M194,属性表!$H:$I,2,0)&"#"&配件表!N194,VLOOKUP(K194,属性表!$H:$I,2,0)&"#"&配件表!L194&"|"&VLOOKUP(M194,属性表!$H:$I,2,0)&"#"&配件表!N194&"|"&VLOOKUP(O194,属性表!$H:$I,2,0)&"#"&配件表!P194) -> 1#5389|2#44 | R194: 异妖6 | S194: 橙色
A195: ="配件"&B195 -> 配件20 | B195: 20 | C195: 4 | D195: 6020 | E195: =E185 -> 2 | F195: 5 | G195: 100 | H195: =[1]!SUMSTRING(D195:E195,"#") ->  | I195: =[1]!SUMSTRING(F195:G195,"#") ->  | J195: =[1]!SUMSTRING(H195:I195,"|") ->  | K195: 生命 | L195: 8084 | M195: 攻击 | N195: 67 | O195: 风抗（%） | P195: 6 | Q195: =IF(O195="",VLOOKUP(K195,属性表!$H:$I,2,0)&"#"&配件表!L195&"|"&VLOOKUP(M195,属性表!$H:$I,2,0)&"#"&配件表!N195,VLOOKUP(K195,属性表!$H:$I,2,0)&"#"&配件表!L195&"|"&VLOOKUP(M195,属性表!$H:$I,2,0)&"#"&配件表!N195&"|"&VLOOKUP(O195,属性表!$H:$I,2,0)&"#"&配件表!P195) -> 1#8084|2#67|108#6 | R195: 异妖6 | S195: 橙色
A196: 配件20 | B196: 20 | C196: 5 | D196: 6020 | E196: =E186 -> 3 | F196: 5 | G196: 135 | H196: =[1]!SUMSTRING(D196:E196,"#") ->  | I196: =[1]!SUMSTRING(F196:G196,"#") ->  | J196: =[1]!SUMSTRING(H196:I196,"|") ->  | K196: 生命 | L196: 11452 | M196: 攻击 | N196: 95 | Q196: =IF(O196="",VLOOKUP(K196,属性表!$H:$I,2,0)&"#"&配件表!L196&"|"&VLOOKUP(M196,属性表!$H:$I,2,0)&"#"&配件表!N196,VLOOKUP(K196,属性表!$H:$I,2,0)&"#"&配件表!L196&"|"&VLOOKUP(M196,属性表!$H:$I,2,0)&"#"&配件表!N196&"|"&VLOOKUP(O196,属性表!$H:$I,2,0)&"#"&配件表!P196) -> 1#11452|2#95 | R196: 异妖6 | S196: 橙色
A197: 配件20 | B197: 20 | C197: 6 | D197: 6020 | E197: =E187 -> 3 | F197: 5 | G197: 180 | H197: =[1]!SUMSTRING(D197:E197,"#") ->  | I197: =[1]!SUMSTRING(F197:G197,"#") ->  | J197: =[1]!SUMSTRING(H197:I197,"|") ->  | K197: 生命 | L197: 15494 | M197: 攻击 | N197: 129 | O197: 风抗（%） | P197: 12 | Q197: =IF(O197="",VLOOKUP(K197,属性表!$H:$I,2,0)&"#"&配件表!L197&"|"&VLOOKUP(M197,属性表!$H:$I,2,0)&"#"&配件表!N197,VLOOKUP(K197,属性表!$H:$I,2,0)&"#"&配件表!L197&"|"&VLOOKUP(M197,属性表!$H:$I,2,0)&"#"&配件表!N197&"|"&VLOOKUP(O197,属性表!$H:$I,2,0)&"#"&配件表!P197) -> 1#15494|2#129|108#12 | R197: 异妖6 | S197: 橙色
A198: 配件20 | B198: 20 | C198: 7 | D198: 6020 | E198: =E188 -> 4 | F198: 5 | G198: 235 | H198: =[1]!SUMSTRING(D198:E198,"#") ->  | I198: =[1]!SUMSTRING(F198:G198,"#") ->  | J198: =[1]!SUMSTRING(H198:I198,"|") ->  | K198: 生命 | L198: 20210 | M198: 攻击 | N198: 168 | Q198: =IF(O198="",VLOOKUP(K198,属性表!$H:$I,2,0)&"#"&配件表!L198&"|"&VLOOKUP(M198,属性表!$H:$I,2,0)&"#"&配件表!N198,VLOOKUP(K198,属性表!$H:$I,2,0)&"#"&配件表!L198&"|"&VLOOKUP(M198,属性表!$H:$I,2,0)&"#"&配件表!N198&"|"&VLOOKUP(O198,属性表!$H:$I,2,0)&"#"&配件表!P198) -> 1#20210|2#168 | R198: 异妖6 | S198: 橙色
A199: 配件20 | B199: 20 | C199: 8 | D199: 6020 | E199: =E189 -> 5 | F199: 5 | G199: 290 | H199: =[1]!SUMSTRING(D199:E199,"#") ->  | I199: =[1]!SUMSTRING(F199:G199,"#") ->  | J199: =[1]!SUMSTRING(H199:I199,"|") ->  | K199: 生命 | L199: 25600 | M199: 攻击 | N199: 213 | O199: 风抗（%） | P199: 20 | Q199: =IF(O199="",VLOOKUP(K199,属性表!$H:$I,2,0)&"#"&配件表!L199&"|"&VLOOKUP(M199,属性表!$H:$I,2,0)&"#"&配件表!N199,VLOOKUP(K199,属性表!$H:$I,2,0)&"#"&配件表!L199&"|"&VLOOKUP(M199,属性表!$H:$I,2,0)&"#"&配件表!N199&"|"&VLOOKUP(O199,属性表!$H:$I,2,0)&"#"&配件表!P199) -> 1#25600|2#213|108#20 | R199: 异妖6 | S199: 橙色
A200: 配件20 | B200: 20 | C200: 9 | D200: 6020 | E200: =E190 -> 6 | F200: 5 | G200: 355 | H200: =[1]!SUMSTRING(D200:E200,"#") ->  | I200: =[1]!SUMSTRING(F200:G200,"#") ->  | J200: =[1]!SUMSTRING(H200:I200,"|") ->  | K200: 生命 | L200: 31663 | M200: 攻击 | N200: 263 | Q200: =IF(O200="",VLOOKUP(K200,属性表!$H:$I,2,0)&"#"&配件表!L200&"|"&VLOOKUP(M200,属性表!$H:$I,2,0)&"#"&配件表!N200,VLOOKUP(K200,属性表!$H:$I,2,0)&"#"&配件表!L200&"|"&VLOOKUP(M200,属性表!$H:$I,2,0)&"#"&配件表!N200&"|"&VLOOKUP(O200,属性表!$H:$I,2,0)&"#"&配件表!P200) -> 1#31663|2#263 | R200: 异妖6 | S200: 橙色
... 121 more rows

Sheet 整体表
C1: 异妖id | F1: 消耗1 | G1: 数量 | H1: 消耗2 | I1: 数量 | J1: 消耗输出 | K1: 前置条件
C2: 1 | D2: 01 | E2: =C2&D2 -> 101 | F2: 5 | G2: 240 | H2: 6 | I2: 1 | J2: =[1]!SUMSTRING(F2:G2,"#")&"|"&[1]!SUMSTRING(H2:I2,"#") ->  | K2: 1
C3: 1 | D3: 02 | E3: =C3&D3 -> 102 | F3: 5 | G3: 360 | H3: 6 | I3: 1 | J3: =[1]!SUMSTRING(F3:G3,"#")&"|"&[1]!SUMSTRING(H3:I3,"#") ->  | K3: 2
C4: 1 | D4: 03 | E4: 103 | F4: 5 | G4: 480 | H4: 6 | I4: 2 | J4: =[1]!SUMSTRING(F4:G4,"#")&"|"&[1]!SUMSTRING(H4:I4,"#") ->  | K4: 3
C5: 1 | D5: 04 | E5: 104 | F5: 5 | G5: 600 | H5: 6 | I5: 2 | J5: =[1]!SUMSTRING(F5:G5,"#")&"|"&[1]!SUMSTRING(H5:I5,"#") ->  | K5: 4
C6: 1 | D6: 05 | E6: 105 | F6: 5 | G6: 720 | H6: 6 | I6: 3 | J6: =[1]!SUMSTRING(F6:G6,"#")&"|"&[1]!SUMSTRING(H6:I6,"#") ->  | K6: 5
C7: 1 | D7: 06 | E7: 106 | F7: 5 | G7: 840 | H7: 6 | I7: 3 | J7: =[1]!SUMSTRING(F7:G7,"#")&"|"&[1]!SUMSTRING(H7:I7,"#") ->  | K7: 7
C8: 1 | D8: 07 | E8: 107 | F8: 5 | G8: 960 | H8: 6 | I8: 4 | J8: =[1]!SUMSTRING(F8:G8,"#")&"|"&[1]!SUMSTRING(H8:I8,"#") ->  | K8: 8
C9: 1 | D9: 08 | E9: 108 | F9: 5 | G9: 1080 | H9: 6 | I9: 5 | J9: =[1]!SUMSTRING(F9:G9,"#")&"|"&[1]!SUMSTRING(H9:I9,"#") ->  | K9: 9
C10: 1 | D10: 09 | E10: 109 | F10: 5 | G10: 1200 | H10: 6 | I10: 8 | J10: =[1]!SUMSTRING(F10:G10,"#")&"|"&[1]!SUMSTRING(H10:I10,"#") ->  | K10: 10
C11: 1 | D11: 10 | E11: 110 | F11: 5 | G11: 1320 | H11: 6 | I11: 11 | J11: =[1]!SUMSTRING(F11:G11,"#")&"|"&[1]!SUMSTRING(H11:I11,"#") -> 
C12: =C2+1 -> 2 | D12: =D2 -> 01 | E12: 201 | F12: 5 | G12: 240 | H12: 6 | I12: 1 | J12: =[1]!SUMSTRING(F12:G12,"#")&"|"&[1]!SUMSTRING(H12:I12,"#") ->  | K12: 1
C13: =C3+1 -> 2 | D13: =D3 -> 02 | E13: 202 | F13: 5 | G13: 360 | H13: 6 | I13: 1 | J13: =[1]!SUMSTRING(F13:G13,"#")&"|"&[1]!SUMSTRING(H13:I13,"#") ->  | K13: 2
C14: 2 | D14: 03 | E14: 203 | F14: 5 | G14: 480 | H14: 6 | I14: 2 | J14: =[1]!SUMSTRING(F14:G14,"#")&"|"&[1]!SUMSTRING(H14:I14,"#") ->  | K14: 3
C15: 2 | D15: 04 | E15: 204 | F15: 5 | G15: 600 | H15: 6 | I15: 2 | J15: =[1]!SUMSTRING(F15:G15,"#")&"|"&[1]!SUMSTRING(H15:I15,"#") ->  | K15: 4
C16: 2 | D16: 05 | E16: 205 | F16: 5 | G16: 720 | H16: 6 | I16: 3 | J16: =[1]!SUMSTRING(F16:G16,"#")&"|"&[1]!SUMSTRING(H16:I16,"#") ->  | K16: 5
C17: 2 | D17: 06 | E17: 206 | F17: 5 | G17: 840 | H17: 6 | I17: 3 | J17: =[1]!SUMSTRING(F17:G17,"#")&"|"&[1]!SUMSTRING(H17:I17,"#") ->  | K17: 7
C18: 2 | D18: 07 | E18: 207 | F18: 5 | G18: 960 | H18: 6 | I18: 4 | J18: =[1]!SUMSTRING(F18:G18,"#")&"|"&[1]!SUMSTRING(H18:I18,"#") ->  | K18: 8
C19: 2 | D19: 08 | E19: 208 | F19: 5 | G19: 1080 | H19: 6 | I19: 5 | J19: =[1]!SUMSTRING(F19:G19,"#")&"|"&[1]!SUMSTRING(H19:I19,"#") ->  | K19: 9
C20: 2 | D20: 09 | E20: 209 | F20: 5 | G20: 1200 | H20: 6 | I20: 8 | J20: =[1]!SUMSTRING(F20:G20,"#")&"|"&[1]!SUMSTRING(H20:I20,"#") ->  | K20: 10
C21: 2 | D21: 10 | E21: 210 | F21: 5 | G21: 1320 | H21: 6 | I21: 11 | J21: =[1]!SUMSTRING(F21:G21,"#")&"|"&[1]!SUMSTRING(H21:I21,"#") -> 
C22: 3 | D22: 01 | E22: 301 | F22: 5 | G22: 240 | H22: 6 | I22: 1 | J22: =[1]!SUMSTRING(F22:G22,"#")&"|"&[1]!SUMSTRING(H22:I22,"#") ->  | K22: 1
C23: 3 | D23: 02 | E23: 302 | F23: 5 | G23: 360 | H23: 6 | I23: 1 | J23: =[1]!SUMSTRING(F23:G23,"#")&"|"&[1]!SUMSTRING(H23:I23,"#") ->  | K23: 2
C24: 3 | D24: 03 | E24: 303 | F24: 5 | G24: 480 | H24: 6 | I24: 2 | J24: =[1]!SUMSTRING(F24:G24,"#")&"|"&[1]!SUMSTRING(H24:I24,"#") ->  | K24: 3
C25: 3 | D25: 04 | E25: 304 | F25: 5 | G25: 600 | H25: 6 | I25: 2 | J25: =[1]!SUMSTRING(F25:G25,"#")&"|"&[1]!SUMSTRING(H25:I25,"#") ->  | K25: 4
C26: 3 | D26: 05 | E26: 305 | F26: 5 | G26: 720 | H26: 6 | I26: 3 | J26: =[1]!SUMSTRING(F26:G26,"#")&"|"&[1]!SUMSTRING(H26:I26,"#") ->  | K26: 5
C27: 3 | D27: 06 | E27: 306 | F27: 5 | G27: 840 | H27: 6 | I27: 3 | J27: =[1]!SUMSTRING(F27:G27,"#")&"|"&[1]!SUMSTRING(H27:I27,"#") ->  | K27: 7
C28: 3 | D28: 07 | E28: 307 | F28: 5 | G28: 960 | H28: 6 | I28: 4 | J28: =[1]!SUMSTRING(F28:G28,"#")&"|"&[1]!SUMSTRING(H28:I28,"#") ->  | K28: 8
C29: 3 | D29: 08 | E29: 308 | F29: 5 | G29: 1080 | H29: 6 | I29: 5 | J29: =[1]!SUMSTRING(F29:G29,"#")&"|"&[1]!SUMSTRING(H29:I29,"#") ->  | K29: 9
C30: 3 | D30: 09 | E30: 309 | F30: 5 | G30: 1200 | H30: 6 | I30: 8 | J30: =[1]!SUMSTRING(F30:G30,"#")&"|"&[1]!SUMSTRING(H30:I30,"#") ->  | K30: 10
C31: 3 | D31: 10 | E31: 310 | F31: 5 | G31: 1320 | H31: 6 | I31: 11 | J31: =[1]!SUMSTRING(F31:G31,"#")&"|"&[1]!SUMSTRING(H31:I31,"#") -> 
C32: 4 | D32: 01 | E32: 401 | F32: 5 | G32: 240 | H32: 6 | I32: 1 | J32: =[1]!SUMSTRING(F32:G32,"#")&"|"&[1]!SUMSTRING(H32:I32,"#") ->  | K32: 1
C33: 4 | D33: 02 | E33: 402 | F33: 5 | G33: 360 | H33: 6 | I33: 1 | J33: =[1]!SUMSTRING(F33:G33,"#")&"|"&[1]!SUMSTRING(H33:I33,"#") ->  | K33: 2
C34: 4 | D34: 03 | E34: 403 | F34: 5 | G34: 480 | H34: 6 | I34: 2 | J34: =[1]!SUMSTRING(F34:G34,"#")&"|"&[1]!SUMSTRING(H34:I34,"#") ->  | K34: 3
C35: 4 | D35: 04 | E35: 404 | F35: 5 | G35: 600 | H35: 6 | I35: 2 | J35: =[1]!SUMSTRING(F35:G35,"#")&"|"&[1]!SUMSTRING(H35:I35,"#") ->  | K35: 4
C36: 4 | D36: 05 | E36: 405 | F36: 5 | G36: 720 | H36: 6 | I36: 3 | J36: =[1]!SUMSTRING(F36:G36,"#")&"|"&[1]!SUMSTRING(H36:I36,"#") ->  | K36: 5
C37: 4 | D37: 06 | E37: 406 | F37: 5 | G37: 840 | H37: 6 | I37: 3 | J37: =[1]!SUMSTRING(F37:G37,"#")&"|"&[1]!SUMSTRING(H37:I37,"#") ->  | K37: 7
C38: 4 | D38: 07 | E38: 407 | F38: 5 | G38: 960 | H38: 6 | I38: 4 | J38: =[1]!SUMSTRING(F38:G38,"#")&"|"&[1]!SUMSTRING(H38:I38,"#") ->  | K38: 8
C39: 4 | D39: 08 | E39: 408 | F39: 5 | G39: 1080 | H39: 6 | I39: 5 | J39: =[1]!SUMSTRING(F39:G39,"#")&"|"&[1]!SUMSTRING(H39:I39,"#") ->  | K39: 9
C40: 4 | D40: 09 | E40: 409 | F40: 5 | G40: 1200 | H40: 6 | I40: 8 | J40: =[1]!SUMSTRING(F40:G40,"#")&"|"&[1]!SUMSTRING(H40:I40,"#") ->  | K40: 10
C41: 4 | D41: 10 | E41: 410 | F41: 5 | G41: 1320 | H41: 6 | I41: 11 | J41: =[1]!SUMSTRING(F41:G41,"#")&"|"&[1]!SUMSTRING(H41:I41,"#") -> 
C42: 5 | D42: 01 | E42: 501 | F42: 5 | G42: 400 | H42: 6 | I42: 2 | J42: =[1]!SUMSTRING(F42:G42,"#")&"|"&[1]!SUMSTRING(H42:I42,"#") ->  | K42: 1
C43: 5 | D43: 02 | E43: 502 | F43: 5 | G43: 600 | H43: 6 | I43: 2 | J43: =[1]!SUMSTRING(F43:G43,"#")&"|"&[1]!SUMSTRING(H43:I43,"#") ->  | K43: 2
C44: 5 | D44: 03 | E44: 503 | F44: 5 | G44: 800 | H44: 6 | I44: 3 | J44: =[1]!SUMSTRING(F44:G44,"#")&"|"&[1]!SUMSTRING(H44:I44,"#") ->  | K44: 3
C45: 5 | D45: 04 | E45: 504 | F45: 5 | G45: 1000 | H45: 6 | I45: 3 | J45: =[1]!SUMSTRING(F45:G45,"#")&"|"&[1]!SUMSTRING(H45:I45,"#") ->  | K45: 4
C46: 5 | D46: 05 | E46: 505 | F46: 5 | G46: 1200 | H46: 6 | I46: 4 | J46: =[1]!SUMSTRING(F46:G46,"#")&"|"&[1]!SUMSTRING(H46:I46,"#") ->  | K46: 5
C47: 5 | D47: 06 | E47: 506 | F47: 5 | G47: 1400 | H47: 6 | I47: 4 | J47: =[1]!SUMSTRING(F47:G47,"#")&"|"&[1]!SUMSTRING(H47:I47,"#") ->  | K47: 7
C48: 5 | D48: 07 | E48: 507 | F48: 5 | G48: 1600 | H48: 6 | I48: 6 | J48: =[1]!SUMSTRING(F48:G48,"#")&"|"&[1]!SUMSTRING(H48:I48,"#") ->  | K48: 8
C49: 5 | D49: 08 | E49: 508 | F49: 5 | G49: 1800 | H49: 6 | I49: 8 | J49: =[1]!SUMSTRING(F49:G49,"#")&"|"&[1]!SUMSTRING(H49:I49,"#") ->  | K49: 9
C50: 5 | D50: 09 | E50: 509 | F50: 5 | G50: 2000 | H50: 6 | I50: 12 | J50: =[1]!SUMSTRING(F50:G50,"#")&"|"&[1]!SUMSTRING(H50:I50,"#") ->  | K50: 10
C51: 5 | D51: 10 | E51: 510 | F51: 5 | G51: 2200 | H51: 6 | I51: 15 | J51: =[1]!SUMSTRING(F51:G51,"#")&"|"&[1]!SUMSTRING(H51:I51,"#") -> 
C52: 6 | D52: 01 | E52: 601 | F52: 5 | G52: 400 | H52: 6 | I52: 2 | J52: =[1]!SUMSTRING(F52:G52,"#")&"|"&[1]!SUMSTRING(H52:I52,"#") ->  | K52: 1
C53: 6 | D53: 02 | E53: 602 | F53: 5 | G53: 600 | H53: 6 | I53: 2 | J53: =[1]!SUMSTRING(F53:G53,"#")&"|"&[1]!SUMSTRING(H53:I53,"#") ->  | K53: 2
C54: 6 | D54: 03 | E54: 603 | F54: 5 | G54: 800 | H54: 6 | I54: 3 | J54: =[1]!SUMSTRING(F54:G54,"#")&"|"&[1]!SUMSTRING(H54:I54,"#") ->  | K54: 3
C55: 6 | D55: 04 | E55: 604 | F55: 5 | G55: 1000 | H55: 6 | I55: 3 | J55: =[1]!SUMSTRING(F55:G55,"#")&"|"&[1]!SUMSTRING(H55:I55,"#") ->  | K55: 4
C56: 6 | D56: 05 | E56: 605 | F56: 5 | G56: 1200 | H56: 6 | I56: 4 | J56: =[1]!SUMSTRING(F56:G56,"#")&"|"&[1]!SUMSTRING(H56:I56,"#") ->  | K56: 5
C57: 6 | D57: 06 | E57: 606 | F57: 5 | G57: 1400 | H57: 6 | I57: 4 | J57: =[1]!SUMSTRING(F57:G57,"#")&"|"&[1]!SUMSTRING(H57:I57,"#") ->  | K57: 7
C58: 6 | D58: 07 | E58: 607 | F58: 5 | G58: 1600 | H58: 6 | I58: 6 | J58: =[1]!SUMSTRING(F58:G58,"#")&"|"&[1]!SUMSTRING(H58:I58,"#") ->  | K58: 8
C59: 6 | D59: 08 | E59: 608 | F59: 5 | G59: 1800 | H59: 6 | I59: 8 | J59: =[1]!SUMSTRING(F59:G59,"#")&"|"&[1]!SUMSTRING(H59:I59,"#") ->  | K59: 9
C60: 6 | D60: 09 | E60: 609 | F60: 5 | G60: 2000 | H60: 6 | I60: 12 | J60: =[1]!SUMSTRING(F60:G60,"#")&"|"&[1]!SUMSTRING(H60:I60,"#") ->  | K60: 10
C61: 6 | D61: 10 | E61: 610 | F61: 5 | G61: 2200 | H61: 6 | I61: 15 | J61: =[1]!SUMSTRING(F61:G61,"#")&"|"&[1]!SUMSTRING(H61:I61,"#") -> 
C62: 7 | D62: 01 | E62: 701 | F62: 5 | G62: 400 | H62: 6 | I62: 2 | J62: =[1]!SUMSTRING(F62:G62,"#")&"|"&[1]!SUMSTRING(H62:I62,"#") ->  | K62: 1
C63: 7 | D63: 02 | E63: 702 | F63: 5 | G63: 600 | H63: 6 | I63: 2 | J63: =[1]!SUMSTRING(F63:G63,"#")&"|"&[1]!SUMSTRING(H63:I63,"#") ->  | K63: 2
C64: 7 | D64: 03 | E64: 703 | F64: 5 | G64: 800 | H64: 6 | I64: 3 | J64: =[1]!SUMSTRING(F64:G64,"#")&"|"&[1]!SUMSTRING(H64:I64,"#") ->  | K64: 3
C65: 7 | D65: 04 | E65: 704 | F65: 5 | G65: 1000 | H65: 6 | I65: 3 | J65: =[1]!SUMSTRING(F65:G65,"#")&"|"&[1]!SUMSTRING(H65:I65,"#") ->  | K65: 4
C66: 7 | D66: 05 | E66: 705 | F66: 5 | G66: 1200 | H66: 6 | I66: 4 | J66: =[1]!SUMSTRING(F66:G66,"#")&"|"&[1]!SUMSTRING(H66:I66,"#") ->  | K66: 5
C67: 7 | D67: 06 | E67: =C67&D67 -> 706 | F67: 5 | G67: 1400 | H67: 6 | I67: 4 | J67: =[1]!SUMSTRING(F67:G67,"#")&"|"&[1]!SUMSTRING(H67:I67,"#") ->  | K67: 7
C68: 7 | D68: 07 | E68: 707 | F68: 5 | G68: 1600 | H68: 6 | I68: 6 | J68: =[1]!SUMSTRING(F68:G68,"#")&"|"&[1]!SUMSTRING(H68:I68,"#") ->  | K68: 8
C69: 7 | D69: 08 | E69: 708 | F69: 5 | G69: 1800 | H69: 6 | I69: 8 | J69: =[1]!SUMSTRING(F69:G69,"#")&"|"&[1]!SUMSTRING(H69:I69,"#") ->  | K69: 9
C70: 7 | D70: 09 | E70: 709 | F70: 5 | G70: 2000 | H70: 6 | I70: 12 | J70: =[1]!SUMSTRING(F70:G70,"#")&"|"&[1]!SUMSTRING(H70:I70,"#") ->  | K70: 10
C71: 7 | D71: 10 | E71: 710 | F71: 5 | G71: 2200 | H71: 6 | I71: 15 | J71: =[1]!SUMSTRING(F71:G71,"#")&"|"&[1]!SUMSTRING(H71:I71,"#") -> 
C72: 8 | D72: 01 | E72: 801 | F72: 5 | G72: 400 | H72: 6 | I72: 2 | J72: =[1]!SUMSTRING(F72:G72,"#")&"|"&[1]!SUMSTRING(H72:I72,"#") ->  | K72: 1
C73: 8 | D73: 02 | E73: 802 | F73: 5 | G73: 600 | H73: 6 | I73: 2 | J73: =[1]!SUMSTRING(F73:G73,"#")&"|"&[1]!SUMSTRING(H73:I73,"#") ->  | K73: 2
C74: 8 | D74: 03 | E74: 803 | F74: 5 | G74: 800 | H74: 6 | I74: 3 | J74: =[1]!SUMSTRING(F74:G74,"#")&"|"&[1]!SUMSTRING(H74:I74,"#") ->  | K74: 3
C75: 8 | D75: 04 | E75: 804 | F75: 5 | G75: 1000 | H75: 6 | I75: 3 | J75: =[1]!SUMSTRING(F75:G75,"#")&"|"&[1]!SUMSTRING(H75:I75,"#") ->  | K75: 4
C76: 8 | D76: 05 | E76: 805 | F76: 5 | G76: 1200 | H76: 6 | I76: 4 | J76: =[1]!SUMSTRING(F76:G76,"#")&"|"&[1]!SUMSTRING(H76:I76,"#") ->  | K76: 5
C77: =C67+1 -> 8 | D77: =D67 -> 06 | E77: 806 | F77: 5 | G77: 1400 | H77: 6 | I77: 4 | J77: =[1]!SUMSTRING(F77:G77,"#")&"|"&[1]!SUMSTRING(H77:I77,"#") ->  | K77: 7
C78: 8 | D78: 07 | E78: 807 | F78: 5 | G78: 1600 | H78: 6 | I78: 6 | J78: =[1]!SUMSTRING(F78:G78,"#")&"|"&[1]!SUMSTRING(H78:I78,"#") ->  | K78: 8
C79: 8 | D79: 08 | E79: 808 | F79: 5 | G79: 1800 | H79: 6 | I79: 8 | J79: =[1]!SUMSTRING(F79:G79,"#")&"|"&[1]!SUMSTRING(H79:I79,"#") ->  | K79: 9
C80: 8 | D80: 09 | E80: 809 | F80: 5 | G80: 2000 | H80: 6 | I80: 12 | J80: =[1]!SUMSTRING(F80:G80,"#")&"|"&[1]!SUMSTRING(H80:I80,"#") ->  | K80: 10
C81: 8 | D81: 10 | E81: 810 | F81: 5 | G81: 2200 | H81: 6 | I81: 15 | J81: =[1]!SUMSTRING(F81:G81,"#")&"|"&[1]!SUMSTRING(H81:I81,"#") -> 
C82: 9 | D82: 01 | E82: 901 | F82: 5 | G82: 400 | H82: 6 | I82: 2 | J82: =[1]!SUMSTRING(F82:G82,"#")&"|"&[1]!SUMSTRING(H82:I82,"#") ->  | K82: 1
C83: 9 | D83: 02 | E83: 902 | F83: 5 | G83: 600 | H83: 6 | I83: 2 | J83: =[1]!SUMSTRING(F83:G83,"#")&"|"&[1]!SUMSTRING(H83:I83,"#") ->  | K83: 2
C84: 9 | D84: 03 | E84: 903 | F84: 5 | G84: 800 | H84: 6 | I84: 3 | J84: =[1]!SUMSTRING(F84:G84,"#")&"|"&[1]!SUMSTRING(H84:I84,"#") ->  | K84: 3
C85: 9 | D85: 04 | E85: 904 | F85: 5 | G85: 1000 | H85: 6 | I85: 3 | J85: =[1]!SUMSTRING(F85:G85,"#")&"|"&[1]!SUMSTRING(H85:I85,"#") ->  | K85: 4
C86: 9 | D86: 05 | E86: 905 | F86: 5 | G86: 1200 | H86: 6 | I86: 4 | J86: =[1]!SUMSTRING(F86:G86,"#")&"|"&[1]!SUMSTRING(H86:I86,"#") ->  | K86: 5
C87: 9 | D87: 06 | E87: 906 | F87: 5 | G87: 1400 | H87: 6 | I87: 4 | J87: =[1]!SUMSTRING(F87:G87,"#")&"|"&[1]!SUMSTRING(H87:I87,"#") ->  | K87: 7
C88: 9 | D88: 07 | E88: 907 | F88: 5 | G88: 1600 | H88: 6 | I88: 6 | J88: =[1]!SUMSTRING(F88:G88,"#")&"|"&[1]!SUMSTRING(H88:I88,"#") ->  | K88: 8
C89: 9 | D89: 08 | E89: 908 | F89: 5 | G89: 1800 | H89: 6 | I89: 8 | J89: =[1]!SUMSTRING(F89:G89,"#")&"|"&[1]!SUMSTRING(H89:I89,"#") ->  | K89: 9
C90: 9 | D90: 09 | E90: 909 | F90: 5 | G90: 2000 | H90: 6 | I90: 12 | J90: =[1]!SUMSTRING(F90:G90,"#")&"|"&[1]!SUMSTRING(H90:I90,"#") ->  | K90: 10
C91: 9 | D91: 10 | E91: 910 | F91: 5 | G91: 2200 | H91: 6 | I91: 15 | J91: =[1]!SUMSTRING(F91:G91,"#")&"|"&[1]!SUMSTRING(H91:I91,"#") -> 
C92: 10 | D92: 01 | E92: 1001 | F92: 5 | G92: 400 | H92: 6 | I92: 2 | J92: =[1]!SUMSTRING(F92:G92,"#")&"|"&[1]!SUMSTRING(H92:I92,"#") ->  | K92: 1
C93: 10 | D93: 02 | E93: 1002 | F93: 5 | G93: 600 | H93: 6 | I93: 2 | J93: =[1]!SUMSTRING(F93:G93,"#")&"|"&[1]!SUMSTRING(H93:I93,"#") ->  | K93: 2
C94: 10 | D94: 03 | E94: 1003 | F94: 5 | G94: 800 | H94: 6 | I94: 3 | J94: =[1]!SUMSTRING(F94:G94,"#")&"|"&[1]!SUMSTRING(H94:I94,"#") ->  | K94: 3
C95: 10 | D95: 04 | E95: 1004 | F95: 5 | G95: 1000 | H95: 6 | I95: 3 | J95: =[1]!SUMSTRING(F95:G95,"#")&"|"&[1]!SUMSTRING(H95:I95,"#") ->  | K95: 4
C96: 10 | D96: 05 | E96: 1005 | F96: 5 | G96: 1200 | H96: 6 | I96: 4 | J96: =[1]!SUMSTRING(F96:G96,"#")&"|"&[1]!SUMSTRING(H96:I96,"#") ->  | K96: 5
C97: 10 | D97: 06 | E97: 1006 | F97: 5 | G97: 1400 | H97: 6 | I97: 4 | J97: =[1]!SUMSTRING(F97:G97,"#")&"|"&[1]!SUMSTRING(H97:I97,"#") ->  | K97: 7
C98: 10 | D98: 07 | E98: 1007 | F98: 5 | G98: 1600 | H98: 6 | I98: 6 | J98: =[1]!SUMSTRING(F98:G98,"#")&"|"&[1]!SUMSTRING(H98:I98,"#") ->  | K98: 8
C99: 10 | D99: 08 | E99: 1008 | F99: 5 | G99: 1800 | H99: 6 | I99: 8 | J99: =[1]!SUMSTRING(F99:G99,"#")&"|"&[1]!SUMSTRING(H99:I99,"#") ->  | K99: 9
C100: 10 | D100: 09 | E100: 1009 | F100: 5 | G100: 2000 | H100: 6 | I100: 12 | J100: =[1]!SUMSTRING(F100:G100,"#")&"|"&[1]!SUMSTRING(H100:I100,"#") ->  | K100: 10
C101: 10 | D101: 10 | E101: 1010 | F101: 5 | G101: 2200 | H101: 6 | I101: 15 | J101: =[1]!SUMSTRING(F101:G101,"#")&"|"&[1]!SUMSTRING(H101:I101,"#") -> 

Sheet 属性表
H5: 生命 | I5: 1 | J5: Hp
H6: 攻击 | I6: 2 | J6: Attack
H7: 护甲 | I7: 3 | J7: PhysicalDefence
H8: 魔抗 | I8: 4 | J8: MagicDefence
H9: 速度 | I9: 5 | J9: Speed
H10: 生命上限 | I10: 6
H11: 伤害加成百分比 | I11: 51 | J11: DamageBocusFactor
H12: 伤害减免百分比 | I12: 52 | J12: DamageReduceFactor
H13: 效果命中 | I13: 53 | J13: Hit
H14: 效果抵抗 | I14: 54 | J14: Dodge
H15: 暴击 | I15: 55 | J15: CritFactor
H16: 暴伤 | I16: 56 | J16: CritDamageFactor
H17: 回复系数 | I17: 57 | J17: TreatFacter
H18: 抗暴 | I18: 58 | J18: AntiCritTactor
H19: 火攻（%） | I19: 101 | J19: FireDamageBonusFactor
H20: 风攻（%） | I20: 102 | J20: WindDamageBonusFactor
H21: 水攻（%） | I21: 103 | J21: WaterDamageBonusFactor
H22: 地攻（%） | I22: 104 | J22: LandDamageBonusFactor
H23: 光攻（%） | I23: 105 | J23: LightDamageBonusFactor
H24: 暗攻（%） | I24: 106 | J24: DarkDamageBonusFactor
H25: 火抗（%） | I25: 107 | J25: FireDamageReduceFactor
H26: 风抗（%） | I26: 108 | J26: WindDamageReduceFactor
H27: 水抗（%） | I27: 109 | J27: WaterDamageReduceFactor
H28: 地抗（%） | I28: 110 | J28: LandDamageReduceFactor
H29: 光抗（%） | I29: 111 | J29: LightDamageReduceFactor
H30: 暗抗（%） | I30: 112 | J30: DarkDamageReduceFactor
